Workbook

Sheet e-216
H1: 2024 REMITTANCE ADVICE (FORM e-216) | P1: Carrier Code | Q1: =IF(AL9="IER"," ",AL9) ->  | R1: Receipt Date | S1: Receipt Date | X1: V1.0.7 | AA1: 0.26 | AI1: Current Value | AJ1: Opening Value | AN1: Static NOW | AO1: PreOpening Date | AR1: Ending Credit Balance Calaulations | BR1: 0
A2: 216 Date: | B2: Completion Date | H2: ="For remitting coverage that incepted or renewed in "&LEFT(H1,4)&" only" -> For remitting coverage that incepted or renewed in 2024 only | P2: Check/EFT # | R2: Count | S2: Transaction Count | T2: =COUNT(O11:O8953) -> 0 | U2: =COUNTA(M11:M5010) -> 0 | AI2: 0 | AJ2: =SUM(C:W) -> 0 | AK2: 0 | AN2: 2020-01-21T10:08:00 | AO2: Completion Date | AQ2: =IF(U2>0,IF(B2="Enter Today's Date",NOW(),B2),"") ->  | BR2: 0
G3: Please Select Primary Carrier | P3: Check / EFT Amount | R3: Policy Exam. | S3: Coverage Specialist | AJ3: 0 | AR3: =SUM(Q6+Q7) -> 0 | BR3: 0
A4: Related #: | G4: Contact Person's Name | R4: Contact Code | S4: Contact Code | AR4: =SUM(Q5+Q6) -> 0 | BM4: 1 | BN4: 2 | BO4: 3 | BP4: 4 | BQ4: 5 | BR4: 6 | BS4: 7
A5: Entity Name: | G5: Contact Person's Address | P5: Assessment Total | Q5: =SUM(S11:S5010) -> 0 | BM5: 4243 | BN5: 2309 | BO5: 2703 | BP5: 3324 | BQ5: 3573 | BR5: 2838 | BS5: 3324
A6: Basic Insurance Coverage Limit: | C6: $500,000/$2,500,000 Hospital | G6: Contact Person's Telephone # | P6: Beginning Crdt Bal | Q6: 0 | R6: From e216 dated: | S6: From e-216 dated: | BM6: 8310 | BN6: 4099 | BO6: 4956 | BP6: 6309 | BQ6: 6851 | BR6: 5249 | BS6: 6221
C7: $500,000/$1,500,000 All Others | G7: Contact Person's Email | P7: Crdt Bal Used | Q7: 0 | AO7: =IF(P2="Select Payment Type",AK9,P2) -> Check/EFT # | BM7: 14812 | BN7: 6960 | BO7: 8558 | BP7: 11082 | BQ7: 12092 | BR7: 9105 | BS7: 11082
F8: Email completed e-216 to: | H8: ra-in-remittance@pa.gov | P8: Ending Crdt Bal | Q8: =IF(Q5>0,AR3,AR4) -> 0 | R8: To e216 dated: | S8: To e-216 dated: | AI8: DocuShare | AJ8: DocuShare | AL8: Insurer Cde | AM8: Official e-216 | AN8: Run Date | AO8: Check # Text | AP8: Check | AR8: DocuShare Email Agent Collection
D9: Email subject line should be | G9: =Q1&AK9&AM9&AK9&TEXT(AN9,"mm/dd/yy")&AK9&AO9&AK9&Q2&AK9 -> Official e-216 | P9: Amount Due | Q9: =SUM(Q5-Q7) -> 0 | AI9: =IF(B2="Completion Date"," ","<To:Mcare216>") ->  | AJ9: > | AL9: =RIGHT(G3,3) -> ier | AM9: =IF(B2="Enter Today's Date"," ","Official e-216") -> Official e-216 | AN9: =IF(B2="Completion Date"," ",B2) ->  | AO9: =IF(Q2>0,"Check/EFT No.",AK9) ->  | AP9: =IF(Q2>0,Q2,"N/A ") -> N/A | AQ9: √316 | CP9: *
A10: License or Assigned Number | B10: Name Last, First, M.I. | C10: From Date | D10: To Date | E10: Cancel Date | F10: Retro Date | G10: Carrier's Policy # | H10: Policy Type | I10: F.T.E. Factor | J10: Part-Time | K10: Resident/Fellow/ New Doctor | L10: Policy Modifier | M10: County Code | N10: Specialty Code | O10: Primary Carrier's Premium | P10: Prevailing Primary Premium | Q10: Full Assessment | R10: 2009 Abatement % | S10: Remitted Assessment | U10: Comment | V10: Related License or Assigned Number | W10: FOR MCARE'S OFFICIAL USE ONLY | X10: Additional Identification | Y10: Slot Identification # | Z10: Work Address Street 1 | AA10: Work Address Street 2 | AB10: Work Address City | AC10: Work Address Zip | AD10: Zip +4 | AG10: Return Surcharge | AH10: Surcharge Payment | AI10: # of Days | AJ10: # of Cncl Days | AK10: Daily rate | AL10: Adjusted PPP | AM10: Adjusted F.T.E. | AN10: Adjusted P/T | AO10: Adjusted New/Res | AS10: P08 | AT10: P16 | AU10: P24 | AV10: PT Total | AX10: Res/New R | AY10: Res/New 1 | AZ10: Res/New 2 | BA10: Res/New 3 | BB10: Res/New Total | BD10: DX Terr 1 | BE10: DX Terr 2 | BF10: DX Terr 3 | BG10: DX Terr 4 | BH10: DX Terr 5 | BI10: DX Terr 6 | BJ10: DX Total | BM10: 10682 | BN10: 5143 | BO10: 6270 | BP10: 8051 | BQ10: 8763 | BR10: 6656 | BS10: 8051 | BT10: Class Code | BU10: Territory 1 | BV10: Territory 2 | BW10: Territory 3 | BX10: Territory 4 | BY10: Territory 5 | BZ10: Territory 6 | CA10: Territory 7 | CB10: Territory | CF10: 100% Abatement | CG10: 50% Abatement | CH10: 0% Abatement | CI10: Abated Assessment | CJ10: Class Code | CK10: Unabated Assessment | CL10: Assessment | CM10: No Rating of Tail | CN10: New Retro Coverage | CO10: Add "-" to Policy # | CP10: New Retro Policy # | CS10: Slot Specialty | CT10: Slot Position | CU10: Is Slot Rating OK | CW10: $$$ Money Auditor | DA10: USER NOTES
P11: =IF(M11>0,INDEX($BM$1:$BS$903,BT11,CB11),0) -> 0 | Q11: =IF(AND(NOT(ISBLANK(I11)),I11=0),0,CM11) -> 0 | S11: =IF(OR(H11="ERP",H11="PA",H11="SAT",H11="IT"),CM11,Q11*(100%-R11)+T11) -> 0 | V11: =IF(AND($B$4>"BC-",M11>0),$B$4,"") ->  | AG11: =VALUE(AJ11)*((AO11+BJ11)*$AA$1)/AI11 ->  | AH11: =((AO11+BJ11)*$AA$1) -> 0 | AI11: =IF(AND(C11<45351,D11>45351),(D11-C11)-1,D11-C11) -> 0 | AJ11: =IF(AND(C11<45351,D11>45351,E11<45351),(E11-D11)+1,(E11-D11)) -> 0 | AK11: =P11/365 -> 0 | AL11: =AI11*AK11 -> 0 | AM11: =AL11*AP11 -> 0 | AN11: =AW11*AM11 -> 0 | AO11: =BC11*AN11 -> 0 | AP11: =IF(OR(I11=1,I11=0),"100%",I11) -> 100% | AS11: =IF(J11=8,50%,0) -> 0 | AT11: =IF(J11=16,65%,0) -> 0 | AU11: =IF(J11=24,80%,0) -> 0 | AV11: =SUM(AS11:AU11) -> 0 | AW11: =IF(AV11=0,100%,AV11) -> 1 | AX11: =IF(OR(K11="R", K11="F"),50%,0) -> 0 | AY11: =IF(K11="Y1",25%,0) -> 0 | AZ11: =IF(K11="Y2",50%,0) -> 0 | BA11: =IF(K11="Y3",75%,0) -> 0 | BB11: =SUM(AX11:BA11) -> 0 | BC11: =IF(BB11=0,100%,BB11) -> 1 | BD11: =IF(AND(L11="DX",N11<"02001"),IF(OR(M11=51),10106),"0") -> 0 | BE11: =IF(AND(L11="DX",N11<"02001",M11<>23,M11<>51,M11<>2,M11<>43,M11<>63,M11<>65,M11<>9,M11<>46,M11<>54,M11<>15,M11<>35,M11<>45,M11<>6,M11<>7,M11<>21,M11<>22,M11<>25,M11<>39,M11<>40,M11<>48,M11<>67),5558,"0") -> 0 | BF11: =IF(AND(L11="DX",N11<"02001"),IF(OR(M11=2,M11=3,M11=22,M11=33,M11=63,M11=65),6063),"0") -> 0 | BG11: =IF(AND(L11="DX",N11<"02001"),IF(OR(M11=9,M11=26,M11=35,M11=40,M11=43,M11=46),8591),"0") -> 0 | BH11: =IF(AND(L11="DX",N11<"02001"),IF(OR(M11=23),8591),"0") -> 0 | BI11: =IF(AND(L11="DX",N11<"02001"),IF(OR(M11=7,M11=15,M11=19,M11=20,M11=25,M11=37,M11=45,M11=48,M11=54),6063),"0") -> 0 | BJ11: =SUM(BD11:BI11) -> 0 | BM11: 0 | BN11: 0 | BO11: 0 | BP11: 0 | BQ11: 0 | BR11: 0 | BT11: =LEFT(CD11,3) -> 0 | BU11: =IF(OR(M11=51),1,"0") -> 0 | BV11: =IF(OR(M11=4,M11=13,M11=17,M11=3,M11=33,M11=23,M11=51,M11=2,M11=26,M11=37,M11=63,M11=65,M11=9,M11=35,M11=46,M11=15,M11=45,M11=7,M11=19,M11=20,M11=22,M11=25,M11=39,M11=40,M11=43,M11=48, M11=54,M11=0),0,"2") -> 0 | BW11: =IF(OR(M11=2,M11=3,M11=4,M11=13,M11=17,M11=22,M11=33,M11=63),3,"0") -> 0 | BX11: =IF(OR(M11=23,M11=26,M11=40,M11=43),4,"0") -> 0 | BY11: =IF(OR(M11=35),5,"0") -> 0 | BZ11: =IF(OR(M11=9,M11=15,M11=19,M11=20,M11=25,M11=37,M11=39,M11=45,M11=46,M11=48,M11=54,M11=65),6,"0") -> 0 | CA11: =IF(M11=7,7,0) -> 0 | CB11: =SUM(BU11+BV11+BW11+BX11+BY11+BZ11+CA11+CC11) -> 8 | CC11: =IF(M11=0,8,0) -> 8 | CD11: =IF(N11="00651","00551",IF(AND(N11="80993"),"12093",IF(AND(N11="80994"),"13094",N11))) -> 0 | CF11: =IF(OR(CJ11=70, CJ11=80, CJ11=90, CJ11=100, CJ11=801),CK11*0%,"0") -> 0 | CG11: =IF(OR(CJ11=6,CJ11=7,CJ11=10,CJ11=12,CJ11=15,CJ11=20,CJ11=22,CJ11=30,CJ11=35,CJ11=50,CJ11=60),CK11*50%,"0") -> 0 | CH11: =IF(OR(CJ11=120,CJ11=130),CK11,"0") -> 0 | CI11: =SUM(CF11:CH11) -> 0 | CJ11: =VALUE(BT11) -> 0 | CK11: =ROUND(IF(E11>1,VALUE(AG11),VALUE(AH11)),0) -> 0 | CL11: =IF(OR(CJ11=120,CJ11=130),CK11,CK11) -> 0 | CM11: =IF(OR(H11="ERP",H11="PA",H11="SAT",H11="IT"),"0",CL11) -> 0 | CN11: =IF(AND(U11="New",F11<C11),"Yes","No") -> No | CO11: =IF(AND(U11="New",F11=C11),"Yes","No") -> No | CP11: =IF(CO11="Yes",CQ11,G11) -> 0 | CQ11: =CONCATENATE(G11,$CP$9) -> * | CS11: =IF(OR(N11="02083",N11="01520",N11="07043",N11="00508",N11="01522"),"Yes","No") -> No | CT11: =IF(L11="S","Yes","No") -> No | CU11: =IF(AND(CS11="Yes", CT11="Yes"),"Yes","No") -> No | CW11: =IF(OR(H11="ERP",H11="PA",H11="SAT"),CM11,Q11*(100%-R11)+T11) -> 0
P12: =IF(M12>0,INDEX($BM$1:$BS$903,BT12,CB12),0) -> 0 | Q12: 0 | S12: =IF(OR(H12="ERP",H12="PA",H12="SAT",H12="IT"),CM12,Q12*(100%-R12)+T12) -> 0 | V12: =IF(AND($B$4>"BC-",M12>0),$B$4,"") ->  | AG12: =VALUE(AJ12)*((AO12+BJ12)*$AA$1)/AI12 ->  | AH12: =((AO12+BJ12)*$AA$1) -> 0 | AI12: 0 | AJ12: 0 | AK12: =P12/365 -> 0 | AL12: =AI12*AK12 -> 0 | AM12: =AL12*AP12 -> 0 | AN12: =AW12*AM12 -> 0 | AO12: =BC12*AN12 -> 0 | AP12: =IF(OR(I12=1,I12=0),"100%",I12) -> 100% | AS12: =IF(J12=8,50%,0) -> 0 | AT12: =IF(J12=16,65%,0) -> 0 | AU12: =IF(J12=24,80%,0) -> 0 | AV12: =SUM(AS12:AU12) -> 0 | AW12: =IF(AV12=0,100%,AV12) -> 1 | AX12: =IF(OR(K12="R", K12="F"),50%,0) -> 0 | AY12: =IF(K12="Y1",25%,0) -> 0 | AZ12: =IF(K12="Y2",50%,0) -> 0 | BA12: =IF(K12="Y3",75%,0) -> 0 | BB12: =SUM(AX12:BA12) -> 0 | BC12: =IF(BB12=0,100%,BB12) -> 1 | BD12: =IF(AND(L12="DX",N12<"02001"),IF(OR(M12=51),10106),"0") -> 0 | BE12: =IF(AND(L12="DX",N12<"02001",M12<>23,M12<>51,M12<>2,M12<>43,M12<>63,M12<>65,M12<>9,M12<>46,M12<>54,M12<>15,M12<>35,M12<>45,M12<>6,M12<>7,M12<>21,M12<>22,M12<>25,M12<>39,M12<>40,M12<>48,M12<>67),5558,"0") -> 0 | BF12: =IF(AND(L12="DX",N12<"02001"),IF(OR(M12=2,M12=3,M12=22,M12=33,M12=63,M12=65),6063),"0") -> 0 | BG12: =IF(AND(L12="DX",N12<"02001"),IF(OR(M12=9,M12=26,M12=35,M12=40,M12=43,M12=46),8591),"0") -> 0 | BH12: =IF(AND(L12="DX",N12<"02001"),IF(OR(M12=23),8591),"0") -> 0 | BI12: =IF(AND(L12="DX",N12<"02001"),IF(OR(M12=7,M12=15,M12=19,M12=20,M12=25,M12=37,M12=45,M12=48,M12=54),6063),"0") -> 0 | BJ12: =SUM(BD12:BI12) -> 0 | BM12: 30762 | BN12: 13978 | BO12: 17395 | BP12: 22790 | BQ12: 24948 | BR12: 18564 | BS12: 21404 | BT12: =LEFT(CD12,3) -> 0 | BU12: =IF(OR(M12=51),1,"0") -> 0 | BV12: =IF(OR(M12=4,M12=13,M12=17,M12=3,M12=33,M12=23,M12=51,M12=2,M12=26,M12=37,M12=63,M12=65,M12=9,M12=35,M12=46,M12=15,M12=45,M12=7,M12=19,M12=20,M12=22,M12=25,M12=39,M12=40,M12=43,M12=48, M12=54,M12=0),0,"2") -> 0 | BW12: =IF(OR(M12=2,M12=3,M12=4,M12=13,M12=17,M12=22,M12=33,M12=63),3,"0") -> 0 | BX12: =IF(OR(M12=23,M12=26,M12=40,M12=43),4,"0") -> 0 | BY12: =IF(OR(M12=35),5,"0") -> 0 | BZ12: =IF(OR(M12=9,M12=15,M12=19,M12=20,M12=25,M12=37,M12=39,M12=45,M12=46,M12=48,M12=54,M12=65),6,"0") -> 0 | CA12: =IF(M12=7,7,0) -> 0 | CB12: =SUM(BU12+BV12+BW12+BX12+BY12+BZ12+CA12+CC12) -> 8 | CC12: =IF(M12=0,8,0) -> 8 | CD12: =IF(N12="00651","00551",IF(AND(N12="80993"),"12093",IF(AND(N12="80994"),"13094",N12))) -> 0 | CF12: =IF(OR(CJ12=70, CJ12=80, CJ12=90, CJ12=100, CJ12=801),CK12*0%,"0") -> 0 | CG12: =IF(OR(CJ12=6,CJ12=7,CJ12=10,CJ12=12,CJ12=15,CJ12=20,CJ12=22,CJ12=30,CJ12=35,CJ12=50,CJ12=60),CK12*50%,"0") -> 0 | CH12: =IF(OR(CJ12=120,CJ12=130),CK12,"0") -> 0 | CI12: =SUM(CF12:CH12) -> 0 | CJ12: =VALUE(BT12) -> 0 | CK12: =ROUND(IF(E12>1,VALUE(AG12),VALUE(AH12)),0) -> 0 | CL12: 0 | CM12: =IF(OR(H12="ERP",H12="PA",H12="SAT",H12="IT"),"0",CL12) -> 0 | CN12: =IF(AND(U12="New",F12<C12),"Yes","No") -> No | CO12: =IF(AND(U12="New",F12=C12),"Yes","No") -> No | CP12: =IF(CO12="Yes",CQ12,G12) -> 0 | CQ12: =CONCATENATE(G12,$CP$9) -> * | CS12: =IF(OR(N12="02083",N12="01520",N12="07043",N12="00508",N12="01522"),"Yes","No") -> No | CT12: =IF(L12="S","Yes","No") -> No | CU12: =IF(AND(CS12="Yes", CT12="Yes"),"Yes","No") -> No | CW12: =IF(OR(H12="ERP",H12="PA",H12="SAT"),CM12,Q12*(100%-R12)+T12) -> 0
P13: 0 | Q13: 0 | S13: 0 | V13: =IF(AND($B$4>"BC-",M13>0),$B$4,"") ->  | AH13: 0 | AI13: 0 | AJ13: 0 | AK13: 0 | AL13: 0 | AM13: 0 | AN13: 0 | AO13: 0 | AP13: 100% | AS13: 0 | AT13: =IF(J13=16,65%,0) -> 0 | AU13: =IF(J13=24,80%,0) -> 0 | AV13: 0 | AW13: 1 | AX13: 0 | AY13: 0 | AZ13: 0 | BA13: 0 | BB13: 0 | BC13: 1 | BD13: 0 | BE13: 0 | BF13: 0 | BG13: 0 | BH13: 0 | BI13: 0 | BJ13: 0 | BT13: 0 | BU13: 0 | BV13: 0 | BW13: 0 | BX13: 0 | BY13: 0 | BZ13: 0 | CA13: 0 | CB13: 8 | CC13: 8 | CD13: 0 | CF13: 0 | CG13: 0 | CH13: 0 | CI13: 0 | CJ13: 0 | CK13: 0 | CL13: 0 | CM13: 0 | CN13: No | CO13: No | CP13: 0 | CQ13: * | CS13: No | CT13: No | CU13: No | CW13: =IF(OR(H13="ERP",H13="PA",H13="SAT"),CM13,Q13*(100%-R13)+T13) -> 0
P14: 0 | Q14: 0 | S14: 0 | V14: =IF(AND($B$4>"BC-",M14>0),$B$4,"") ->  | AH14: 0 | AI14: 0 | AJ14: 0 | AK14: 0 | AL14: 0 | AM14: 0 | AN14: 0 | AO14: 0 | AP14: 100% | AS14: 0 | AT14: =IF(J14=16,65%,0) -> 0 | AU14: =IF(J14=24,80%,0) -> 0 | AV14: 0 | AW14: 1 | AX14: 0 | AY14: 0 | AZ14: 0 | BA14: 0 | BB14: 0 | BC14: 1 | BD14: 0 | BE14: 0 | BF14: 0 | BG14: 0 | BH14: 0 | BI14: 0 | BJ14: 0 | BT14: 0 | BU14: 0 | BV14: 0 | BW14: 0 | BX14: 0 | BY14: 0 | BZ14: 0 | CA14: 0 | CB14: 8 | CC14: 8 | CD14: 0 | CF14: 0 | CG14: 0 | CH14: 0 | CI14: 0 | CJ14: 0 | CK14: 0 | CL14: 0 | CM14: 0 | CN14: No | CO14: No | CP14: 0 | CQ14: * | CS14: No | CT14: No | CU14: No | CW14: 0
P15: 0 | Q15: 0 | S15: 0 | V15: =IF(AND($B$4>"BC-",M15>0),$B$4,"") ->  | AH15: 0 | AI15: 0 | AJ15: 0 | AK15: 0 | AL15: 0 | AM15: 0 | AN15: 0 | AO15: 0 | AP15: 100% | AS15: 0 | AT15: =IF(J15=16,65%,0) -> 0 | AU15: =IF(J15=24,80%,0) -> 0 | AV15: 0 | AW15: 1 | AX15: 0 | AY15: 0 | AZ15: 0 | BA15: 0 | BB15: 0 | BC15: 1 | BD15: 0 | BE15: 0 | BF15: 0 | BG15: 0 | BH15: 0 | BI15: 0 | BJ15: 0 | BM15: 21972 | BN15: 10110 | BO15: 12525 | BP15: 16337 | BQ15: 17862 | BR15: 13351 | BS15: 15616 | BT15: 0 | BU15: 0 | BV15: 0 | BW15: 0 | BX15: 0 | BY15: 0 | BZ15: 0 | CA15: 0 | CB15: 8 | CC15: 8 | CD15: 0 | CF15: 0 | CG15: 0 | CH15: 0 | CI15: 0 | CJ15: 0 | CK15: 0 | CL15: 0 | CM15: 0 | CN15: No | CO15: No | CP15: 0 | CQ15: * | CS15: No | CT15: No | CU15: No | CW15: 0
P16: 0 | Q16: 0 | S16: 0 | V16: =IF(AND($B$4>"BC-",M16>0),$B$4,"") ->  | AH16: 0 | AI16: 0 | AJ16: 0 | AK16: 0 | AL16: 0 | AM16: 0 | AN16: 0 | AO16: 0 | AP16: 100% | AS16: 0 | AT16: 0 | AU16: 0 | AV16: 0 | AW16: 1 | AX16: 0 | AY16: 0 | AZ16: 0 | BA16: 0 | BB16: 0 | BC16: 1 | BD16: 0 | BE16: 0 | BF16: 0 | BG16: 0 | BH16: 0 | BI16: 0 | BJ16: 0 | BT16: 0 | BU16: 0 | BV16: 0 | BW16: 0 | BX16: 0 | BY16: 0 | BZ16: 0 | CA16: 0 | CB16: 8 | CC16: 8 | CD16: 0 | CF16: 0 | CG16: 0 | CH16: 0 | CI16: 0 | CJ16: 0 | CK16: 0 | CL16: 0 | CM16: 0 | CN16: No | CO16: No | CP16: 0 | CQ16: * | CS16: No | CT16: No | CU16: No | CW16: 0
P17: 0 | Q17: 0 | S17: 0 | V17: =IF(AND($B$4>"BC-",M17>0),$B$4,"") ->  | AH17: 0 | AI17: 0 | AJ17: 0 | AK17: 0 | AL17: 0 | AM17: 0 | AN17: 0 | AO17: 0 | AP17: 100% | AS17: 0 | AT17: 0 | AU17: 0 | AV17: 0 | AW17: 1 | AX17: 0 | AY17: 0 | AZ17: 0 | BA17: 0 | BB17: 0 | BC17: 1 | BD17: 0 | BE17: 0 | BF17: 0 | BG17: 0 | BH17: 0 | BI17: 0 | BJ17: 0 | BM17: 21506 | BN17: 9905 | BO17: 12267 | BP17: 15995 | BQ17: 17487 | BR17: 13074 | BS17: 15853 | BT17: 0 | BU17: 0 | BV17: 0 | BW17: 0 | BX17: 0 | BY17: 0 | BZ17: 0 | CA17: 0 | CB17: 8 | CC17: 8 | CD17: 0 | CF17: 0 | CG17: 0 | CH17: 0 | CI17: 0 | CJ17: 0 | CK17: 0 | CL17: 0 | CM17: 0 | CN17: No | CO17: No | CP17: 0 | CQ17: * | CS17: No | CT17: No | CU17: No | CW17: 0
P18: 0 | Q18: 0 | S18: 0 | V18: =IF(AND($B$4>"BC-",M18>0),$B$4,"") ->  | AH18: 0 | AI18: 0 | AJ18: 0 | AK18: 0 | AL18: 0 | AM18: 0 | AN18: 0 | AO18: 0 | AP18: 100% | AS18: 0 | AT18: 0 | AU18: 0 | AV18: 0 | AW18: 1 | AX18: 0 | AY18: 0 | AZ18: 0 | BA18: 0 | BB18: 0 | BC18: 1 | BD18: 0 | BE18: 0 | BF18: 0 | BG18: 0 | BH18: 0 | BI18: 0 | BJ18: 0 | BT18: 0 | BU18: 0 | BV18: 0 | BW18: 0 | BX18: 0 | BY18: 0 | BZ18: 0 | CA18: 0 | CB18: 8 | CC18: 8 | CD18: 0 | CF18: 0 | CG18: 0 | CH18: 0 | CI18: 0 | CJ18: 0 | CK18: 0 | CL18: 0 | CM18: 0 | CN18: No | CO18: No | CP18: 0 | CQ18: * | CS18: No | CT18: No | CU18: No | CW18: 0
P19: 0 | Q19: 0 | S19: 0 | V19: =IF(AND($B$4>"BC-",M19>0),$B$4,"") ->  | AH19: 0 | AI19: 0 | AJ19: 0 | AK19: 0 | AL19: 0 | AM19: 0 | AN19: 0 | AO19: 0 | AP19: 100% | AS19: 0 | AT19: 0 | AU19: 0 | AV19: 0 | AW19: 1 | AX19: 0 | AY19: 0 | AZ19: 0 | BA19: 0 | BB19: 0 | BC19: 1 | BD19: 0 | BE19: 0 | BF19: 0 | BG19: 0 | BH19: 0 | BI19: 0 | BJ19: 0 | BT19: 0 | BU19: 0 | BV19: 0 | BW19: 0 | BX19: 0 | BY19: 0 | BZ19: 0 | CA19: 0 | CB19: 8 | CC19: 8 | CD19: 0 | CF19: 0 | CG19: 0 | CH19: 0 | CI19: 0 | CJ19: 0 | CK19: 0 | CL19: 0 | CM19: 0 | CN19: No | CO19: No | CP19: 0 | CQ19: * | CS19: No | CT19: No | CU19: No | CW19: 0
P20: 0 | Q20: 0 | S20: 0 | V20: =IF(AND($B$4>"BC-",M20>0),$B$4,"") ->  | AH20: 0 | AI20: 0 | AJ20: 0 | AK20: 0 | AL20: 0 | AM20: 0 | AN20: 0 | AO20: 0 | AP20: 100% | AS20: 0 | AT20: 0 | AU20: 0 | AV20: 0 | AW20: 1 | AX20: 0 | AY20: 0 | AZ20: 0 | BA20: 0 | BB20: 0 | BC20: 1 | BD20: 0 | BE20: 0 | BF20: 0 | BG20: 0 | BH20: 0 | BI20: 0 | BJ20: 0 | BM20: 24916 | BN20: 11405 | BO20: 14156 | BP20: 18498 | BQ20: 20236 | BR20: 15097 | BS20: 17252 | BT20: 0 | BU20: 0 | BV20: 0 | BW20: 0 | BX20: 0 | BY20: 0 | BZ20: 0 | CA20: 0 | CB20: 8 | CC20: 8 | CD20: 0 | CF20: 0 | CG20: 0 | CH20: 0 | CI20: 0 | CJ20: 0 | CK20: 0 | CL20: 0 | CM20: 0 | CN20: No | CO20: No | CP20: 0 | CQ20: * | CS20: No | CT20: No | CU20: No | CW20: 0
P21: 0 | Q21: 0 | S21: 0 | V21: =IF(AND($B$4>"BC-",M21>0),$B$4,"") ->  | AH21: 0 | AI21: 0 | AJ21: 0 | AK21: 0 | AL21: 0 | AM21: 0 | AN21: 0 | AO21: 0 | AP21: 100% | AS21: 0 | AT21: 0 | AU21: 0 | AV21: 0 | AW21: 1 | AX21: 0 | AY21: 0 | AZ21: 0 | BA21: 0 | BB21: 0 | BC21: 1 | BD21: 0 | BE21: 0 | BF21: 0 | BG21: 0 | BH21: 0 | BI21: 0 | BJ21: 0 | BT21: 0 | BU21: 0 | BV21: 0 | BW21: 0 | BX21: 0 | BY21: 0 | BZ21: 0 | CA21: 0 | CB21: 8 | CC21: 8 | CD21: 0 | CF21: 0 | CG21: 0 | CH21: 0 | CI21: 0 | CJ21: 0 | CK21: 0 | CL21: 0 | CM21: 0 | CN21: No | CO21: No | CP21: 0 | CQ21: * | CS21: No | CT21: No | CU21: No | CW21: 0
P22: 0 | Q22: 0 | S22: 0 | V22: =IF(AND($B$4>"BC-",M22>0),$B$4,"") ->  | AH22: 0 | AI22: 0 | AJ22: 0 | AK22: 0 | AL22: 0 | AM22: 0 | AN22: 0 | AO22: 0 | AP22: 100% | AS22: 0 | AT22: 0 | AU22: 0 | AV22: 0 | AW22: 1 | AX22: 0 | AY22: 0 | AZ22: 0 | BA22: 0 | BB22: 0 | BC22: 1 | BD22: 0 | BE22: 0 | BF22: 0 | BG22: 0 | BH22: 0 | BI22: 0 | BJ22: 0 | BM22: 34532 | BN22: 15637 | BO22: 19483 | BP22: 25557 | BQ22: 27986 | BR22: 20799 | BS22: 23481 | BT22: 0 | BU22: 0 | BV22: 0 | BW22: 0 | BX22: 0 | BY22: 0 | BZ22: 0 | CA22: 0 | CB22: 8 | CC22: 8 | CD22: 0 | CF22: 0 | CG22: 0 | CH22: 0 | CI22: 0 | CJ22: 0 | CK22: 0 | CL22: 0 | CM22: 0 | CN22: No | CO22: No | CP22: 0 | CQ22: * | CS22: No | CT22: No | CU22: No | CW22: 0
P23: 0 | Q23: 0 | S23: 0 | V23: =IF(AND($B$4>"BC-",M23>0),$B$4,"") ->  | AH23: 0 | AI23: 0 | AJ23: 0 | AK23: 0 | AL23: 0 | AM23: 0 | AN23: 0 | AO23: 0 | AP23: 100% | AS23: 0 | AT23: 0 | AU23: 0 | AV23: 0 | AW23: 1 | AX23: 0 | AY23: 0 | AZ23: 0 | BA23: 0 | BB23: 0 | BC23: 1 | BD23: 0 | BE23: 0 | BF23: 0 | BG23: 0 | BH23: 0 | BI23: 0 | BJ23: 0 | BT23: 0 | BU23: 0 | BV23: 0 | BW23: 0 | BX23: 0 | BY23: 0 | BZ23: 0 | CA23: 0 | CB23: 8 | CC23: 8 | CD23: 0 | CF23: 0 | CG23: 0 | CH23: 0 | CI23: 0 | CJ23: 0 | CK23: 0 | CL23: 0 | CM23: 0 | CN23: No | CO23: No | CP23: 0 | CQ23: * | CS23: No | CT23: No | CU23: No | CW23: 0
P24: 0 | Q24: 0 | S24: 0 | V24: =IF(AND($B$4>"BC-",M24>0),$B$4,"") ->  | AH24: 0 | AI24: 0 | AJ24: 0 | AK24: 0 | AL24: 0 | AM24: 0 | AN24: 0 | AO24: 0 | AP24: 100% | AS24: 0 | AT24: 0 | AU24: 0 | AV24: 0 | AW24: 1 | AX24: 0 | AY24: 0 | AZ24: 0 | BA24: 0 | BB24: 0 | BC24: 1 | BD24: 0 | BE24: 0 | BF24: 0 | BG24: 0 | BH24: 0 | BI24: 0 | BJ24: 0 | BT24: 0 | BU24: 0 | BV24: 0 | BW24: 0 | BX24: 0 | BY24: 0 | BZ24: 0 | CA24: 0 | CB24: 8 | CC24: 8 | CD24: 0 | CF24: 0 | CG24: 0 | CH24: 0 | CI24: 0 | CJ24: 0 | CK24: 0 | CL24: 0 | CM24: 0 | CN24: No | CO24: No | CP24: 0 | CQ24: * | CS24: No | CT24: No | CU24: No | CW24: 0
P25: 0 | Q25: 0 | S25: 0 | V25: =IF(AND($B$4>"BC-",M25>0),$B$4,"") ->  | AH25: 0 | AI25: 0 | AJ25: 0 | AK25: 0 | AL25: 0 | AM25: 0 | AN25: 0 | AO25: 0 | AP25: 100% | AS25: 0 | AT25: 0 | AU25: 0 | AV25: 0 | AW25: 1 | AX25: 0 | AY25: 0 | AZ25: 0 | BA25: 0 | BB25: 0 | BC25: 1 | BD25: 0 | BE25: 0 | BF25: 0 | BG25: 0 | BH25: 0 | BI25: 0 | BJ25: 0 | BM25: 37519 | BN25: 16951 | BO25: 21138 | BP25: 27749 | BQ25: 28893 | BR25: 22570 | BS25: 24468 | BT25: 0 | BU25: 0 | BV25: 0 | BW25: 0 | BX25: 0 | BY25: 0 | BZ25: 0 | CA25: 0 | CB25: 8 | CC25: 8 | CD25: 0 | CF25: 0 | CG25: 0 | CH25: 0 | CI25: 0 | CJ25: 0 | CK25: 0 | CL25: 0 | CM25: 0 | CN25: No | CO25: No | CP25: 0 | CQ25: * | CS25: No | CT25: No | CU25: No | CW25: 0
P26: 0 | Q26: 0 | S26: 0 | V26: =IF(AND($B$4>"BC-",M26>0),$B$4,"") ->  | AH26: 0 | AI26: 0 | AJ26: 0 | AK26: 0 | AL26: 0 | AM26: 0 | AN26: 0 | AO26: 0 | AP26: 100% | AS26: 0 | AT26: 0 | AU26: 0 | AV26: 0 | AW26: 1 | AX26: 0 | AY26: 0 | AZ26: 0 | BA26: 0 | BB26: 0 | BC26: 1 | BD26: 0 | BE26: 0 | BF26: 0 | BG26: 0 | BH26: 0 | BI26: 0 | BJ26: 0 | BT26: 0 | BU26: 0 | BV26: 0 | BW26: 0 | BX26: 0 | BY26: 0 | BZ26: 0 | CA26: 0 | CB26: 8 | CC26: 8 | CD26: 0 | CF26: 0 | CG26: 0 | CH26: 0 | CI26: 0 | CJ26: 0 | CK26: 0 | CL26: 0 | CM26: 0 | CN26: No | CO26: No | CP26: 0 | CQ26: * | CS26: No | CT26: No | CU26: No | CW26: 0
P27: 0 | Q27: 0 | S27: 0 | V27: =IF(AND($B$4>"BC-",M27>0),$B$4,"") ->  | AH27: 0 | AI27: 0 | AJ27: 0 | AK27: 0 | AL27: 0 | AM27: 0 | AN27: 0 | AO27: 0 | AP27: 100% | AS27: 0 | AT27: 0 | AU27: 0 | AV27: 0 | AW27: 1 | AX27: 0 | AY27: 0 | AZ27: 0 | BA27: 0 | BB27: 0 | BC27: 1 | BD27: 0 | BE27: 0 | BF27: 0 | BG27: 0 | BH27: 0 | BI27: 0 | BJ27: 0 | BT27: 0 | BU27: 0 | BV27: 0 | BW27: 0 | BX27: 0 | BY27: 0 | BZ27: 0 | CA27: 0 | CB27: 8 | CC27: 8 | CD27: 0 | CF27: 0 | CG27: 0 | CH27: 0 | CI27: 0 | CJ27: 0 | CK27: 0 | CL27: 0 | CM27: 0 | CN27: No | CO27: No | CP27: 0 | CQ27: * | CS27: No | CT27: No | CU27: No | CW27: 0
P28: 0 | Q28: 0 | S28: 0 | V28: =IF(AND($B$4>"BC-",M28>0),$B$4,"") ->  | AH28: 0 | AI28: 0 | AJ28: 0 | AK28: 0 | AL28: 0 | AM28: 0 | AN28: 0 | AO28: 0 | AP28: 100% | AS28: 0 | AT28: 0 | AU28: 0 | AV28: 0 | AW28: 1 | AX28: 0 | AY28: 0 | AZ28: 0 | BA28: 0 | BB28: 0 | BC28: 1 | BD28: 0 | BE28: 0 | BF28: 0 | BG28: 0 | BH28: 0 | BI28: 0 | BJ28: 0 | BT28: 0 | BU28: 0 | BV28: 0 | BW28: 0 | BX28: 0 | BY28: 0 | BZ28: 0 | CA28: 0 | CB28: 8 | CC28: 8 | CD28: 0 | CF28: 0 | CG28: 0 | CH28: 0 | CI28: 0 | CJ28: 0 | CK28: 0 | CL28: 0 | CM28: 0 | CN28: No | CO28: No | CP28: 0 | CQ28: * | CS28: No | CT28: No | CU28: No | CW28: 0
P29: 0 | Q29: 0 | S29: 0 | V29: =IF(AND($B$4>"BC-",M29>0),$B$4,"") ->  | AH29: 0 | AI29: 0 | AJ29: 0 | AK29: 0 | AL29: 0 | AM29: 0 | AN29: 0 | AO29: 0 | AP29: 100% | AS29: 0 | AT29: 0 | AU29: 0 | AV29: 0 | AW29: 1 | AX29: 0 | AY29: 0 | AZ29: 0 | BA29: 0 | BB29: 0 | BC29: 1 | BD29: 0 | BE29: 0 | BF29: 0 | BG29: 0 | BH29: 0 | BI29: 0 | BJ29: 0 | BT29: 0 | BU29: 0 | BV29: 0 | BW29: 0 | BX29: 0 | BY29: 0 | BZ29: 0 | CA29: 0 | CB29: 8 | CC29: 8 | CD29: 0 | CF29: 0 | CG29: 0 | CH29: 0 | CI29: 0 | CJ29: 0 | CK29: 0 | CL29: 0 | CM29: 0 | CN29: No | CO29: No | CP29: 0 | CQ29: * | CS29: No | CT29: No | CU29: No | CW29: 0
P30: 0 | Q30: 0 | S30: 0 | V30: =IF(AND($B$4>"BC-",M30>0),$B$4,"") ->  | AH30: 0 | AI30: 0 | AJ30: 0 | AK30: 0 | AL30: 0 | AM30: 0 | AN30: 0 | AO30: 0 | AP30: 100% | AS30: 0 | AT30: 0 | AU30: 0 | AV30: 0 | AW30: 1 | AX30: 0 | AY30: 0 | AZ30: 0 | BA30: 0 | BB30: 0 | BC30: 1 | BD30: 0 | BE30: 0 | BF30: 0 | BG30: 0 | BH30: 0 | BI30: 0 | BJ30: 0 | BM30: 34109 | BN30: 15450 | BO30: 19249 | BP30: 25246 | BQ30: 27645 | BR30: 20548 | BS30: 23938 | BT30: 0 | BU30: 0 | BV30: 0 | BW30: 0 | BX30: 0 | BY30: 0 | BZ30: 0 | CA30: 0 | CB30: 8 | CC30: 8 | CD30: 0 | CF30: 0 | CG30: 0 | CH30: 0 | CI30: 0 | CJ30: 0 | CK30: 0 | CL30: 0 | CM30: 0 | CN30: No | CO30: No | CP30: 0 | CQ30: * | CS30: No | CT30: No | CU30: No | CW30: 0
P31: 0 | Q31: 0 | S31: 0 | V31: =IF(AND($B$4>"BC-",M31>0),$B$4,"") ->  | AH31: 0 | AI31: 0 | AJ31: 0 | AK31: 0 | AL31: 0 | AM31: 0 | AN31: 0 | AO31: 0 | AP31: 100% | AS31: 0 | AT31: 0 | AU31: 0 | AV31: 0 | AW31: 1 | AX31: 0 | AY31: 0 | AZ31: 0 | BA31: 0 | BB31: 0 | BC31: 1 | BD31: 0 | BE31: 0 | BF31: 0 | BG31: 0 | BH31: 0 | BI31: 0 | BJ31: 0 | BT31: 0 | BU31: 0 | BV31: 0 | BW31: 0 | BX31: 0 | BY31: 0 | BZ31: 0 | CA31: 0 | CB31: 8 | CC31: 8 | CD31: 0 | CF31: 0 | CG31: 0 | CH31: 0 | CI31: 0 | CJ31: 0 | CK31: 0 | CL31: 0 | CM31: 0 | CN31: No | CO31: No | CP31: 0 | CQ31: * | CS31: No | CT31: No | CU31: No | CW31: 0
P32: 0 | Q32: 0 | S32: 0 | V32: =IF(AND($B$4>"BC-",M32>0),$B$4,"") ->  | AH32: 0 | AI32: 0 | AJ32: 0 | AK32: 0 | AL32: 0 | AM32: 0 | AN32: 0 | AO32: 0 | AP32: 100% | AS32: 0 | AT32: 0 | AU32: 0 | AV32: 0 | AW32: 1 | AX32: 0 | AY32: 0 | AZ32: 0 | BA32: 0 | BB32: 0 | BC32: 1 | BD32: 0 | BE32: 0 | BF32: 0 | BG32: 0 | BH32: 0 | BI32: 0 | BJ32: 0 | BT32: 0 | BU32: 0 | BV32: 0 | BW32: 0 | BX32: 0 | BY32: 0 | BZ32: 0 | CA32: 0 | CB32: 8 | CC32: 8 | CD32: 0 | CF32: 0 | CG32: 0 | CH32: 0 | CI32: 0 | CJ32: 0 | CK32: 0 | CL32: 0 | CM32: 0 | CN32: No | CO32: No | CP32: 0 | CQ32: * | CS32: No | CT32: No | CU32: No | CW32: 0
P33: 0 | Q33: 0 | S33: 0 | V33: =IF(AND($B$4>"BC-",M33>0),$B$4,"") ->  | AH33: 0 | AI33: 0 | AJ33: 0 | AK33: 0 | AL33: 0 | AM33: 0 | AN33: 0 | AO33: 0 | AP33: 100% | AS33: 0 | AT33: 0 | AU33: 0 | AV33: 0 | AW33: 1 | AX33: 0 | AY33: 0 | AZ33: 0 | BA33: 0 | BB33: 0 | BC33: 1 | BD33: 0 | BE33: 0 | BF33: 0 | BG33: 0 | BH33: 0 | BI33: 0 | BJ33: 0 | BT33: 0 | BU33: 0 | BV33: 0 | BW33: 0 | BX33: 0 | BY33: 0 | BZ33: 0 | CA33: 0 | CB33: 8 | CC33: 8 | CD33: 0 | CF33: 0 | CG33: 0 | CH33: 0 | CI33: 0 | CJ33: 0 | CK33: 0 | CL33: 0 | CM33: 0 | CN33: No | CO33: No | CP33: 0 | CQ33: * | CS33: No | CT33: No | CU33: No | CW33: 0
P34: 0 | Q34: 0 | S34: 0 | V34: =IF(AND($B$4>"BC-",M34>0),$B$4,"") ->  | AH34: 0 | AI34: 0 | AJ34: 0 | AK34: 0 | AL34: 0 | AM34: 0 | AN34: 0 | AO34: 0 | AP34: 100% | AS34: 0 | AT34: 0 | AU34: 0 | AV34: 0 | AW34: 1 | AX34: 0 | AY34: 0 | AZ34: 0 | BA34: 0 | BB34: 0 | BC34: 1 | BD34: 0 | BE34: 0 | BF34: 0 | BG34: 0 | BH34: 0 | BI34: 0 | BJ34: 0 | BT34: 0 | BU34: 0 | BV34: 0 | BW34: 0 | BX34: 0 | BY34: 0 | BZ34: 0 | CA34: 0 | CB34: 8 | CC34: 8 | CD34: 0 | CF34: 0 | CG34: 0 | CH34: 0 | CI34: 0 | CJ34: 0 | CK34: 0 | CL34: 0 | CM34: 0 | CN34: No | CO34: No | CP34: 0 | CQ34: * | CS34: No | CT34: No | CU34: No | CW34: 0
P35: 0 | Q35: 0 | S35: 0 | V35: =IF(AND($B$4>"BC-",M35>0),$B$4,"") ->  | AH35: 0 | AI35: 0 | AJ35: 0 | AK35: 0 | AL35: 0 | AM35: 0 | AN35: 0 | AO35: 0 | AP35: 100% | AS35: 0 | AT35: 0 | AU35: 0 | AV35: 0 | AW35: 1 | AX35: 0 | AY35: 0 | AZ35: 0 | BA35: 0 | BB35: 0 | BC35: 1 | BD35: 0 | BE35: 0 | BF35: 0 | BG35: 0 | BH35: 0 | BI35: 0 | BJ35: 0 | BM35: 51478 | BN35: 23093 | BO35: 28871 | BP35: 37995 | BQ35: 41265 | BR35: 30848 | BS35: 34246 | BT35: 0 | BU35: 0 | BV35: 0 | BW35: 0 | BX35: 0 | BY35: 0 | BZ35: 0 | CA35: 0 | CB35: 8 | CC35: 8 | CD35: 0 | CF35: 0 | CG35: 0 | CH35: 0 | CI35: 0 | CJ35: 0 | CK35: 0 | CL35: 0 | CM35: 0 | CN35: No | CO35: No | CP35: 0 | CQ35: * | CS35: No | CT35: No | CU35: No | CW35: 0
P36: 0 | Q36: 0 | S36: 0 | V36: =IF(AND($B$4>"BC-",M36>0),$B$4,"") ->  | AH36: 0 | AI36: 0 | AJ36: 0 | AK36: 0 | AL36: 0 | AM36: 0 | AN36: 0 | AO36: 0 | AP36: 100% | AS36: 0 | AT36: 0 | AU36: 0 | AV36: 0 | AW36: 1 | AX36: 0 | AY36: 0 | AZ36: 0 | BA36: 0 | BB36: 0 | BC36: 1 | BD36: 0 | BE36: 0 | BF36: 0 | BG36: 0 | BH36: 0 | BI36: 0 | BJ36: 0 | BT36: 0 | BU36: 0 | BV36: 0 | BW36: 0 | BX36: 0 | BY36: 0 | BZ36: 0 | CA36: 0 | CB36: 8 | CC36: 8 | CD36: 0 | CF36: 0 | CG36: 0 | CH36: 0 | CI36: 0 | CJ36: 0 | CK36: 0 | CL36: 0 | CM36: 0 | CN36: No | CO36: No | CP36: 0 | CQ36: * | CS36: No | CT36: No | CU36: No | CW36: =IF(OR(H36="ERP",H36="PA",H36="SAT"),CM36,Q36*(100%-R36)+T36) -> 0
P37: 0 | Q37: 0 | S37: 0 | V37: =IF(AND($B$4>"BC-",M37>0),$B$4,"") ->  | AH37: 0 | AI37: 0 | AJ37: 0 | AK37: 0 | AL37: 0 | AM37: 0 | AN37: 0 | AO37: 0 | AP37: 100% | AS37: 0 | AT37: 0 | AU37: 0 | AV37: 0 | AW37: 1 | AX37: 0 | AY37: 0 | AZ37: 0 | BA37: 0 | BB37: 0 | BC37: 1 | BD37: 0 | BE37: 0 | BF37: 0 | BG37: 0 | BH37: 0 | BI37: 0 | BJ37: 0 | BT37: 0 | BU37: 0 | BV37: 0 | BW37: 0 | BX37: 0 | BY37: 0 | BZ37: 0 | CA37: 0 | CB37: 8 | CC37: 8 | CD37: 0 | CF37: 0 | CG37: 0 | CH37: 0 | CI37: 0 | CJ37: 0 | CK37: 0 | CL37: 0 | CM37: 0 | CN37: No | CO37: No | CP37: 0 | CQ37: * | CS37: No | CT37: No | CU37: No | CW37: 0
P38: 0 | Q38: 0 | S38: 0 | V38: =IF(AND($B$4>"BC-",M38>0),$B$4,"") ->  | AH38: 0 | AI38: 0 | AJ38: 0 | AK38: 0 | AL38: 0 | AM38: 0 | AN38: 0 | AO38: 0 | AP38: 100% | AS38: 0 | AT38: 0 | AU38: 0 | AV38: 0 | AW38: 1 | AX38: 0 | AY38: 0 | AZ38: 0 | BA38: 0 | BB38: 0 | BC38: 1 | BD38: 0 | BE38: 0 | BF38: 0 | BG38: 0 | BH38: 0 | BI38: 0 | BJ38: 0 | BT38: 0 | BU38: 0 | BV38: 0 | BW38: 0 | BX38: 0 | BY38: 0 | BZ38: 0 | CA38: 0 | CB38: 8 | CC38: 8 | CD38: 0 | CF38: 0 | CG38: 0 | CH38: 0 | CI38: 0 | CJ38: 0 | CK38: 0 | CL38: 0 | CM38: 0 | CN38: No | CO38: No | CP38: 0 | CQ38: * | CS38: No | CT38: No | CU38: No | CW38: 0
P39: 0 | Q39: 0 | S39: 0 | V39: =IF(AND($B$4>"BC-",M39>0),$B$4,"") ->  | AH39: 0 | AI39: 0 | AJ39: 0 | AK39: 0 | AL39: 0 | AM39: 0 | AN39: 0 | AO39: 0 | AP39: 100% | AS39: 0 | AT39: 0 | AU39: 0 | AV39: 0 | AW39: 1 | AX39: 0 | AY39: 0 | AZ39: 0 | BA39: 0 | BB39: 0 | BC39: 1 | BD39: 0 | BE39: 0 | BF39: 0 | BG39: 0 | BH39: 0 | BI39: 0 | BJ39: 0 | BT39: 0 | BU39: 0 | BV39: 0 | BW39: 0 | BX39: 0 | BY39: 0 | BZ39: 0 | CA39: 0 | CB39: 8 | CC39: 8 | CD39: 0 | CF39: 0 | CG39: 0 | CH39: 0 | CI39: 0 | CJ39: 0 | CK39: 0 | CL39: 0 | CM39: 0 | CN39: No | CO39: No | CP39: 0 | CQ39: * | CS39: No | CT39: No | CU39: No | CW39: 0
P40: 0 | Q40: 0 | S40: 0 | V40: =IF(AND($B$4>"BC-",M40>0),$B$4,"") ->  | AH40: 0 | AI40: 0 | AJ40: 0 | AK40: 0 | AL40: 0 | AM40: 0 | AN40: 0 | AO40: 0 | AP40: 100% | AS40: 0 | AT40: 0 | AU40: 0 | AV40: 0 | AW40: 1 | AX40: 0 | AY40: 0 | AZ40: 0 | BA40: 0 | BB40: 0 | BC40: 1 | BD40: 0 | BE40: 0 | BF40: 0 | BG40: 0 | BH40: 0 | BI40: 0 | BJ40: 0 | BT40: 0 | BU40: 0 | BV40: 0 | BW40: 0 | BX40: 0 | BY40: 0 | BZ40: 0 | CA40: 0 | CB40: 8 | CC40: 8 | CD40: 0 | CF40: 0 | CG40: 0 | CH40: 0 | CI40: 0 | CJ40: 0 | CK40: 0 | CL40: 0 | CM40: 0 | CN40: No | CO40: No | CP40: 0 | CQ40: * | CS40: No | CT40: No | CU40: No | CW40: 0
P41: 0 | Q41: 0 | S41: 0 | V41: =IF(AND($B$4>"BC-",M41>0),$B$4,"") ->  | AH41: 0 | AI41: 0 | AJ41: 0 | AK41: 0 | AL41: 0 | AM41: 0 | AN41: 0 | AO41: 0 | AP41: 100% | AS41: 0 | AT41: 0 | AU41: 0 | AV41: 0 | AW41: 1 | AX41: 0 | AY41: 0 | AZ41: 0 | BA41: 0 | BB41: 0 | BC41: 1 | BD41: 0 | BE41: 0 | BF41: 0 | BG41: 0 | BH41: 0 | BI41: 0 | BJ41: 0 | BT41: 0 | BU41: 0 | BV41: 0 | BW41: 0 | BX41: 0 | BY41: 0 | BZ41: 0 | CA41: 0 | CB41: 8 | CC41: 8 | CD41: 0 | CF41: 0 | CG41: 0 | CH41: 0 | CI41: 0 | CJ41: 0 | CK41: 0 | CL41: 0 | CM41: 0 | CN41: No | CO41: No | CP41: 0 | CQ41: * | CS41: No | CT41: No | CU41: No | CW41: 0
P42: 0 | Q42: 0 | S42: 0 | V42: =IF(AND($B$4>"BC-",M42>0),$B$4,"") ->  | AH42: 0 | AI42: 0 | AJ42: 0 | AK42: 0 | AL42: 0 | AM42: 0 | AN42: 0 | AO42: 0 | AP42: 100% | AS42: 0 | AT42: 0 | AU42: 0 | AV42: 0 | AW42: 1 | AX42: 0 | AY42: 0 | AZ42: 0 | BA42: 0 | BB42: 0 | BC42: 1 | BD42: 0 | BE42: 0 | BF42: 0 | BG42: 0 | BH42: 0 | BI42: 0 | BJ42: 0 | BT42: 0 | BU42: 0 | BV42: 0 | BW42: 0 | BX42: 0 | BY42: 0 | BZ42: 0 | CA42: 0 | CB42: 8 | CC42: 8 | CD42: 0 | CF42: 0 | CG42: 0 | CH42: 0 | CI42: 0 | CJ42: 0 | CK42: 0 | CL42: 0 | CM42: 0 | CN42: No | CO42: No | CP42: 0 | CQ42: * | CS42: No | CT42: No | CU42: No | CW42: 0
P43: 0 | Q43: 0 | S43: 0 | V43: =IF(AND($B$4>"BC-",M43>0),$B$4,"") ->  | AH43: 0 | AI43: 0 | AJ43: 0 | AK43: 0 | AL43: 0 | AM43: 0 | AN43: 0 | AO43: 0 | AP43: 100% | AS43: 0 | AT43: 0 | AU43: 0 | AV43: 0 | AW43: 1 | AX43: 0 | AY43: 0 | AZ43: 0 | BA43: 0 | BB43: 0 | BC43: 1 | BD43: 0 | BE43: 0 | BF43: 0 | BG43: 0 | BH43: 0 | BI43: 0 | BJ43: 0 | BT43: 0 | BU43: 0 | BV43: 0 | BW43: 0 | BX43: 0 | BY43: 0 | BZ43: 0 | CA43: 0 | CB43: 8 | CC43: 8 | CD43: 0 | CF43: 0 | CG43: 0 | CH43: 0 | CI43: 0 | CJ43: 0 | CK43: 0 | CL43: 0 | CM43: 0 | CN43: No | CO43: No | CP43: 0 | CQ43: * | CS43: No | CT43: No | CU43: No | CW43: 0
P44: 0 | Q44: 0 | S44: 0 | V44: =IF(AND($B$4>"BC-",M44>0),$B$4,"") ->  | AH44: 0 | AI44: 0 | AJ44: 0 | AK44: 0 | AL44: 0 | AM44: 0 | AN44: 0 | AO44: 0 | AP44: 100% | AS44: 0 | AT44: 0 | AU44: 0 | AV44: 0 | AW44: 1 | AX44: 0 | AY44: 0 | AZ44: 0 | BA44: 0 | BB44: 0 | BC44: 1 | BD44: 0 | BE44: 0 | BF44: 0 | BG44: 0 | BH44: 0 | BI44: 0 | BJ44: 0 | BT44: 0 | BU44: 0 | BV44: 0 | BW44: 0 | BX44: 0 | BY44: 0 | BZ44: 0 | CA44: 0 | CB44: 8 | CC44: 8 | CD44: 0 | CF44: 0 | CG44: 0 | CH44: 0 | CI44: 0 | CJ44: 0 | CK44: 0 | CL44: 0 | CM44: 0 | CN44: No | CO44: No | CP44: 0 | CQ44: * | CS44: No | CT44: No | CU44: No | CW44: 0
P45: 0 | Q45: 0 | S45: 0 | V45: =IF(AND($B$4>"BC-",M45>0),$B$4,"") ->  | AH45: 0 | AI45: 0 | AJ45: 0 | AK45: 0 | AL45: 0 | AM45: 0 | AN45: 0 | AO45: 0 | AP45: 100% | AS45: 0 | AT45: 0 | AU45: 0 | AV45: 0 | AW45: 1 | AX45: 0 | AY45: 0 | AZ45: 0 | BA45: 0 | BB45: 0 | BC45: 1 | BD45: 0 | BE45: 0 | BF45: 0 | BG45: 0 | BH45: 0 | BI45: 0 | BJ45: 0 | BT45: 0 | BU45: 0 | BV45: 0 | BW45: 0 | BX45: 0 | BY45: 0 | BZ45: 0 | CA45: 0 | CB45: 8 | CC45: 8 | CD45: 0 | CF45: 0 | CG45: 0 | CH45: 0 | CI45: 0 | CJ45: 0 | CK45: 0 | CL45: 0 | CM45: 0 | CN45: No | CO45: No | CP45: 0 | CQ45: * | CS45: No | CT45: No | CU45: No | CW45: 0
P46: 0 | Q46: 0 | S46: 0 | V46: =IF(AND($B$4>"BC-",M46>0),$B$4,"") ->  | AH46: 0 | AI46: 0 | AJ46: 0 | AK46: 0 | AL46: 0 | AM46: 0 | AN46: 0 | AO46: 0 | AP46: 100% | AS46: 0 | AT46: 0 | AU46: 0 | AV46: 0 | AW46: 1 | AX46: 0 | AY46: 0 | AZ46: 0 | BA46: 0 | BB46: 0 | BC46: 1 | BD46: 0 | BE46: 0 | BF46: 0 | BG46: 0 | BH46: 0 | BI46: 0 | BJ46: 0 | BT46: 0 | BU46: 0 | BV46: 0 | BW46: 0 | BX46: 0 | BY46: 0 | BZ46: 0 | CA46: 0 | CB46: 8 | CC46: 8 | CD46: 0 | CF46: 0 | CG46: 0 | CH46: 0 | CI46: 0 | CJ46: 0 | CK46: 0 | CL46: 0 | CM46: 0 | CN46: No | CO46: No | CP46: 0 | CQ46: * | CS46: No | CT46: No | CU46: No | CW46: 0
P47: 0 | Q47: 0 | S47: 0 | V47: =IF(AND($B$4>"BC-",M47>0),$B$4,"") ->  | AH47: 0 | AI47: 0 | AJ47: 0 | AK47: 0 | AL47: 0 | AM47: 0 | AN47: 0 | AO47: 0 | AP47: 100% | AS47: 0 | AT47: 0 | AU47: 0 | AV47: 0 | AW47: 1 | AX47: 0 | AY47: 0 | AZ47: 0 | BA47: 0 | BB47: 0 | BC47: 1 | BD47: 0 | BE47: 0 | BF47: 0 | BG47: 0 | BH47: 0 | BI47: 0 | BJ47: 0 | BT47: 0 | BU47: 0 | BV47: 0 | BW47: 0 | BX47: 0 | BY47: 0 | BZ47: 0 | CA47: 0 | CB47: 8 | CC47: 8 | CD47: 0 | CF47: 0 | CG47: 0 | CH47: 0 | CI47: 0 | CJ47: 0 | CK47: 0 | CL47: 0 | CM47: 0 | CN47: No | CO47: No | CP47: 0 | CQ47: * | CS47: No | CT47: No | CU47: No | CW47: 0
P48: 0 | Q48: 0 | S48: 0 | V48: =IF(AND($B$4>"BC-",M48>0),$B$4,"") ->  | AH48: 0 | AI48: 0 | AJ48: 0 | AK48: 0 | AL48: 0 | AM48: 0 | AN48: 0 | AO48: 0 | AP48: 100% | AS48: 0 | AT48: 0 | AU48: 0 | AV48: 0 | AW48: 1 | AX48: 0 | AY48: 0 | AZ48: 0 | BA48: 0 | BB48: 0 | BC48: 1 | BD48: 0 | BE48: 0 | BF48: 0 | BG48: 0 | BH48: 0 | BI48: 0 | BJ48: 0 | BT48: 0 | BU48: 0 | BV48: 0 | BW48: 0 | BX48: 0 | BY48: 0 | BZ48: 0 | CA48: 0 | CB48: 8 | CC48: 8 | CD48: 0 | CF48: 0 | CG48: 0 | CH48: 0 | CI48: 0 | CJ48: 0 | CK48: 0 | CL48: 0 | CM48: 0 | CN48: No | CO48: No | CP48: 0 | CQ48: * | CS48: No | CT48: No | CU48: No | CW48: 0
P49: 0 | Q49: 0 | S49: 0 | V49: =IF(AND($B$4>"BC-",M49>0),$B$4,"") ->  | AH49: 0 | AI49: 0 | AJ49: 0 | AK49: 0 | AL49: 0 | AM49: 0 | AN49: 0 | AO49: 0 | AP49: 100% | AS49: 0 | AT49: 0 | AU49: 0 | AV49: 0 | AW49: 1 | AX49: 0 | AY49: 0 | AZ49: 0 | BA49: 0 | BB49: 0 | BC49: 1 | BD49: 0 | BE49: 0 | BF49: 0 | BG49: 0 | BH49: 0 | BI49: 0 | BJ49: 0 | BT49: 0 | BU49: 0 | BV49: 0 | BW49: 0 | BX49: 0 | BY49: 0 | BZ49: 0 | CA49: 0 | CB49: 8 | CC49: 8 | CD49: 0 | CF49: 0 | CG49: 0 | CH49: 0 | CI49: 0 | CJ49: 0 | CK49: 0 | CL49: 0 | CM49: 0 | CN49: No | CO49: No | CP49: 0 | CQ49: * | CS49: No | CT49: No | CU49: No | CW49: 0
P50: 0 | Q50: 0 | S50: 0 | V50: =IF(AND($B$4>"BC-",M50>0),$B$4,"") ->  | AH50: 0 | AI50: 0 | AJ50: 0 | AK50: 0 | AL50: 0 | AM50: 0 | AN50: 0 | AO50: 0 | AP50: 100% | AS50: 0 | AT50: 0 | AU50: 0 | AV50: 0 | AW50: 1 | AX50: 0 | AY50: 0 | AZ50: 0 | BA50: 0 | BB50: 0 | BC50: 1 | BD50: 0 | BE50: 0 | BF50: 0 | BG50: 0 | BH50: 0 | BI50: 0 | BJ50: 0 | BM50: 44678 | BN50: 20101 | BO50: 25104 | BP50: 33004 | BQ50: 36164 | BR50: 26816 | BS50: 32523 | BT50: 0 | BU50: 0 | BV50: 0 | BW50: 0 | BX50: 0 | BY50: 0 | BZ50: 0 | CA50: 0 | CB50: 8 | CC50: 8 | CD50: 0 | CF50: 0 | CG50: 0 | CH50: 0 | CI50: 0 | CJ50: 0 | CK50: 0 | CL50: 0 | CM50: 0 | CN50: No | CO50: No | CP50: 0 | CQ50: * | CS50: No | CT50: No | CU50: No | CW50: 0
P51: 0 | Q51: 0 | S51: 0 | V51: =IF(AND($B$4>"BC-",M51>0),$B$4,"") ->  | AH51: 0 | AI51: 0 | AJ51: 0 | AK51: 0 | AL51: 0 | AM51: 0 | AN51: 0 | AO51: 0 | AP51: 100% | AS51: 0 | AT51: 0 | AU51: 0 | AV51: 0 | AW51: 1 | AX51: 0 | AY51: 0 | AZ51: 0 | BA51: 0 | BB51: 0 | BC51: 1 | BD51: 0 | BE51: 0 | BF51: 0 | BG51: 0 | BH51: 0 | BI51: 0 | BJ51: 0 | BT51: 0 | BU51: 0 | BV51: 0 | BW51: 0 | BX51: 0 | BY51: 0 | BZ51: 0 | CA51: 0 | CB51: 8 | CC51: 8 | CD51: 0 | CF51: 0 | CG51: 0 | CH51: 0 | CI51: 0 | CJ51: 0 | CK51: 0 | CL51: 0 | CM51: 0 | CN51: No | CO51: No | CP51: 0 | CQ51: * | CS51: No | CT51: No | CU51: No | CW51: 0
P52: 0 | Q52: 0 | S52: 0 | V52: =IF(AND($B$4>"BC-",M52>0),$B$4,"") ->  | AH52: 0 | AI52: 0 | AJ52: 0 | AK52: 0 | AL52: 0 | AM52: 0 | AN52: 0 | AO52: 0 | AP52: 100% | AS52: 0 | AT52: 0 | AU52: 0 | AV52: 0 | AW52: 1 | AX52: 0 | AY52: 0 | AZ52: 0 | BA52: 0 | BB52: 0 | BC52: 1 | BD52: 0 | BE52: 0 | BF52: 0 | BG52: 0 | BH52: 0 | BI52: 0 | BJ52: 0 | BT52: 0 | BU52: 0 | BV52: 0 | BW52: 0 | BX52: 0 | BY52: 0 | BZ52: 0 | CA52: 0 | CB52: 8 | CC52: 8 | CD52: 0 | CF52: 0 | CG52: 0 | CH52: 0 | CI52: 0 | CJ52: 0 | CK52: 0 | CL52: 0 | CM52: 0 | CN52: No | CO52: No | CP52: 0 | CQ52: * | CS52: No | CT52: No | CU52: No | CW52: 0
P53: 0 | Q53: 0 | S53: 0 | V53: =IF(AND($B$4>"BC-",M53>0),$B$4,"") ->  | AH53: 0 | AI53: 0 | AJ53: 0 | AK53: 0 | AL53: 0 | AM53: 0 | AN53: 0 | AO53: 0 | AP53: 100% | AS53: 0 | AT53: 0 | AU53: 0 | AV53: 0 | AW53: 1 | AX53: 0 | AY53: 0 | AZ53: 0 | BA53: 0 | BB53: 0 | BC53: 1 | BD53: 0 | BE53: 0 | BF53: 0 | BG53: 0 | BH53: 0 | BI53: 0 | BJ53: 0 | BT53: 0 | BU53: 0 | BV53: 0 | BW53: 0 | BX53: 0 | BY53: 0 | BZ53: 0 | CA53: 0 | CB53: 8 | CC53: 8 | CD53: 0 | CF53: 0 | CG53: 0 | CH53: 0 | CI53: 0 | CJ53: 0 | CK53: 0 | CL53: 0 | CM53: 0 | CN53: No | CO53: No | CP53: 0 | CQ53: * | CS53: No | CT53: No | CU53: No | CW53: 0
P54: 0 | Q54: 0 | S54: 0 | V54: =IF(AND($B$4>"BC-",M54>0),$B$4,"") ->  | AH54: 0 | AI54: 0 | AJ54: 0 | AK54: 0 | AL54: 0 | AM54: 0 | AN54: 0 | AO54: 0 | AP54: 100% | AS54: 0 | AT54: 0 | AU54: 0 | AV54: 0 | AW54: 1 | AX54: 0 | AY54: 0 | AZ54: 0 | BA54: 0 | BB54: 0 | BC54: 1 | BD54: 0 | BE54: 0 | BF54: 0 | BG54: 0 | BH54: 0 | BI54: 0 | BJ54: 0 | BT54: 0 | BU54: 0 | BV54: 0 | BW54: 0 | BX54: 0 | BY54: 0 | BZ54: 0 | CA54: 0 | CB54: 8 | CC54: 8 | CD54: 0 | CF54: 0 | CG54: 0 | CH54: 0 | CI54: 0 | CJ54: 0 | CK54: 0 | CL54: 0 | CM54: 0 | CN54: No | CO54: No | CP54: 0 | CQ54: * | CS54: No | CT54: No | CU54: No | CW54: 0
P55: 0 | Q55: 0 | S55: 0 | V55: =IF(AND($B$4>"BC-",M55>0),$B$4,"") ->  | AH55: 0 | AI55: 0 | AJ55: 0 | AK55: 0 | AL55: 0 | AM55: 0 | AN55: 0 | AO55: 0 | AP55: 100% | AS55: 0 | AT55: 0 | AU55: 0 | AV55: 0 | AW55: 1 | AX55: 0 | AY55: 0 | AZ55: 0 | BA55: 0 | BB55: 0 | BC55: 1 | BD55: 0 | BE55: 0 | BF55: 0 | BG55: 0 | BH55: 0 | BI55: 0 | BJ55: 0 | BT55: 0 | BU55: 0 | BV55: 0 | BW55: 0 | BX55: 0 | BY55: 0 | BZ55: 0 | CA55: 0 | CB55: 8 | CC55: 8 | CD55: 0 | CF55: 0 | CG55: 0 | CH55: 0 | CI55: 0 | CJ55: 0 | CK55: 0 | CL55: 0 | CM55: 0 | CN55: No | CO55: No | CP55: 0 | CQ55: * | CS55: No | CT55: No | CU55: No | CW55: 0
P56: 0 | Q56: 0 | S56: 0 | V56: =IF(AND($B$4>"BC-",M56>0),$B$4,"") ->  | AH56: 0 | AI56: 0 | AJ56: 0 | AK56: 0 | AL56: 0 | AM56: 0 | AN56: 0 | AO56: 0 | AP56: 100% | AS56: 0 | AT56: 0 | AU56: 0 | AV56: 0 | AW56: 1 | AX56: 0 | AY56: 0 | AZ56: 0 | BA56: 0 | BB56: 0 | BC56: 1 | BD56: 0 | BE56: 0 | BF56: 0 | BG56: 0 | BH56: 0 | BI56: 0 | BJ56: 0 | BT56: 0 | BU56: 0 | BV56: 0 | BW56: 0 | BX56: 0 | BY56: 0 | BZ56: 0 | CA56: 0 | CB56: 8 | CC56: 8 | CD56: 0 | CF56: 0 | CG56: 0 | CH56: 0 | CI56: 0 | CJ56: 0 | CK56: 0 | CL56: 0 | CM56: 0 | CN56: No | CO56: No | CP56: 0 | CQ56: * | CS56: No | CT56: No | CU56: No | CW56: 0
P57: 0 | Q57: 0 | S57: 0 | V57: =IF(AND($B$4>"BC-",M57>0),$B$4,"") ->  | AH57: 0 | AI57: 0 | AJ57: 0 | AK57: 0 | AL57: 0 | AM57: 0 | AN57: 0 | AO57: 0 | AP57: 100% | AS57: 0 | AT57: 0 | AU57: 0 | AV57: 0 | AW57: 1 | AX57: 0 | AY57: 0 | AZ57: 0 | BA57: 0 | BB57: 0 | BC57: 1 | BD57: 0 | BE57: 0 | BF57: 0 | BG57: 0 | BH57: 0 | BI57: 0 | BJ57: 0 | BT57: 0 | BU57: 0 | BV57: 0 | BW57: 0 | BX57: 0 | BY57: 0 | BZ57: 0 | CA57: 0 | CB57: 8 | CC57: 8 | CD57: 0 | CF57: 0 | CG57: 0 | CH57: 0 | CI57: 0 | CJ57: 0 | CK57: 0 | CL57: 0 | CM57: 0 | CN57: No | CO57: No | CP57: 0 | CQ57: * | CS57: No | CT57: No | CU57: No | CW57: 0
P58: 0 | Q58: 0 | S58: 0 | V58: =IF(AND($B$4>"BC-",M58>0),$B$4,"") ->  | AH58: 0 | AI58: 0 | AJ58: 0 | AK58: 0 | AL58: 0 | AM58: 0 | AN58: 0 | AO58: 0 | AP58: 100% | AS58: 0 | AT58: 0 | AU58: 0 | AV58: 0 | AW58: 1 | AX58: 0 | AY58: 0 | AZ58: 0 | BA58: 0 | BB58: 0 | BC58: 1 | BD58: 0 | BE58: 0 | BF58: 0 | BG58: 0 | BH58: 0 | BI58: 0 | BJ58: 0 | BT58: 0 | BU58: 0 | BV58: 0 | BW58: 0 | BX58: 0 | BY58: 0 | BZ58: 0 | CA58: 0 | CB58: 8 | CC58: 8 | CD58: 0 | CF58: 0 | CG58: 0 | CH58: 0 | CI58: 0 | CJ58: 0 | CK58: 0 | CL58: 0 | CM58: 0 | CN58: No | CO58: No | CP58: 0 | CQ58: * | CS58: No | CT58: No | CU58: No | CW58: 0
P59: 0 | Q59: 0 | S59: 0 | V59: =IF(AND($B$4>"BC-",M59>0),$B$4,"") ->  | AH59: 0 | AI59: 0 | AJ59: 0 | AK59: 0 | AL59: 0 | AM59: 0 | AN59: 0 | AO59: 0 | AP59: 100% | AS59: 0 | AT59: 0 | AU59: 0 | AV59: 0 | AW59: 1 | AX59: 0 | AY59: 0 | AZ59: 0 | BA59: 0 | BB59: 0 | BC59: 1 | BD59: 0 | BE59: 0 | BF59: 0 | BG59: 0 | BH59: 0 | BI59: 0 | BJ59: 0 | BT59: 0 | BU59: 0 | BV59: 0 | BW59: 0 | BX59: 0 | BY59: 0 | BZ59: 0 | CA59: 0 | CB59: 8 | CC59: 8 | CD59: 0 | CF59: 0 | CG59: 0 | CH59: 0 | CI59: 0 | CJ59: 0 | CK59: 0 | CL59: 0 | CM59: 0 | CN59: No | CO59: No | CP59: 0 | CQ59: * | CS59: No | CT59: No | CU59: No | CW59: 0
P60: 0 | Q60: 0 | S60: 0 | V60: =IF(AND($B$4>"BC-",M60>0),$B$4,"") ->  | AH60: 0 | AI60: 0 | AJ60: 0 | AK60: 0 | AL60: 0 | AM60: 0 | AN60: 0 | AO60: 0 | AP60: 100% | AS60: 0 | AT60: 0 | AU60: 0 | AV60: 0 | AW60: 1 | AX60: 0 | AY60: 0 | AZ60: 0 | BA60: 0 | BB60: 0 | BC60: 1 | BD60: 0 | BE60: 0 | BF60: 0 | BG60: 0 | BH60: 0 | BI60: 0 | BJ60: 0 | BM60: 52092 | BN60: 23363 | BO60: 29211 | BP60: 38446 | BQ60: 42139 | BR60: 31212 | BS60: 38267 | BT60: 0 | BU60: 0 | BV60: 0 | BW60: 0 | BX60: 0 | BY60: 0 | BZ60: 0 | CA60: 0 | CB60: 8 | CC60: 8 | CD60: 0 | CF60: 0 | CG60: 0 | CH60: 0 | CI60: 0 | CJ60: 0 | CK60: 0 | CL60: 0 | CM60: 0 | CN60: No | CO60: No | CP60: 0 | CQ60: * | CS60: No | CT60: No | CU60: No | CW60: 0
P61: 0 | Q61: 0 | S61: 0 | V61: =IF(AND($B$4>"BC-",M61>0),$B$4,"") ->  | AH61: 0 | AI61: 0 | AJ61: 0 | AK61: 0 | AL61: 0 | AM61: 0 | AN61: 0 | AO61: 0 | AP61: 100% | AS61: 0 | AT61: 0 | AU61: 0 | AV61: 0 | AW61: 1 | AX61: 0 | AY61: 0 | AZ61: 0 | BA61: 0 | BB61: 0 | BC61: 1 | BD61: 0 | BE61: 0 | BF61: 0 | BG61: 0 | BH61: 0 | BI61: 0 | BJ61: 0 | BT61: 0 | BU61: 0 | BV61: 0 | BW61: 0 | BX61: 0 | BY61: 0 | BZ61: 0 | CA61: 0 | CB61: 8 | CC61: 8 | CD61: 0 | CF61: 0 | CG61: 0 | CH61: 0 | CI61: 0 | CJ61: 0 | CK61: 0 | CL61: 0 | CM61: 0 | CN61: No | CO61: No | CP61: 0 | CQ61: * | CS61: No | CT61: No | CU61: No | CW61: 0
P62: 0 | Q62: 0 | S62: 0 | V62: =IF(AND($B$4>"BC-",M62>0),$B$4,"") ->  | AH62: 0 | AI62: 0 | AJ62: 0 | AK62: 0 | AL62: 0 | AM62: 0 | AN62: 0 | AO62: 0 | AP62: 100% | AS62: 0 | AT62: 0 | AU62: 0 | AV62: 0 | AW62: 1 | AX62: 0 | AY62: 0 | AZ62: 0 | BA62: 0 | BB62: 0 | BC62: 1 | BD62: 0 | BE62: 0 | BF62: 0 | BG62: 0 | BH62: 0 | BI62: 0 | BJ62: 0 | BT62: 0 | BU62: 0 | BV62: 0 | BW62: 0 | BX62: 0 | BY62: 0 | BZ62: 0 | CA62: 0 | CB62: 8 | CC62: 8 | CD62: 0 | CF62: 0 | CG62: 0 | CH62: 0 | CI62: 0 | CJ62: 0 | CK62: 0 | CL62: 0 | CM62: 0 | CN62: No | CO62: No | CP62: 0 | CQ62: * | CS62: No | CT62: No | CU62: No | CW62: 0
P63: 0 | Q63: 0 | S63: 0 | V63: =IF(AND($B$4>"BC-",M63>0),$B$4,"") ->  | AH63: 0 | AI63: 0 | AJ63: 0 | AK63: 0 | AL63: 0 | AM63: 0 | AN63: 0 | AO63: 0 | AP63: 100% | AS63: 0 | AT63: 0 | AU63: 0 | AV63: 0 | AW63: 1 | AX63: 0 | AY63: 0 | AZ63: 0 | BA63: 0 | BB63: 0 | BC63: 1 | BD63: 0 | BE63: 0 | BF63: 0 | BG63: 0 | BH63: 0 | BI63: 0 | BJ63: 0 | BT63: 0 | BU63: 0 | BV63: 0 | BW63: 0 | BX63: 0 | BY63: 0 | BZ63: 0 | CA63: 0 | CB63: 8 | CC63: 8 | CD63: 0 | CF63: 0 | CG63: 0 | CH63: 0 | CI63: 0 | CJ63: 0 | CK63: 0 | CL63: 0 | CM63: 0 | CN63: No | CO63: No | CP63: 0 | CQ63: * | CS63: No | CT63: No | CU63: No | CW63: 0
P64: 0 | Q64: 0 | S64: 0 | V64: =IF(AND($B$4>"BC-",M64>0),$B$4,"") ->  | AH64: 0 | AI64: 0 | AJ64: 0 | AK64: 0 | AL64: 0 | AM64: 0 | AN64: 0 | AO64: 0 | AP64: 100% | AS64: 0 | AT64: 0 | AU64: 0 | AV64: 0 | AW64: 1 | AX64: 0 | AY64: 0 | AZ64: 0 | BA64: 0 | BB64: 0 | BC64: 1 | BD64: 0 | BE64: 0 | BF64: 0 | BG64: 0 | BH64: 0 | BI64: 0 | BJ64: 0 | BT64: 0 | BU64: 0 | BV64: 0 | BW64: 0 | BX64: 0 | BY64: 0 | BZ64: 0 | CA64: 0 | CB64: 8 | CC64: 8 | CD64: 0 | CF64: 0 | CG64: 0 | CH64: 0 | CI64: 0 | CJ64: 0 | CK64: 0 | CL64: 0 | CM64: 0 | CN64: No | CO64: No | CP64: 0 | CQ64: * | CS64: No | CT64: No | CU64: No | CW64: 0
P65: 0 | Q65: 0 | S65: 0 | V65: =IF(AND($B$4>"BC-",M65>0),$B$4,"") ->  | AH65: 0 | AI65: 0 | AJ65: 0 | AK65: 0 | AL65: 0 | AM65: 0 | AN65: 0 | AO65: 0 | AP65: 100% | AS65: 0 | AT65: 0 | AU65: 0 | AV65: 0 | AW65: 1 | AX65: 0 | AY65: 0 | AZ65: 0 | BA65: 0 | BB65: 0 | BC65: 1 | BD65: 0 | BE65: 0 | BF65: 0 | BG65: 0 | BH65: 0 | BI65: 0 | BJ65: 0 | BT65: 0 | BU65: 0 | BV65: 0 | BW65: 0 | BX65: 0 | BY65: 0 | BZ65: 0 | CA65: 0 | CB65: 8 | CC65: 8 | CD65: 0 | CF65: 0 | CG65: 0 | CH65: 0 | CI65: 0 | CJ65: 0 | CK65: 0 | CL65: 0 | CM65: 0 | CN65: No | CO65: No | CP65: 0 | CQ65: * | CS65: No | CT65: No | CU65: No | CW65: 0
P66: 0 | Q66: 0 | S66: 0 | V66: =IF(AND($B$4>"BC-",M66>0),$B$4,"") ->  | AH66: 0 | AI66: 0 | AJ66: 0 | AK66: 0 | AL66: 0 | AM66: 0 | AN66: 0 | AO66: 0 | AP66: 100% | AS66: 0 | AT66: 0 | AU66: 0 | AV66: 0 | AW66: 1 | AX66: 0 | AY66: 0 | AZ66: 0 | BA66: 0 | BB66: 0 | BC66: 1 | BD66: 0 | BE66: 0 | BF66: 0 | BG66: 0 | BH66: 0 | BI66: 0 | BJ66: 0 | BT66: 0 | BU66: 0 | BV66: 0 | BW66: 0 | BX66: 0 | BY66: 0 | BZ66: 0 | CA66: 0 | CB66: 8 | CC66: 8 | CD66: 0 | CF66: 0 | CG66: 0 | CH66: 0 | CI66: 0 | CJ66: 0 | CK66: 0 | CL66: 0 | CM66: 0 | CN66: No | CO66: No | CP66: 0 | CQ66: * | CS66: No | CT66: No | CU66: No | CW66: 0
P67: 0 | Q67: 0 | S67: 0 | V67: =IF(AND($B$4>"BC-",M67>0),$B$4,"") ->  | AH67: 0 | AI67: 0 | AJ67: 0 | AK67: 0 | AL67: 0 | AM67: 0 | AN67: 0 | AO67: 0 | AP67: 100% | AS67: 0 | AT67: 0 | AU67: 0 | AV67: 0 | AW67: 1 | AX67: 0 | AY67: 0 | AZ67: 0 | BA67: 0 | BB67: 0 | BC67: 1 | BD67: 0 | BE67: 0 | BF67: 0 | BG67: 0 | BH67: 0 | BI67: 0 | BJ67: 0 | BT67: 0 | BU67: 0 | BV67: 0 | BW67: 0 | BX67: 0 | BY67: 0 | BZ67: 0 | CA67: 0 | CB67: 8 | CC67: 8 | CD67: 0 | CF67: 0 | CG67: 0 | CH67: 0 | CI67: 0 | CJ67: 0 | CK67: 0 | CL67: 0 | CM67: 0 | CN67: No | CO67: No | CP67: 0 | CQ67: * | CS67: No | CT67: No | CU67: No | CW67: 0
P68: 0 | Q68: 0 | S68: 0 | V68: =IF(AND($B$4>"BC-",M68>0),$B$4,"") ->  | AH68: 0 | AI68: 0 | AJ68: 0 | AK68: 0 | AL68: 0 | AM68: 0 | AN68: 0 | AO68: 0 | AP68: 100% | AS68: 0 | AT68: 0 | AU68: 0 | AV68: 0 | AW68: 1 | AX68: 0 | AY68: 0 | AZ68: 0 | BA68: 0 | BB68: 0 | BC68: 1 | BD68: 0 | BE68: 0 | BF68: 0 | BG68: 0 | BH68: 0 | BI68: 0 | BJ68: 0 | BT68: 0 | BU68: 0 | BV68: 0 | BW68: 0 | BX68: 0 | BY68: 0 | BZ68: 0 | CA68: 0 | CB68: 8 | CC68: 8 | CD68: 0 | CF68: 0 | CG68: 0 | CH68: 0 | CI68: 0 | CJ68: 0 | CK68: 0 | CL68: 0 | CM68: 0 | CN68: No | CO68: No | CP68: 0 | CQ68: * | CS68: No | CT68: No | CU68: No | CW68: 0
P69: 0 | Q69: 0 | S69: 0 | V69: =IF(AND($B$4>"BC-",M69>0),$B$4,"") ->  | AH69: 0 | AI69: 0 | AJ69: 0 | AK69: 0 | AL69: 0 | AM69: 0 | AN69: 0 | AO69: 0 | AP69: 100% | AS69: 0 | AT69: 0 | AU69: 0 | AV69: 0 | AW69: 1 | AX69: 0 | AY69: 0 | AZ69: 0 | BA69: 0 | BB69: 0 | BC69: 1 | BD69: 0 | BE69: 0 | BF69: 0 | BG69: 0 | BH69: 0 | BI69: 0 | BJ69: 0 | BT69: 0 | BU69: 0 | BV69: 0 | BW69: 0 | BX69: 0 | BY69: 0 | BZ69: 0 | CA69: 0 | CB69: 8 | CC69: 8 | CD69: 0 | CF69: 0 | CG69: 0 | CH69: 0 | CI69: 0 | CJ69: 0 | CK69: 0 | CL69: 0 | CM69: 0 | CN69: No | CO69: No | CP69: 0 | CQ69: * | CS69: No | CT69: No | CU69: No | CW69: 0
P70: 0 | Q70: 0 | S70: 0 | V70: =IF(AND($B$4>"BC-",M70>0),$B$4,"") ->  | AH70: 0 | AI70: 0 | AJ70: 0 | AK70: 0 | AL70: 0 | AM70: 0 | AN70: 0 | AO70: 0 | AP70: 100% | AS70: 0 | AT70: 0 | AU70: 0 | AV70: 0 | AW70: 1 | AX70: 0 | AY70: 0 | AZ70: 0 | BA70: 0 | BB70: 0 | BC70: 1 | BD70: 0 | BE70: 0 | BF70: 0 | BG70: 0 | BH70: 0 | BI70: 0 | BJ70: 0 | BM70: 82509 | BN70: 36746 | BO70: 46062 | BP70: 60772 | BQ70: 66655 | BR70: 49249 | BS70: 58428 | BT70: 0 | BU70: 0 | BV70: 0 | BW70: 0 | BX70: 0 | BY70: 0 | BZ70: 0 | CA70: 0 | CB70: 8 | CC70: 8 | CD70: 0 | CF70: 0 | CG70: 0 | CH70: 0 | CI70: 0 | CJ70: 0 | CK70: 0 | CL70: 0 | CM70: 0 | CN70: No | CO70: No | CP70: 0 | CQ70: * | CS70: No | CT70: No | CU70: No | CW70: 0
P71: 0 | Q71: 0 | S71: 0 | V71: =IF(AND($B$4>"BC-",M71>0),$B$4,"") ->  | AH71: 0 | AI71: 0 | AJ71: 0 | AK71: 0 | AL71: 0 | AM71: 0 | AN71: 0 | AO71: 0 | AP71: 100% | AS71: 0 | AT71: 0 | AU71: 0 | AV71: 0 | AW71: 1 | AX71: 0 | AY71: 0 | AZ71: 0 | BA71: 0 | BB71: 0 | BC71: 1 | BD71: 0 | BE71: 0 | BF71: 0 | BG71: 0 | BH71: 0 | BI71: 0 | BJ71: 0 | BT71: 0 | BU71: 0 | BV71: 0 | BW71: 0 | BX71: 0 | BY71: 0 | BZ71: 0 | CA71: 0 | CB71: 8 | CC71: 8 | CD71: 0 | CF71: 0 | CG71: 0 | CH71: 0 | CI71: 0 | CJ71: 0 | CK71: 0 | CL71: 0 | CM71: 0 | CN71: No | CO71: No | CP71: 0 | CQ71: * | CS71: No | CT71: No | CU71: No | CW71: 0
P72: 0 | Q72: 0 | S72: 0 | V72: =IF(AND($B$4>"BC-",M72>0),$B$4,"") ->  | AH72: 0 | AI72: 0 | AJ72: 0 | AK72: 0 | AL72: 0 | AM72: 0 | AN72: 0 | AO72: 0 | AP72: 100% | AS72: 0 | AT72: 0 | AU72: 0 | AV72: 0 | AW72: 1 | AX72: 0 | AY72: 0 | AZ72: 0 | BA72: 0 | BB72: 0 | BC72: 1 | BD72: 0 | BE72: 0 | BF72: 0 | BG72: 0 | BH72: 0 | BI72: 0 | BJ72: 0 | BT72: 0 | BU72: 0 | BV72: 0 | BW72: 0 | BX72: 0 | BY72: 0 | BZ72: 0 | CA72: 0 | CB72: 8 | CC72: 8 | CD72: 0 | CF72: 0 | CG72: 0 | CH72: 0 | CI72: 0 | CJ72: 0 | CK72: 0 | CL72: 0 | CM72: 0 | CN72: No | CO72: No | CP72: 0 | CQ72: * | CS72: No | CT72: No | CU72: No | CW72: 0
P73: 0 | Q73: 0 | S73: 0 | V73: =IF(AND($B$4>"BC-",M73>0),$B$4,"") ->  | AH73: 0 | AI73: 0 | AJ73: 0 | AK73: 0 | AL73: 0 | AM73: 0 | AN73: 0 | AO73: 0 | AP73: 100% | AS73: 0 | AT73: 0 | AU73: 0 | AV73: 0 | AW73: 1 | AX73: 0 | AY73: 0 | AZ73: 0 | BA73: 0 | BB73: 0 | BC73: 1 | BD73: 0 | BE73: 0 | BF73: 0 | BG73: 0 | BH73: 0 | BI73: 0 | BJ73: 0 | BT73: 0 | BU73: 0 | BV73: 0 | BW73: 0 | BX73: 0 | BY73: 0 | BZ73: 0 | CA73: 0 | CB73: 8 | CC73: 8 | CD73: 0 | CF73: 0 | CG73: 0 | CH73: 0 | CI73: 0 | CJ73: 0 | CK73: 0 | CL73: 0 | CM73: 0 | CN73: No | CO73: No | CP73: 0 | CQ73: * | CS73: No | CT73: No | CU73: No | CW73: 0
P74: 0 | Q74: 0 | S74: 0 | V74: =IF(AND($B$4>"BC-",M74>0),$B$4,"") ->  | AH74: 0 | AI74: 0 | AJ74: 0 | AK74: 0 | AL74: 0 | AM74: 0 | AN74: 0 | AO74: 0 | AP74: 100% | AS74: 0 | AT74: 0 | AU74: 0 | AV74: 0 | AW74: 1 | AX74: 0 | AY74: 0 | AZ74: 0 | BA74: 0 | BB74: 0 | BC74: 1 | BD74: 0 | BE74: 0 | BF74: 0 | BG74: 0 | BH74: 0 | BI74: 0 | BJ74: 0 | BT74: 0 | BU74: 0 | BV74: 0 | BW74: 0 | BX74: 0 | BY74: 0 | BZ74: 0 | CA74: 0 | CB74: 8 | CC74: 8 | CD74: 0 | CF74: 0 | CG74: 0 | CH74: 0 | CI74: 0 | CJ74: 0 | CK74: 0 | CL74: 0 | CM74: 0 | CN74: No | CO74: No | CP74: 0 | CQ74: * | CS74: No | CT74: No | CU74: No | CW74: 0
P75: =IF(M75>0,INDEX($BM$1:$BS$903,BT75,CB75),0) -> 0 | Q75: =IF(AND(NOT(ISBLANK(I75)),I75=0),0,CM75) -> 0 | S75: 0 | V75: =IF(AND($B$4>"BC-",M75>0),$B$4,"") ->  | AH75: 0 | AI75: =IF(AND(C75<45351,D75>45351),(D75-C75)-1,D75-C75) -> 0 | AJ75: =IF(AND(C75<45351,D75>45351,E75<45351),(E75-D75)+1,(E75-D75)) -> 0 | AK75: 0 | AL75: 0 | AM75: 0 | AN75: 0 | AO75: 0 | AP75: 100% | AS75: 0 | AT75: 0 | AU75: 0 | AV75: 0 | AW75: 1 | AX75: 0 | AY75: 0 | AZ75: 0 | BA75: 0 | BB75: 0 | BC75: 1 | BD75: 0 | BE75: 0 | BF75: 0 | BG75: 0 | BH75: 0 | BI75: 0 | BJ75: 0 | BT75: 0 | BU75: 0 | BV75: 0 | BW75: 0 | BX75: 0 | BY75: 0 | BZ75: 0 | CA75: 0 | CB75: 8 | CC75: 8 | CD75: 0 | CF75: 0 | CG75: 0 | CH75: 0 | CI75: 0 | CJ75: 0 | CK75: 0 | CL75: =IF(OR(CJ75=120,CJ75=130),CK75,CK75) -> 0 | CM75: 0 | CN75: No | CO75: No | CP75: 0 | CQ75: * | CS75: No | CT75: No | CU75: No | CW75: 0
P76: 0 | Q76: 0 | S76: =IF(OR(H76="ERP",H76="PA",H76="SAT",H76="IT"),CM76,Q76*(100%-R76)+T76) -> 0 | V76: =IF(AND($B$4>"BC-",M76>0),$B$4,"") ->  | AG76: =VALUE(AJ76)*((AO76+BJ76)*$AA$1)/AI76 ->  | AH76: =((AO76+BJ76)*$AA$1) -> 0 | AI76: 0 | AJ76: 0 | AK76: =P76/365 -> 0 | AL76: =AI76*AK76 -> 0 | AM76: =AL76*AP76 -> 0 | AN76: =AW76*AM76 -> 0 | AO76: =BC76*AN76 -> 0 | AP76: =IF(OR(I76=1,I76=0),"100%",I76) -> 100% | AS76: =IF(J76=8,50%,0) -> 0 | AT76: 0 | AU76: 0 | AV76: =SUM(AS76:AU76) -> 0 | AW76: =IF(AV76=0,100%,AV76) -> 1 | AX76: =IF(OR(K76="R", K76="F"),50%,0) -> 0 | AY76: =IF(K76="Y1",25%,0) -> 0 | AZ76: =IF(K76="Y2",50%,0) -> 0 | BA76: =IF(K76="Y3",75%,0) -> 0 | BB76: =SUM(AX76:BA76) -> 0 | BC76: =IF(BB76=0,100%,BB76) -> 1 | BD76: =IF(AND(L76="DX",N76<"02001"),IF(OR(M76=51),10106),"0") -> 0 | BE76: =IF(AND(L76="DX",N76<"02001",M76<>23,M76<>51,M76<>2,M76<>43,M76<>63,M76<>65,M76<>9,M76<>46,M76<>54,M76<>15,M76<>35,M76<>45,M76<>6,M76<>7,M76<>21,M76<>22,M76<>25,M76<>39,M76<>40,M76<>48,M76<>67),5558,"0") -> 0 | BF76: =IF(AND(L76="DX",N76<"02001"),IF(OR(M76=2,M76=3,M76=22,M76=33,M76=63,M76=65),6063),"0") -> 0 | BG76: =IF(AND(L76="DX",N76<"02001"),IF(OR(M76=9,M76=26,M76=35,M76=40,M76=43,M76=46),8591),"0") -> 0 | BH76: =IF(AND(L76="DX",N76<"02001"),IF(OR(M76=23),8591),"0") -> 0 | BI76: =IF(AND(L76="DX",N76<"02001"),IF(OR(M76=7,M76=15,M76=19,M76=20,M76=25,M76=37,M76=45,M76=48,M76=54),6063),"0") -> 0 | BJ76: =SUM(BD76:BI76) -> 0 | BT76: =LEFT(CD76,3) -> 0 | BU76: =IF(OR(M76=51),1,"0") -> 0 | BV76: =IF(OR(M76=4,M76=13,M76=17,M76=3,M76=33,M76=23,M76=51,M76=2,M76=26,M76=37,M76=63,M76=65,M76=9,M76=35,M76=46,M76=15,M76=45,M76=7,M76=19,M76=20,M76=22,M76=25,M76=39,M76=40,M76=43,M76=48, M76=54,M76=0),0,"2") -> 0 | BW76: =IF(OR(M76=2,M76=3,M76=4,M76=13,M76=17,M76=22,M76=33,M76=63),3,"0") -> 0 | BX76: =IF(OR(M76=23,M76=26,M76=40,M76=43),4,"0") -> 0 | BY76: =IF(OR(M76=35),5,"0") -> 0 | BZ76: =IF(OR(M76=9,M76=15,M76=19,M76=20,M76=25,M76=37,M76=39,M76=45,M76=46,M76=48,M76=54,M76=65),6,"0") -> 0 | CA76: =IF(M76=7,7,0) -> 0 | CB76: =SUM(BU76+BV76+BW76+BX76+BY76+BZ76+CA76+CC76) -> 8 | CC76: =IF(M76=0,8,0) -> 8 | CD76: =IF(N76="00651","00551",IF(AND(N76="80993"),"12093",IF(AND(N76="80994"),"13094",N76))) -> 0 | CF76: =IF(OR(CJ76=70, CJ76=80, CJ76=90, CJ76=100, CJ76=801),CK76*0%,"0") -> 0 | CG76: =IF(OR(CJ76=6,CJ76=7,CJ76=10,CJ76=12,CJ76=15,CJ76=20,CJ76=22,CJ76=30,CJ76=35,CJ76=50,CJ76=60),CK76*50%,"0") -> 0 | CH76: =IF(OR(CJ76=120,CJ76=130),CK76,"0") -> 0 | CI76: =SUM(CF76:CH76) -> 0 | CJ76: =VALUE(BT76) -> 0 | CK76: =ROUND(IF(E76>1,VALUE(AG76),VALUE(AH76)),0) -> 0 | CL76: 0 | CM76: =IF(OR(H76="ERP",H76="PA",H76="SAT",H76="IT"),"0",CL76) -> 0 | CN76: =IF(AND(U76="New",F76<C76),"Yes","No") -> No | CO76: =IF(AND(U76="New",F76=C76),"Yes","No") -> No | CP76: =IF(CO76="Yes",CQ76,G76) -> 0 | CQ76: =CONCATENATE(G76,$CP$9) -> * | CS76: =IF(OR(N76="02083",N76="01520",N76="07043",N76="00508",N76="01522"),"Yes","No") -> No | CT76: =IF(L76="S","Yes","No") -> No | CU76: =IF(AND(CS76="Yes", CT76="Yes"),"Yes","No") -> No | CW76: 0
P77: 0 | Q77: 0 | S77: 0 | V77: =IF(AND($B$4>"BC-",M77>0),$B$4,"") ->  | AH77: 0 | AI77: 0 | AJ77: 0 | AK77: 0 | AL77: 0 | AM77: 0 | AN77: 0 | AO77: 0 | AP77: 100% | AS77: 0 | AT77: 0 | AU77: 0 | AV77: 0 | AW77: 1 | AX77: 0 | AY77: 0 | AZ77: 0 | BA77: 0 | BB77: 0 | BC77: 1 | BD77: 0 | BE77: 0 | BF77: 0 | BG77: 0 | BH77: 0 | BI77: 0 | BJ77: 0 | BT77: 0 | BU77: 0 | BV77: 0 | BW77: 0 | BX77: 0 | BY77: 0 | BZ77: 0 | CA77: 0 | CB77: 8 | CC77: 8 | CD77: 0 | CF77: 0 | CG77: 0 | CH77: 0 | CI77: 0 | CJ77: 0 | CK77: 0 | CL77: 0 | CM77: 0 | CN77: No | CO77: No | CP77: 0 | CQ77: * | CS77: No | CT77: No | CU77: No | CW77: =IF(OR(H77="ERP",H77="PA",H77="SAT"),CM77,Q77*(100%-R77)+T77) -> 0
P78: 0 | Q78: 0 | S78: 0 | V78: =IF(AND($B$4>"BC-",M78>0),$B$4,"") ->  | AH78: 0 | AI78: 0 | AJ78: 0 | AK78: 0 | AL78: 0 | AM78: 0 | AN78: 0 | AO78: 0 | AP78: 100% | AS78: 0 | AT78: 0 | AU78: 0 | AV78: 0 | AW78: 1 | AX78: 0 | AY78: 0 | AZ78: 0 | BA78: 0 | BB78: 0 | BC78: 1 | BD78: 0 | BE78: 0 | BF78: 0 | BG78: 0 | BH78: 0 | BI78: 0 | BJ78: 0 | BT78: 0 | BU78: 0 | BV78: 0 | BW78: 0 | BX78: 0 | BY78: 0 | BZ78: 0 | CA78: 0 | CB78: 8 | CC78: 8 | CD78: 0 | CF78: 0 | CG78: 0 | CH78: 0 | CI78: 0 | CJ78: 0 | CK78: 0 | CL78: 0 | CM78: 0 | CN78: No | CO78: No | CP78: 0 | CQ78: * | CS78: No | CT78: No | CU78: No | CW78: 0
P79: 0 | Q79: 0 | S79: 0 | V79: =IF(AND($B$4>"BC-",M79>0),$B$4,"") ->  | AH79: 0 | AI79: 0 | AJ79: 0 | AK79: 0 | AL79: 0 | AM79: 0 | AN79: 0 | AO79: 0 | AP79: 100% | AS79: 0 | AT79: =IF(J79=16,65%,0) -> 0 | AU79: =IF(J79=24,80%,0) -> 0 | AV79: 0 | AW79: 1 | AX79: 0 | AY79: 0 | AZ79: 0 | BA79: 0 | BB79: 0 | BC79: 1 | BD79: 0 | BE79: 0 | BF79: 0 | BG79: 0 | BH79: 0 | BI79: 0 | BJ79: 0 | BT79: 0 | BU79: 0 | BV79: 0 | BW79: 0 | BX79: 0 | BY79: 0 | BZ79: 0 | CA79: 0 | CB79: 8 | CC79: 8 | CD79: 0 | CF79: 0 | CG79: 0 | CH79: 0 | CI79: 0 | CJ79: 0 | CK79: 0 | CL79: 0 | CM79: 0 | CN79: No | CO79: No | CP79: 0 | CQ79: * | CS79: No | CT79: No | CU79: No | CW79: 0
P80: 0 | Q80: 0 | S80: 0 | V80: =IF(AND($B$4>"BC-",M80>0),$B$4,"") ->  | AH80: 0 | AI80: 0 | AJ80: 0 | AK80: 0 | AL80: 0 | AM80: 0 | AN80: 0 | AO80: 0 | AP80: 100% | AS80: 0 | AT80: 0 | AU80: 0 | AV80: 0 | AW80: 1 | AX80: 0 | AY80: 0 | AZ80: 0 | BA80: 0 | BB80: 0 | BC80: 1 | BD80: 0 | BE80: 0 | BF80: 0 | BG80: 0 | BH80: 0 | BI80: 0 | BJ80: 0 | BM80: 102525 | BN80: 45554 | BO80: 57151 | BP80: 75464 | BQ80: 82789 | BR80: 61119 | BS80: 69988 | BT80: 0 | BU80: 0 | BV80: 0 | BW80: 0 | BX80: 0 | BY80: 0 | BZ80: 0 | CA80: 0 | CB80: 8 | CC80: 8 | CD80: 0 | CF80: 0 | CG80: 0 | CH80: 0 | CI80: 0 | CJ80: 0 | CK80: 0 | CL80: 0 | CM80: 0 | CN80: No | CO80: No | CP80: 0 | CQ80: * | CS80: No | CT80: No | CU80: No | CW80: 0
P81: 0 | Q81: 0 | S81: 0 | V81: =IF(AND($B$4>"BC-",M81>0),$B$4,"") ->  | AH81: 0 | AI81: 0 | AJ81: 0 | AK81: 0 | AL81: 0 | AM81: 0 | AN81: 0 | AO81: 0 | AP81: 100% | AS81: 0 | AT81: 0 | AU81: 0 | AV81: 0 | AW81: 1 | AX81: 0 | AY81: 0 | AZ81: 0 | BA81: 0 | BB81: 0 | BC81: 1 | BD81: 0 | BE81: 0 | BF81: 0 | BG81: 0 | BH81: 0 | BI81: 0 | BJ81: 0 | BT81: 0 | BU81: 0 | BV81: 0 | BW81: 0 | BX81: 0 | BY81: 0 | BZ81: 0 | CA81: 0 | CB81: 8 | CC81: 8 | CD81: 0 | CF81: 0 | CG81: 0 | CH81: 0 | CI81: 0 | CJ81: 0 | CK81: 0 | CL81: 0 | CM81: 0 | CN81: No | CO81: No | CP81: 0 | CQ81: * | CS81: No | CT81: No | CU81: No | CW81: 0
P82: 0 | Q82: 0 | S82: 0 | V82: =IF(AND($B$4>"BC-",M82>0),$B$4,"") ->  | AH82: 0 | AI82: 0 | AJ82: 0 | AK82: 0 | AL82: 0 | AM82: 0 | AN82: 0 | AO82: 0 | AP82: 100% | AS82: 0 | AT82: 0 | AU82: 0 | AV82: 0 | AW82: 1 | AX82: 0 | AY82: 0 | AZ82: 0 | BA82: 0 | BB82: 0 | BC82: 1 | BD82: 0 | BE82: 0 | BF82: 0 | BG82: 0 | BH82: 0 | BI82: 0 | BJ82: 0 | BT82: 0 | BU82: 0 | BV82: 0 | BW82: 0 | BX82: 0 | BY82: 0 | BZ82: 0 | CA82: 0 | CB82: 8 | CC82: 8 | CD82: 0 | CF82: 0 | CG82: 0 | CH82: 0 | CI82: 0 | CJ82: 0 | CK82: 0 | CL82: 0 | CM82: 0 | CN82: No | CO82: No | CP82: 0 | CQ82: * | CS82: No | CT82: No | CU82: No | CW82: 0
P83: 0 | Q83: 0 | S83: 0 | V83: =IF(AND($B$4>"BC-",M83>0),$B$4,"") ->  | AH83: 0 | AI83: 0 | AJ83: 0 | AK83: 0 | AL83: 0 | AM83: 0 | AN83: 0 | AO83: 0 | AP83: 100% | AS83: 0 | AT83: 0 | AU83: 0 | AV83: 0 | AW83: 1 | AX83: 0 | AY83: 0 | AZ83: 0 | BA83: 0 | BB83: 0 | BC83: 1 | BD83: 0 | BE83: 0 | BF83: 0 | BG83: 0 | BH83: 0 | BI83: 0 | BJ83: 0 | BT83: 0 | BU83: 0 | BV83: 0 | BW83: 0 | BX83: 0 | BY83: 0 | BZ83: 0 | CA83: 0 | CB83: 8 | CC83: 8 | CD83: 0 | CF83: 0 | CG83: 0 | CH83: 0 | CI83: 0 | CJ83: 0 | CK83: 0 | CL83: 0 | CM83: 0 | CN83: No | CO83: No | CP83: 0 | CQ83: * | CS83: No | CT83: No | CU83: No | CW83: 0
P84: 0 | Q84: 0 | S84: 0 | V84: =IF(AND($B$4>"BC-",M84>0),$B$4,"") ->  | AH84: 0 | AI84: 0 | AJ84: 0 | AK84: 0 | AL84: 0 | AM84: 0 | AN84: 0 | AO84: 0 | AP84: 100% | AS84: 0 | AT84: 0 | AU84: 0 | AV84: 0 | AW84: 1 | AX84: 0 | AY84: 0 | AZ84: 0 | BA84: 0 | BB84: 0 | BC84: 1 | BD84: 0 | BE84: 0 | BF84: 0 | BG84: 0 | BH84: 0 | BI84: 0 | BJ84: 0 | BT84: 0 | BU84: 0 | BV84: 0 | BW84: 0 | BX84: 0 | BY84: 0 | BZ84: 0 | CA84: 0 | CB84: 8 | CC84: 8 | CD84: 0 | CF84: 0 | CG84: 0 | CH84: 0 | CI84: 0 | CJ84: 0 | CK84: 0 | CL84: 0 | CM84: 0 | CN84: No | CO84: No | CP84: 0 | CQ84: * | CS84: No | CT84: No | CU84: No | CW84: 0
P85: 0 | Q85: 0 | S85: 0 | V85: =IF(AND($B$4>"BC-",M85>0),$B$4,"") ->  | AH85: 0 | AI85: 0 | AJ85: 0 | AK85: 0 | AL85: 0 | AM85: 0 | AN85: 0 | AO85: 0 | AP85: 100% | AS85: 0 | AT85: 0 | AU85: 0 | AV85: 0 | AW85: 1 | AX85: 0 | AY85: 0 | AZ85: 0 | BA85: 0 | BB85: 0 | BC85: 1 | BD85: 0 | BE85: 0 | BF85: 0 | BG85: 0 | BH85: 0 | BI85: 0 | BJ85: 0 | BT85: 0 | BU85: 0 | BV85: 0 | BW85: 0 | BX85: 0 | BY85: 0 | BZ85: 0 | CA85: 0 | CB85: 8 | CC85: 8 | CD85: 0 | CF85: 0 | CG85: 0 | CH85: 0 | CI85: 0 | CJ85: 0 | CK85: 0 | CL85: 0 | CM85: 0 | CN85: No | CO85: No | CP85: 0 | CQ85: * | CS85: No | CT85: No | CU85: No | CW85: 0
P86: 0 | Q86: 0 | S86: 0 | V86: =IF(AND($B$4>"BC-",M86>0),$B$4,"") ->  | AH86: 0 | AI86: 0 | AJ86: 0 | AK86: 0 | AL86: 0 | AM86: 0 | AN86: 0 | AO86: 0 | AP86: 100% | AS86: 0 | AT86: 0 | AU86: 0 | AV86: 0 | AW86: 1 | AX86: 0 | AY86: 0 | AZ86: 0 | BA86: 0 | BB86: 0 | BC86: 1 | BD86: 0 | BE86: 0 | BF86: 0 | BG86: 0 | BH86: 0 | BI86: 0 | BJ86: 0 | BT86: 0 | BU86: 0 | BV86: 0 | BW86: 0 | BX86: 0 | BY86: 0 | BZ86: 0 | CA86: 0 | CB86: 8 | CC86: 8 | CD86: 0 | CF86: 0 | CG86: 0 | CH86: 0 | CI86: 0 | CJ86: 0 | CK86: 0 | CL86: 0 | CM86: 0 | CN86: No | CO86: No | CP86: 0 | CQ86: * | CS86: No | CT86: No | CU86: No | CW86: 0
P87: 0 | Q87: 0 | S87: 0 | V87: =IF(AND($B$4>"BC-",M87>0),$B$4,"") ->  | AH87: 0 | AI87: 0 | AJ87: 0 | AK87: 0 | AL87: 0 | AM87: 0 | AN87: 0 | AO87: 0 | AP87: 100% | AS87: 0 | AT87: 0 | AU87: 0 | AV87: 0 | AW87: 1 | AX87: 0 | AY87: 0 | AZ87: 0 | BA87: 0 | BB87: 0 | BC87: 1 | BD87: 0 | BE87: 0 | BF87: 0 | BG87: 0 | BH87: 0 | BI87: 0 | BJ87: 0 | BT87: 0 | BU87: 0 | BV87: 0 | BW87: 0 | BX87: 0 | BY87: 0 | BZ87: 0 | CA87: 0 | CB87: 8 | CC87: 8 | CD87: 0 | CF87: 0 | CG87: 0 | CH87: 0 | CI87: 0 | CJ87: 0 | CK87: 0 | CL87: 0 | CM87: 0 | CN87: No | CO87: No | CP87: 0 | CQ87: * | CS87: No | CT87: No | CU87: No | CW87: 0
P88: 0 | Q88: 0 | S88: 0 | V88: =IF(AND($B$4>"BC-",M88>0),$B$4,"") ->  | AH88: 0 | AI88: 0 | AJ88: 0 | AK88: 0 | AL88: 0 | AM88: 0 | AN88: 0 | AO88: 0 | AP88: 100% | AS88: 0 | AT88: 0 | AU88: 0 | AV88: 0 | AW88: 1 | AX88: 0 | AY88: 0 | AZ88: 0 | BA88: 0 | BB88: 0 | BC88: 1 | BD88: 0 | BE88: 0 | BF88: 0 | BG88: 0 | BH88: 0 | BI88: 0 | BJ88: 0 | BT88: 0 | BU88: 0 | BV88: 0 | BW88: 0 | BX88: 0 | BY88: 0 | BZ88: 0 | CA88: 0 | CB88: 8 | CC88: 8 | CD88: 0 | CF88: 0 | CG88: 0 | CH88: 0 | CI88: 0 | CJ88: 0 | CK88: 0 | CL88: 0 | CM88: 0 | CN88: No | CO88: No | CP88: 0 | CQ88: * | CS88: No | CT88: No | CU88: No | CW88: 0
P89: 0 | Q89: 0 | S89: 0 | V89: =IF(AND($B$4>"BC-",M89>0),$B$4,"") ->  | AH89: 0 | AI89: 0 | AJ89: 0 | AK89: 0 | AL89: 0 | AM89: 0 | AN89: 0 | AO89: 0 | AP89: 100% | AS89: 0 | AT89: 0 | AU89: 0 | AV89: 0 | AW89: 1 | AX89: 0 | AY89: 0 | AZ89: 0 | BA89: 0 | BB89: 0 | BC89: 1 | BD89: 0 | BE89: 0 | BF89: 0 | BG89: 0 | BH89: 0 | BI89: 0 | BJ89: 0 | BT89: 0 | BU89: 0 | BV89: 0 | BW89: 0 | BX89: 0 | BY89: 0 | BZ89: 0 | CA89: 0 | CB89: 8 | CC89: 8 | CD89: 0 | CF89: 0 | CG89: 0 | CH89: 0 | CI89: 0 | CJ89: 0 | CK89: 0 | CL89: 0 | CM89: 0 | CN89: No | CO89: No | CP89: 0 | CQ89: * | CS89: No | CT89: No | CU89: No | CW89: 0
P90: 0 | Q90: 0 | S90: 0 | V90: =IF(AND($B$4>"BC-",M90>0),$B$4,"") ->  | AH90: 0 | AI90: 0 | AJ90: 0 | AK90: 0 | AL90: 0 | AM90: 0 | AN90: 0 | AO90: 0 | AP90: 100% | AS90: 0 | AT90: 0 | AU90: 0 | AV90: 0 | AW90: 1 | AX90: 0 | AY90: 0 | AZ90: 0 | BA90: 0 | BB90: 0 | BC90: 1 | BD90: 0 | BE90: 0 | BF90: 0 | BG90: 0 | BH90: 0 | BI90: 0 | BJ90: 0 | BM90: 55121 | BN90: 24696 | BO90: 30889 | BP90: 40669 | BQ90: 44581 | BR90: 33008 | BS90: 40669 | BT90: 0 | BU90: 0 | BV90: 0 | BW90: 0 | BX90: 0 | BY90: 0 | BZ90: 0 | CA90: 0 | CB90: 8 | CC90: 8 | CD90: 0 | CF90: 0 | CG90: 0 | CH90: 0 | CI90: 0 | CJ90: 0 | CK90: 0 | CL90: 0 | CM90: 0 | CN90: No | CO90: No | CP90: 0 | CQ90: * | CS90: No | CT90: No | CU90: No | CW90: 0
P91: 0 | Q91: 0 | S91: 0 | V91: =IF(AND($B$4>"BC-",M91>0),$B$4,"") ->  | AH91: 0 | AI91: 0 | AJ91: 0 | AK91: 0 | AL91: 0 | AM91: 0 | AN91: 0 | AO91: 0 | AP91: 100% | AS91: 0 | AT91: 0 | AU91: 0 | AV91: 0 | AW91: 1 | AX91: 0 | AY91: 0 | AZ91: 0 | BA91: 0 | BB91: 0 | BC91: 1 | BD91: 0 | BE91: 0 | BF91: 0 | BG91: 0 | BH91: 0 | BI91: 0 | BJ91: 0 | BT91: 0 | BU91: 0 | BV91: 0 | BW91: 0 | BX91: 0 | BY91: 0 | BZ91: 0 | CA91: 0 | CB91: 8 | CC91: 8 | CD91: 0 | CF91: 0 | CG91: 0 | CH91: 0 | CI91: 0 | CJ91: 0 | CK91: 0 | CL91: 0 | CM91: 0 | CN91: No | CO91: No | CP91: 0 | CQ91: * | CS91: No | CT91: No | CU91: No | CW91: 0
P92: 0 | Q92: 0 | S92: 0 | V92: =IF(AND($B$4>"BC-",M92>0),$B$4,"") ->  | AH92: 0 | AI92: 0 | AJ92: 0 | AK92: 0 | AL92: 0 | AM92: 0 | AN92: 0 | AO92: 0 | AP92: 100% | AS92: 0 | AT92: 0 | AU92: 0 | AV92: 0 | AW92: 1 | AX92: 0 | AY92: 0 | AZ92: 0 | BA92: 0 | BB92: 0 | BC92: 1 | BD92: 0 | BE92: 0 | BF92: 0 | BG92: 0 | BH92: 0 | BI92: 0 | BJ92: 0 | BT92: 0 | BU92: 0 | BV92: 0 | BW92: 0 | BX92: 0 | BY92: 0 | BZ92: 0 | CA92: 0 | CB92: 8 | CC92: 8 | CD92: 0 | CF92: 0 | CG92: 0 | CH92: 0 | CI92: 0 | CJ92: 0 | CK92: 0 | CL92: 0 | CM92: 0 | CN92: No | CO92: No | CP92: 0 | CQ92: * | CS92: No | CT92: No | CU92: No | CW92: 0
P93: 0 | Q93: 0 | S93: 0 | V93: =IF(AND($B$4>"BC-",M93>0),$B$4,"") ->  | AH93: 0 | AI93: 0 | AJ93: 0 | AK93: 0 | AL93: 0 | AM93: 0 | AN93: 0 | AO93: 0 | AP93: 100% | AS93: 0 | AT93: 0 | AU93: 0 | AV93: 0 | AW93: 1 | AX93: 0 | AY93: 0 | AZ93: 0 | BA93: 0 | BB93: 0 | BC93: 1 | BD93: 0 | BE93: 0 | BF93: 0 | BG93: 0 | BH93: 0 | BI93: 0 | BJ93: 0 | BT93: 0 | BU93: 0 | BV93: 0 | BW93: 0 | BX93: 0 | BY93: 0 | BZ93: 0 | CA93: 0 | CB93: 8 | CC93: 8 | CD93: 0 | CF93: 0 | CG93: 0 | CH93: 0 | CI93: 0 | CJ93: 0 | CK93: 0 | CL93: 0 | CM93: 0 | CN93: No | CO93: No | CP93: 0 | CQ93: * | CS93: No | CT93: No | CU93: No | CW93: 0
P94: 0 | Q94: 0 | S94: 0 | V94: =IF(AND($B$4>"BC-",M94>0),$B$4,"") ->  | AH94: 0 | AI94: 0 | AJ94: 0 | AK94: 0 | AL94: 0 | AM94: 0 | AN94: 0 | AO94: 0 | AP94: 100% | AS94: 0 | AT94: 0 | AU94: 0 | AV94: 0 | AW94: 1 | AX94: 0 | AY94: 0 | AZ94: 0 | BA94: 0 | BB94: 0 | BC94: 1 | BD94: 0 | BE94: 0 | BF94: 0 | BG94: 0 | BH94: 0 | BI94: 0 | BJ94: 0 | BT94: 0 | BU94: 0 | BV94: 0 | BW94: 0 | BX94: 0 | BY94: 0 | BZ94: 0 | CA94: 0 | CB94: 8 | CC94: 8 | CD94: 0 | CF94: 0 | CG94: 0 | CH94: 0 | CI94: 0 | CJ94: 0 | CK94: 0 | CL94: 0 | CM94: 0 | CN94: No | CO94: No | CP94: 0 | CQ94: * | CS94: No | CT94: No | CU94: No | CW94: 0
P95: 0 | Q95: 0 | S95: 0 | V95: =IF(AND($B$4>"BC-",M95>0),$B$4,"") ->  | AH95: 0 | AI95: 0 | AJ95: 0 | AK95: 0 | AL95: 0 | AM95: 0 | AN95: 0 | AO95: 0 | AP95: 100% | AS95: 0 | AT95: 0 | AU95: 0 | AV95: 0 | AW95: 1 | AX95: 0 | AY95: 0 | AZ95: 0 | BA95: 0 | BB95: 0 | BC95: 1 | BD95: 0 | BE95: 0 | BF95: 0 | BG95: 0 | BH95: 0 | BI95: 0 | BJ95: 0 | BT95: 0 | BU95: 0 | BV95: 0 | BW95: 0 | BX95: 0 | BY95: 0 | BZ95: 0 | CA95: 0 | CB95: 8 | CC95: 8 | CD95: 0 | CF95: 0 | CG95: 0 | CH95: 0 | CI95: 0 | CJ95: 0 | CK95: 0 | CL95: 0 | CM95: 0 | CN95: No | CO95: No | CP95: 0 | CQ95: * | CS95: No | CT95: No | CU95: No | CW95: 0
P96: 0 | Q96: 0 | S96: 0 | V96: =IF(AND($B$4>"BC-",M96>0),$B$4,"") ->  | AH96: 0 | AI96: 0 | AJ96: 0 | AK96: 0 | AL96: 0 | AM96: 0 | AN96: 0 | AO96: 0 | AP96: 100% | AS96: 0 | AT96: 0 | AU96: 0 | AV96: 0 | AW96: 1 | AX96: 0 | AY96: 0 | AZ96: 0 | BA96: 0 | BB96: 0 | BC96: 1 | BD96: 0 | BE96: 0 | BF96: 0 | BG96: 0 | BH96: 0 | BI96: 0 | BJ96: 0 | BT96: 0 | BU96: 0 | BV96: 0 | BW96: 0 | BX96: 0 | BY96: 0 | BZ96: 0 | CA96: 0 | CB96: 8 | CC96: 8 | CD96: 0 | CF96: 0 | CG96: 0 | CH96: 0 | CI96: 0 | CJ96: 0 | CK96: 0 | CL96: 0 | CM96: 0 | CN96: No | CO96: No | CP96: 0 | CQ96: * | CS96: No | CT96: No | CU96: No | CW96: 0
P97: 0 | Q97: 0 | S97: 0 | V97: =IF(AND($B$4>"BC-",M97>0),$B$4,"") ->  | AH97: 0 | AI97: 0 | AJ97: 0 | AK97: 0 | AL97: 0 | AM97: 0 | AN97: 0 | AO97: 0 | AP97: 100% | AS97: 0 | AT97: 0 | AU97: 0 | AV97: 0 | AW97: 1 | AX97: 0 | AY97: 0 | AZ97: 0 | BA97: 0 | BB97: 0 | BC97: 1 | BD97: 0 | BE97: 0 | BF97: 0 | BG97: 0 | BH97: 0 | BI97: 0 | BJ97: 0 | BT97: 0 | BU97: 0 | BV97: 0 | BW97: 0 | BX97: 0 | BY97: 0 | BZ97: 0 | CA97: 0 | CB97: 8 | CC97: 8 | CD97: 0 | CF97: 0 | CG97: 0 | CH97: 0 | CI97: 0 | CJ97: 0 | CK97: 0 | CL97: 0 | CM97: 0 | CN97: No | CO97: No | CP97: 0 | CQ97: * | CS97: No | CT97: No | CU97: No | CW97: 0
P98: 0 | Q98: 0 | S98: 0 | V98: =IF(AND($B$4>"BC-",M98>0),$B$4,"") ->  | AH98: 0 | AI98: 0 | AJ98: 0 | AK98: 0 | AL98: 0 | AM98: 0 | AN98: 0 | AO98: 0 | AP98: 100% | AS98: 0 | AT98: 0 | AU98: 0 | AV98: 0 | AW98: 1 | AX98: 0 | AY98: 0 | AZ98: 0 | BA98: 0 | BB98: 0 | BC98: 1 | BD98: 0 | BE98: 0 | BF98: 0 | BG98: 0 | BH98: 0 | BI98: 0 | BJ98: 0 | BT98: 0 | BU98: 0 | BV98: 0 | BW98: 0 | BX98: 0 | BY98: 0 | BZ98: 0 | CA98: 0 | CB98: 8 | CC98: 8 | CD98: 0 | CF98: 0 | CG98: 0 | CH98: 0 | CI98: 0 | CJ98: 0 | CK98: 0 | CL98: 0 | CM98: 0 | CN98: No | CO98: No | CP98: 0 | CQ98: * | CS98: No | CT98: No | CU98: No | CW98: 0
P99: 0 | Q99: 0 | S99: 0 | V99: =IF(AND($B$4>"BC-",M99>0),$B$4,"") ->  | AH99: 0 | AI99: 0 | AJ99: 0 | AK99: 0 | AL99: 0 | AM99: 0 | AN99: 0 | AO99: 0 | AP99: 100% | AS99: 0 | AT99: 0 | AU99: 0 | AV99: 0 | AW99: 1 | AX99: 0 | AY99: 0 | AZ99: 0 | BA99: 0 | BB99: 0 | BC99: 1 | BD99: 0 | BE99: 0 | BF99: 0 | BG99: 0 | BH99: 0 | BI99: 0 | BJ99: 0 | BT99: 0 | BU99: 0 | BV99: 0 | BW99: 0 | BX99: 0 | BY99: 0 | BZ99: 0 | CA99: 0 | CB99: 8 | CC99: 8 | CD99: 0 | CF99: 0 | CG99: 0 | CH99: 0 | CI99: 0 | CJ99: 0 | CK99: 0 | CL99: 0 | CM99: 0 | CN99: No | CO99: No | CP99: 0 | CQ99: * | CS99: No | CT99: No | CU99: No | CW99: 0
P100: 0 | Q100: 0 | S100: 0 | V100: =IF(AND($B$4>"BC-",M100>0),$B$4,"") ->  | AH100: 0 | AI100: 0 | AJ100: 0 | AK100: 0 | AL100: 0 | AM100: 0 | AN100: 0 | AO100: 0 | AP100: 100% | AS100: 0 | AT100: 0 | AU100: 0 | AV100: 0 | AW100: 1 | AX100: 0 | AY100: 0 | AZ100: 0 | BA100: 0 | BB100: 0 | BC100: 1 | BD100: 0 | BE100: 0 | BF100: 0 | BG100: 0 | BH100: 0 | BI100: 0 | BJ100: 0 | BM100: 158466 | BN100: 70168 | BO100: 88143 | BP100: 116524 | BQ100: 127877 | BR100: 94292 | BS100: 111901 | BT100: 0 | BU100: 0 | BV100: 0 | BW100: 0 | BX100: 0 | BY100: 0 | BZ100: 0 | CA100: 0 | CB100: 8 | CC100: 8 | CD100: 0 | CF100: 0 | CG100: 0 | CH100: 0 | CI100: 0 | CJ100: 0 | CK100: 0 | CL100: 0 | CM100: 0 | CN100: No | CO100: No | CP100: 0 | CQ100: * | CS100: No | CT100: No | CU100: No | CW100: 0
P101: 0 | Q101: 0 | S101: 0 | V101: =IF(AND($B$4>"BC-",M101>0),$B$4,"") ->  | AH101: 0 | AI101: 0 | AJ101: 0 | AK101: 0 | AL101: 0 | AM101: 0 | AN101: 0 | AO101: 0 | AP101: 100% | AS101: 0 | AT101: 0 | AU101: 0 | AV101: 0 | AW101: 1 | AX101: 0 | AY101: 0 | AZ101: 0 | BA101: 0 | BB101: 0 | BC101: 1 | BD101: 0 | BE101: 0 | BF101: 0 | BG101: 0 | BH101: 0 | BI101: 0 | BJ101: 0 | BT101: 0 | BU101: 0 | BV101: 0 | BW101: 0 | BX101: 0 | BY101: 0 | BZ101: 0 | CA101: 0 | CB101: 8 | CC101: 8 | CD101: 0 | CF101: 0 | CG101: 0 | CH101: 0 | CI101: 0 | CJ101: 0 | CK101: 0 | CL101: 0 | CM101: 0 | CN101: No | CO101: No | CP101: 0 | CQ101: * | CS101: No | CT101: No | CU101: No | CW101: 0
P102: 0 | Q102: 0 | S102: 0 | V102: =IF(AND($B$4>"BC-",M102>0),$B$4,"") ->  | AH102: 0 | AI102: 0 | AJ102: 0 | AK102: 0 | AL102: 0 | AM102: 0 | AN102: 0 | AO102: 0 | AP102: 100% | AS102: 0 | AT102: 0 | AU102: 0 | AV102: 0 | AW102: 1 | AX102: 0 | AY102: 0 | AZ102: 0 | BA102: 0 | BB102: 0 | BC102: 1 | BD102: 0 | BE102: 0 | BF102: 0 | BG102: 0 | BH102: 0 | BI102: 0 | BJ102: 0 | BT102: 0 | BU102: 0 | BV102: 0 | BW102: 0 | BX102: 0 | BY102: 0 | BZ102: 0 | CA102: 0 | CB102: 8 | CC102: 8 | CD102: 0 | CF102: 0 | CG102: 0 | CH102: 0 | CI102: 0 | CJ102: 0 | CK102: 0 | CL102: 0 | CM102: 0 | CN102: No | CO102: No | CP102: 0 | CQ102: * | CS102: No | CT102: No | CU102: No | CW102: 0
P103: 0 | Q103: 0 | S103: 0 | V103: =IF(AND($B$4>"BC-",M103>0),$B$4,"") ->  | AH103: 0 | AI103: 0 | AJ103: 0 | AK103: 0 | AL103: 0 | AM103: 0 | AN103: 0 | AO103: 0 | AP103: 100% | AS103: 0 | AT103: 0 | AU103: 0 | AV103: 0 | AW103: 1 | AX103: 0 | AY103: 0 | AZ103: 0 | BA103: 0 | BB103: 0 | BC103: 1 | BD103: 0 | BE103: 0 | BF103: 0 | BG103: 0 | BH103: 0 | BI103: 0 | BJ103: 0 | BT103: 0 | BU103: 0 | BV103: 0 | BW103: 0 | BX103: 0 | BY103: 0 | BZ103: 0 | CA103: 0 | CB103: 8 | CC103: 8 | CD103: 0 | CF103: 0 | CG103: 0 | CH103: 0 | CI103: 0 | CJ103: 0 | CK103: 0 | CL103: 0 | CM103: 0 | CN103: No | CO103: No | CP103: 0 | CQ103: * | CS103: No | CT103: No | CU103: No | CW103: 0
P104: 0 | Q104: 0 | S104: 0 | V104: =IF(AND($B$4>"BC-",M104>0),$B$4,"") ->  | AH104: 0 | AI104: 0 | AJ104: 0 | AK104: 0 | AL104: 0 | AM104: 0 | AN104: 0 | AO104: 0 | AP104: 100% | AS104: 0 | AT104: 0 | AU104: 0 | AV104: 0 | AW104: 1 | AX104: 0 | AY104: 0 | AZ104: 0 | BA104: 0 | BB104: 0 | BC104: 1 | BD104: 0 | BE104: 0 | BF104: 0 | BG104: 0 | BH104: 0 | BI104: 0 | BJ104: 0 | BT104: 0 | BU104: 0 | BV104: 0 | BW104: 0 | BX104: 0 | BY104: 0 | BZ104: 0 | CA104: 0 | CB104: 8 | CC104: 8 | CD104: 0 | CF104: 0 | CG104: 0 | CH104: 0 | CI104: 0 | CJ104: 0 | CK104: 0 | CL104: 0 | CM104: 0 | CN104: No | CO104: No | CP104: 0 | CQ104: * | CS104: No | CT104: No | CU104: No | CW104: 0
P105: 0 | Q105: 0 | S105: 0 | V105: =IF(AND($B$4>"BC-",M105>0),$B$4,"") ->  | AH105: 0 | AI105: 0 | AJ105: 0 | AK105: 0 | AL105: 0 | AM105: 0 | AN105: 0 | AO105: 0 | AP105: 100% | AS105: 0 | AT105: 0 | AU105: 0 | AV105: 0 | AW105: 1 | AX105: 0 | AY105: 0 | AZ105: 0 | BA105: 0 | BB105: 0 | BC105: 1 | BD105: 0 | BE105: 0 | BF105: 0 | BG105: 0 | BH105: 0 | BI105: 0 | BJ105: 0 | BT105: 0 | BU105: 0 | BV105: 0 | BW105: 0 | BX105: 0 | BY105: 0 | BZ105: 0 | CA105: 0 | CB105: 8 | CC105: 8 | CD105: 0 | CF105: 0 | CG105: 0 | CH105: 0 | CI105: 0 | CJ105: 0 | CK105: 0 | CL105: 0 | CM105: 0 | CN105: No | CO105: No | CP105: 0 | CQ105: * | CS105: No | CT105: No | CU105: No | CW105: 0
P106: 0 | Q106: 0 | S106: 0 | V106: =IF(AND($B$4>"BC-",M106>0),$B$4,"") ->  | AH106: 0 | AI106: 0 | AJ106: 0 | AK106: 0 | AL106: 0 | AM106: 0 | AN106: 0 | AO106: 0 | AP106: 100% | AS106: 0 | AT106: 0 | AU106: 0 | AV106: 0 | AW106: 1 | AX106: 0 | AY106: 0 | AZ106: 0 | BA106: 0 | BB106: 0 | BC106: 1 | BD106: 0 | BE106: 0 | BF106: 0 | BG106: 0 | BH106: 0 | BI106: 0 | BJ106: 0 | BT106: 0 | BU106: 0 | BV106: 0 | BW106: 0 | BX106: 0 | BY106: 0 | BZ106: 0 | CA106: 0 | CB106: 8 | CC106: 8 | CD106: 0 | CF106: 0 | CG106: 0 | CH106: 0 | CI106: 0 | CJ106: 0 | CK106: 0 | CL106: 0 | CM106: 0 | CN106: No | CO106: No | CP106: 0 | CQ106: * | CS106: No | CT106: No | CU106: No | CW106: 0
P107: 0 | Q107: 0 | S107: 0 | V107: =IF(AND($B$4>"BC-",M107>0),$B$4,"") ->  | AH107: 0 | AI107: 0 | AJ107: 0 | AK107: 0 | AL107: 0 | AM107: 0 | AN107: 0 | AO107: 0 | AP107: 100% | AS107: 0 | AT107: 0 | AU107: 0 | AV107: 0 | AW107: 1 | AX107: 0 | AY107: 0 | AZ107: 0 | BA107: 0 | BB107: 0 | BC107: 1 | BD107: 0 | BE107: 0 | BF107: 0 | BG107: 0 | BH107: 0 | BI107: 0 | BJ107: 0 | BT107: 0 | BU107: 0 | BV107: 0 | BW107: 0 | BX107: 0 | BY107: 0 | BZ107: 0 | CA107: 0 | CB107: 8 | CC107: 8 | CD107: 0 | CF107: 0 | CG107: 0 | CH107: 0 | CI107: 0 | CJ107: 0 | CK107: 0 | CL107: 0 | CM107: 0 | CN107: No | CO107: No | CP107: 0 | CQ107: * | CS107: No | CT107: No | CU107: No | CW107: 0
P108: 0 | Q108: 0 | S108: 0 | V108: =IF(AND($B$4>"BC-",M108>0),$B$4,"") ->  | AH108: 0 | AI108: 0 | AJ108: 0 | AK108: 0 | AL108: 0 | AM108: 0 | AN108: 0 | AO108: 0 | AP108: 100% | AS108: 0 | AT108: 0 | AU108: 0 | AV108: 0 | AW108: 1 | AX108: 0 | AY108: 0 | AZ108: 0 | BA108: 0 | BB108: 0 | BC108: 1 | BD108: 0 | BE108: 0 | BF108: 0 | BG108: 0 | BH108: 0 | BI108: 0 | BJ108: 0 | BT108: 0 | BU108: 0 | BV108: 0 | BW108: 0 | BX108: 0 | BY108: 0 | BZ108: 0 | CA108: 0 | CB108: 8 | CC108: 8 | CD108: 0 | CF108: 0 | CG108: 0 | CH108: 0 | CI108: 0 | CJ108: 0 | CK108: 0 | CL108: 0 | CM108: 0 | CN108: No | CO108: No | CP108: 0 | CQ108: * | CS108: No | CT108: No | CU108: No | CW108: 0
P109: 0 | Q109: 0 | S109: 0 | V109: =IF(AND($B$4>"BC-",M109>0),$B$4,"") ->  | AH109: 0 | AI109: 0 | AJ109: 0 | AK109: 0 | AL109: 0 | AM109: 0 | AN109: 0 | AO109: 0 | AP109: 100% | AS109: 0 | AT109: 0 | AU109: 0 | AV109: 0 | AW109: 1 | AX109: 0 | AY109: 0 | AZ109: 0 | BA109: 0 | BB109: 0 | BC109: 1 | BD109: 0 | BE109: 0 | BF109: 0 | BG109: 0 | BH109: 0 | BI109: 0 | BJ109: 0 | BT109: 0 | BU109: 0 | BV109: 0 | BW109: 0 | BX109: 0 | BY109: 0 | BZ109: 0 | CA109: 0 | CB109: 8 | CC109: 8 | CD109: 0 | CF109: 0 | CG109: 0 | CH109: 0 | CI109: 0 | CJ109: 0 | CK109: 0 | CL109: 0 | CM109: 0 | CN109: No | CO109: No | CP109: 0 | CQ109: * | CS109: No | CT109: No | CU109: No | CW109: 0
P110: 0 | Q110: 0 | S110: 0 | V110: =IF(AND($B$4>"BC-",M110>0),$B$4,"") ->  | AH110: 0 | AI110: 0 | AJ110: 0 | AK110: 0 | AL110: 0 | AM110: 0 | AN110: 0 | AO110: 0 | AP110: 100% | AS110: 0 | AT110: 0 | AU110: 0 | AV110: 0 | AW110: 1 | AX110: 0 | AY110: 0 | AZ110: 0 | BA110: 0 | BB110: 0 | BC110: 1 | BD110: 0 | BE110: 0 | BF110: 0 | BG110: 0 | BH110: 0 | BI110: 0 | BJ110: 0 | BT110: 0 | BU110: 0 | BV110: 0 | BW110: 0 | BX110: 0 | BY110: 0 | BZ110: 0 | CA110: 0 | CB110: 8 | CC110: 8 | CD110: 0 | CF110: 0 | CG110: 0 | CH110: 0 | CI110: 0 | CJ110: 0 | CK110: 0 | CL110: 0 | CM110: 0 | CN110: No | CO110: No | CP110: 0 | CQ110: * | CS110: No | CT110: No | CU110: No | CW110: 0
P111: 0 | Q111: 0 | S111: 0 | V111: =IF(AND($B$4>"BC-",M111>0),$B$4,"") ->  | AH111: 0 | AI111: 0 | AJ111: 0 | AK111: 0 | AL111: 0 | AM111: 0 | AN111: 0 | AO111: 0 | AP111: 100% | AS111: 0 | AT111: 0 | AU111: 0 | AV111: 0 | AW111: 1 | AX111: 0 | AY111: 0 | AZ111: 0 | BA111: 0 | BB111: 0 | BC111: 1 | BD111: 0 | BE111: 0 | BF111: 0 | BG111: 0 | BH111: 0 | BI111: 0 | BJ111: 0 | BT111: 0 | BU111: 0 | BV111: 0 | BW111: 0 | BX111: 0 | BY111: 0 | BZ111: 0 | CA111: 0 | CB111: 8 | CC111: 8 | CD111: 0 | CF111: 0 | CG111: 0 | CH111: 0 | CI111: 0 | CJ111: 0 | CK111: 0 | CL111: 0 | CM111: 0 | CN111: No | CO111: No | CP111: 0 | CQ111: * | CS111: No | CT111: No | CU111: No | CW111: 0
P112: 0 | Q112: 0 | S112: 0 | V112: =IF(AND($B$4>"BC-",M112>0),$B$4,"") ->  | AH112: 0 | AI112: 0 | AJ112: 0 | AK112: 0 | AL112: 0 | AM112: 0 | AN112: 0 | AO112: 0 | AP112: 100% | AS112: 0 | AT112: 0 | AU112: 0 | AV112: 0 | AW112: 1 | AX112: 0 | AY112: 0 | AZ112: 0 | BA112: 0 | BB112: 0 | BC112: 1 | BD112: 0 | BE112: 0 | BF112: 0 | BG112: 0 | BH112: 0 | BI112: 0 | BJ112: 0 | BT112: 0 | BU112: 0 | BV112: 0 | BW112: 0 | BX112: 0 | BY112: 0 | BZ112: 0 | CA112: 0 | CB112: 8 | CC112: 8 | CD112: 0 | CF112: 0 | CG112: 0 | CH112: 0 | CI112: 0 | CJ112: 0 | CK112: 0 | CL112: 0 | CM112: 0 | CN112: No | CO112: No | CP112: 0 | CQ112: * | CS112: No | CT112: No | CU112: No | CW112: 0
P113: 0 | Q113: 0 | S113: 0 | V113: =IF(AND($B$4>"BC-",M113>0),$B$4,"") ->  | AH113: 0 | AI113: 0 | AJ113: 0 | AK113: 0 | AL113: 0 | AM113: 0 | AN113: 0 | AO113: 0 | AP113: 100% | AS113: 0 | AT113: 0 | AU113: 0 | AV113: 0 | AW113: 1 | AX113: 0 | AY113: 0 | AZ113: 0 | BA113: 0 | BB113: 0 | BC113: 1 | BD113: 0 | BE113: 0 | BF113: 0 | BG113: 0 | BH113: 0 | BI113: 0 | BJ113: 0 | BT113: 0 | BU113: 0 | BV113: 0 | BW113: 0 | BX113: 0 | BY113: 0 | BZ113: 0 | CA113: 0 | CB113: 8 | CC113: 8 | CD113: 0 | CF113: 0 | CG113: 0 | CH113: 0 | CI113: 0 | CJ113: 0 | CK113: 0 | CL113: 0 | CM113: 0 | CN113: No | CO113: No | CP113: 0 | CQ113: * | CS113: No | CT113: No | CU113: No | CW113: 0
P114: 0 | Q114: 0 | S114: 0 | V114: =IF(AND($B$4>"BC-",M114>0),$B$4,"") ->  | AH114: 0 | AI114: 0 | AJ114: 0 | AK114: 0 | AL114: 0 | AM114: 0 | AN114: 0 | AO114: 0 | AP114: 100% | AS114: 0 | AT114: 0 | AU114: 0 | AV114: 0 | AW114: 1 | AX114: 0 | AY114: 0 | AZ114: 0 | BA114: 0 | BB114: 0 | BC114: 1 | BD114: 0 | BE114: 0 | BF114: 0 | BG114: 0 | BH114: 0 | BI114: 0 | BJ114: 0 | BT114: 0 | BU114: 0 | BV114: 0 | BW114: 0 | BX114: 0 | BY114: 0 | BZ114: 0 | CA114: 0 | CB114: 8 | CC114: 8 | CD114: 0 | CF114: 0 | CG114: 0 | CH114: 0 | CI114: 0 | CJ114: 0 | CK114: 0 | CL114: 0 | CM114: 0 | CN114: No | CO114: No | CP114: 0 | CQ114: * | CS114: No | CT114: No | CU114: No | CW114: 0
P115: 0 | Q115: 0 | S115: 0 | V115: =IF(AND($B$4>"BC-",M115>0),$B$4,"") ->  | AH115: 0 | AI115: 0 | AJ115: 0 | AK115: 0 | AL115: 0 | AM115: 0 | AN115: 0 | AO115: 0 | AP115: 100% | AS115: 0 | AT115: 0 | AU115: 0 | AV115: 0 | AW115: 1 | AX115: 0 | AY115: 0 | AZ115: 0 | BA115: 0 | BB115: 0 | BC115: 1 | BD115: 0 | BE115: 0 | BF115: 0 | BG115: 0 | BH115: 0 | BI115: 0 | BJ115: 0 | BT115: 0 | BU115: 0 | BV115: 0 | BW115: 0 | BX115: 0 | BY115: 0 | BZ115: 0 | CA115: 0 | CB115: 8 | CC115: 8 | CD115: 0 | CF115: 0 | CG115: 0 | CH115: 0 | CI115: 0 | CJ115: 0 | CK115: 0 | CL115: 0 | CM115: 0 | CN115: No | CO115: No | CP115: 0 | CQ115: * | CS115: No | CT115: No | CU115: No | CW115: 0
P116: 0 | Q116: 0 | S116: 0 | V116: =IF(AND($B$4>"BC-",M116>0),$B$4,"") ->  | AH116: 0 | AI116: 0 | AJ116: 0 | AK116: 0 | AL116: 0 | AM116: 0 | AN116: 0 | AO116: 0 | AP116: 100% | AS116: 0 | AT116: 0 | AU116: 0 | AV116: 0 | AW116: 1 | AX116: 0 | AY116: 0 | AZ116: 0 | BA116: 0 | BB116: 0 | BC116: 1 | BD116: 0 | BE116: 0 | BF116: 0 | BG116: 0 | BH116: 0 | BI116: 0 | BJ116: 0 | BT116: 0 | BU116: 0 | BV116: 0 | BW116: 0 | BX116: 0 | BY116: 0 | BZ116: 0 | CA116: 0 | CB116: 8 | CC116: 8 | CD116: 0 | CF116: 0 | CG116: 0 | CH116: 0 | CI116: 0 | CJ116: 0 | CK116: 0 | CL116: 0 | CM116: 0 | CN116: No | CO116: No | CP116: 0 | CQ116: * | CS116: No | CT116: No | CU116: No | CW116: 0
P117: 0 | Q117: 0 | S117: 0 | V117: =IF(AND($B$4>"BC-",M117>0),$B$4,"") ->  | AH117: 0 | AI117: 0 | AJ117: 0 | AK117: 0 | AL117: 0 | AM117: 0 | AN117: 0 | AO117: 0 | AP117: 100% | AS117: 0 | AT117: 0 | AU117: 0 | AV117: 0 | AW117: 1 | AX117: 0 | AY117: 0 | AZ117: 0 | BA117: 0 | BB117: 0 | BC117: 1 | BD117: 0 | BE117: 0 | BF117: 0 | BG117: 0 | BH117: 0 | BI117: 0 | BJ117: 0 | BT117: 0 | BU117: 0 | BV117: 0 | BW117: 0 | BX117: 0 | BY117: 0 | BZ117: 0 | CA117: 0 | CB117: 8 | CC117: 8 | CD117: 0 | CF117: 0 | CG117: 0 | CH117: 0 | CI117: 0 | CJ117: 0 | CK117: 0 | CL117: 0 | CM117: 0 | CN117: No | CO117: No | CP117: 0 | CQ117: * | CS117: No | CT117: No | CU117: No | CW117: 0
P118: 0 | Q118: 0 | S118: 0 | V118: =IF(AND($B$4>"BC-",M118>0),$B$4,"") ->  | AH118: 0 | AI118: 0 | AJ118: 0 | AK118: 0 | AL118: 0 | AM118: 0 | AN118: 0 | AO118: 0 | AP118: 100% | AS118: 0 | AT118: 0 | AU118: 0 | AV118: 0 | AW118: 1 | AX118: 0 | AY118: 0 | AZ118: 0 | BA118: 0 | BB118: 0 | BC118: 1 | BD118: 0 | BE118: 0 | BF118: 0 | BG118: 0 | BH118: 0 | BI118: 0 | BJ118: 0 | BT118: 0 | BU118: 0 | BV118: 0 | BW118: 0 | BX118: 0 | BY118: 0 | BZ118: 0 | CA118: 0 | CB118: 8 | CC118: 8 | CD118: 0 | CF118: 0 | CG118: 0 | CH118: 0 | CI118: 0 | CJ118: 0 | CK118: 0 | CL118: 0 | CM118: 0 | CN118: No | CO118: No | CP118: 0 | CQ118: * | CS118: No | CT118: No | CU118: No | CW118: 0
P119: 0 | Q119: 0 | S119: 0 | V119: =IF(AND($B$4>"BC-",M119>0),$B$4,"") ->  | AH119: 0 | AI119: 0 | AJ119: 0 | AK119: 0 | AL119: 0 | AM119: 0 | AN119: 0 | AO119: 0 | AP119: 100% | AS119: 0 | AT119: 0 | AU119: 0 | AV119: 0 | AW119: 1 | AX119: 0 | AY119: 0 | AZ119: 0 | BA119: 0 | BB119: 0 | BC119: 1 | BD119: 0 | BE119: 0 | BF119: 0 | BG119: 0 | BH119: 0 | BI119: 0 | BJ119: 0 | BT119: 0 | BU119: 0 | BV119: 0 | BW119: 0 | BX119: 0 | BY119: 0 | BZ119: 0 | CA119: 0 | CB119: 8 | CC119: 8 | CD119: 0 | CF119: 0 | CG119: 0 | CH119: 0 | CI119: 0 | CJ119: 0 | CK119: 0 | CL119: 0 | CM119: 0 | CN119: No | CO119: No | CP119: 0 | CQ119: * | CS119: No | CT119: No | CU119: No | CW119: 0
P120: 0 | Q120: 0 | S120: 0 | V120: =IF(AND($B$4>"BC-",M120>0),$B$4,"") ->  | AH120: 0 | AI120: 0 | AJ120: 0 | AK120: 0 | AL120: 0 | AM120: 0 | AN120: 0 | AO120: 0 | AP120: 100% | AS120: 0 | AT120: 0 | AU120: 0 | AV120: 0 | AW120: 1 | AX120: 0 | AY120: 0 | AZ120: 0 | BA120: 0 | BB120: 0 | BC120: 1 | BD120: 0 | BE120: 0 | BF120: 0 | BG120: 0 | BH120: 0 | BI120: 0 | BJ120: 0 | BM120: 4984 | BN120: 2635 | BO120: 3114 | BP120: 3868 | BQ120: 4170 | BR120: 3277 | BS120: 3868 | BT120: 0 | BU120: 0 | BV120: 0 | BW120: 0 | BX120: 0 | BY120: 0 | BZ120: 0 | CA120: 0 | CB120: 8 | CC120: 8 | CD120: 0 | CF120: 0 | CG120: 0 | CH120: 0 | CI120: 0 | CJ120: 0 | CK120: 0 | CL120: 0 | CM120: 0 | CN120: No | CO120: No | CP120: 0 | CQ120: * | CS120: No | CT120: No | CU120: No | CW120: 0
P121: 0 | Q121: 0 | S121: 0 | V121: =IF(AND($B$4>"BC-",M121>0),$B$4,"") ->  | AH121: 0 | AI121: 0 | AJ121: 0 | AK121: 0 | AL121: 0 | AM121: 0 | AN121: 0 | AO121: 0 | AP121: 100% | AS121: 0 | AT121: 0 | AU121: 0 | AV121: 0 | AW121: 1 | AX121: 0 | AY121: 0 | AZ121: 0 | BA121: 0 | BB121: 0 | BC121: 1 | BD121: 0 | BE121: 0 | BF121: 0 | BG121: 0 | BH121: 0 | BI121: 0 | BJ121: 0 | BT121: 0 | BU121: 0 | BV121: 0 | BW121: 0 | BX121: 0 | BY121: 0 | BZ121: 0 | CA121: 0 | CB121: 8 | CC121: 8 | CD121: 0 | CF121: 0 | CG121: 0 | CH121: 0 | CI121: 0 | CJ121: 0 | CK121: 0 | CL121: 0 | CM121: 0 | CN121: No | CO121: No | CP121: 0 | CQ121: * | CS121: No | CT121: No | CU121: No | CW121: 0
P122: 0 | Q122: 0 | S122: 0 | V122: =IF(AND($B$4>"BC-",M122>0),$B$4,"") ->  | AH122: 0 | AI122: 0 | AJ122: 0 | AK122: 0 | AL122: 0 | AM122: 0 | AN122: 0 | AO122: 0 | AP122: 100% | AS122: 0 | AT122: 0 | AU122: 0 | AV122: 0 | AW122: 1 | AX122: 0 | AY122: 0 | AZ122: 0 | BA122: 0 | BB122: 0 | BC122: 1 | BD122: 0 | BE122: 0 | BF122: 0 | BG122: 0 | BH122: 0 | BI122: 0 | BJ122: 0 | BT122: 0 | BU122: 0 | BV122: 0 | BW122: 0 | BX122: 0 | BY122: 0 | BZ122: 0 | CA122: 0 | CB122: 8 | CC122: 8 | CD122: 0 | CF122: 0 | CG122: 0 | CH122: 0 | CI122: 0 | CJ122: 0 | CK122: 0 | CL122: 0 | CM122: 0 | CN122: No | CO122: No | CP122: 0 | CQ122: * | CS122: No | CT122: No | CU122: No | CW122: 0
P123: 0 | Q123: 0 | S123: 0 | V123: =IF(AND($B$4>"BC-",M123>0),$B$4,"") ->  | AH123: 0 | AI123: 0 | AJ123: 0 | AK123: 0 | AL123: 0 | AM123: 0 | AN123: 0 | AO123: 0 | AP123: 100% | AS123: 0 | AT123: 0 | AU123: 0 | AV123: 0 | AW123: 1 | AX123: 0 | AY123: 0 | AZ123: 0 | BA123: 0 | BB123: 0 | BC123: 1 | BD123: 0 | BE123: 0 | BF123: 0 | BG123: 0 | BH123: 0 | BI123: 0 | BJ123: 0 | BT123: 0 | BU123: 0 | BV123: 0 | BW123: 0 | BX123: 0 | BY123: 0 | BZ123: 0 | CA123: 0 | CB123: 8 | CC123: 8 | CD123: 0 | CF123: 0 | CG123: 0 | CH123: 0 | CI123: 0 | CJ123: 0 | CK123: 0 | CL123: 0 | CM123: 0 | CN123: No | CO123: No | CP123: 0 | CQ123: * | CS123: No | CT123: No | CU123: No | CW123: 0
P124: 0 | Q124: 0 | S124: 0 | V124: =IF(AND($B$4>"BC-",M124>0),$B$4,"") ->  | AH124: 0 | AI124: 0 | AJ124: 0 | AK124: 0 | AL124: 0 | AM124: 0 | AN124: 0 | AO124: 0 | AP124: 100% | AS124: 0 | AT124: 0 | AU124: 0 | AV124: 0 | AW124: 1 | AX124: 0 | AY124: 0 | AZ124: 0 | BA124: 0 | BB124: 0 | BC124: 1 | BD124: 0 | BE124: 0 | BF124: 0 | BG124: 0 | BH124: 0 | BI124: 0 | BJ124: 0 | BT124: 0 | BU124: 0 | BV124: 0 | BW124: 0 | BX124: 0 | BY124: 0 | BZ124: 0 | CA124: 0 | CB124: 8 | CC124: 8 | CD124: 0 | CF124: 0 | CG124: 0 | CH124: 0 | CI124: 0 | CJ124: 0 | CK124: 0 | CL124: 0 | CM124: 0 | CN124: No | CO124: No | CP124: 0 | CQ124: * | CS124: No | CT124: No | CU124: No | CW124: 0
P125: 0 | Q125: 0 | S125: 0 | V125: =IF(AND($B$4>"BC-",M125>0),$B$4,"") ->  | AH125: 0 | AI125: 0 | AJ125: 0 | AK125: 0 | AL125: 0 | AM125: 0 | AN125: 0 | AO125: 0 | AP125: 100% | AS125: 0 | AT125: 0 | AU125: 0 | AV125: 0 | AW125: 1 | AX125: 0 | AY125: 0 | AZ125: 0 | BA125: 0 | BB125: 0 | BC125: 1 | BD125: 0 | BE125: 0 | BF125: 0 | BG125: 0 | BH125: 0 | BI125: 0 | BJ125: 0 | BT125: 0 | BU125: 0 | BV125: 0 | BW125: 0 | BX125: 0 | BY125: 0 | BZ125: 0 | CA125: 0 | CB125: 8 | CC125: 8 | CD125: 0 | CF125: 0 | CG125: 0 | CH125: 0 | CI125: 0 | CJ125: 0 | CK125: 0 | CL125: 0 | CM125: 0 | CN125: No | CO125: No | CP125: 0 | CQ125: * | CS125: No | CT125: No | CU125: No | CW125: 0
P126: 0 | Q126: 0 | S126: 0 | V126: =IF(AND($B$4>"BC-",M126>0),$B$4,"") ->  | AH126: 0 | AI126: 0 | AJ126: 0 | AK126: 0 | AL126: 0 | AM126: 0 | AN126: 0 | AO126: 0 | AP126: 100% | AS126: 0 | AT126: 0 | AU126: 0 | AV126: 0 | AW126: 1 | AX126: 0 | AY126: 0 | AZ126: 0 | BA126: 0 | BB126: 0 | BC126: 1 | BD126: 0 | BE126: 0 | BF126: 0 | BG126: 0 | BH126: 0 | BI126: 0 | BJ126: 0 | BT126: 0 | BU126: 0 | BV126: 0 | BW126: 0 | BX126: 0 | BY126: 0 | BZ126: 0 | CA126: 0 | CB126: 8 | CC126: 8 | CD126: 0 | CF126: 0 | CG126: 0 | CH126: 0 | CI126: 0 | CJ126: 0 | CK126: 0 | CL126: 0 | CM126: 0 | CN126: No | CO126: No | CP126: 0 | CQ126: * | CS126: No | CT126: No | CU126: No | CW126: 0
P127: 0 | Q127: 0 | S127: 0 | V127: =IF(AND($B$4>"BC-",M127>0),$B$4,"") ->  | AH127: 0 | AI127: 0 | AJ127: 0 | AK127: 0 | AL127: 0 | AM127: 0 | AN127: 0 | AO127: 0 | AP127: 100% | AS127: 0 | AT127: 0 | AU127: 0 | AV127: 0 | AW127: 1 | AX127: 0 | AY127: 0 | AZ127: 0 | BA127: 0 | BB127: 0 | BC127: 1 | BD127: 0 | BE127: 0 | BF127: 0 | BG127: 0 | BH127: 0 | BI127: 0 | BJ127: 0 | BT127: 0 | BU127: 0 | BV127: 0 | BW127: 0 | BX127: 0 | BY127: 0 | BZ127: 0 | CA127: 0 | CB127: 8 | CC127: 8 | CD127: 0 | CF127: 0 | CG127: 0 | CH127: 0 | CI127: 0 | CJ127: 0 | CK127: 0 | CL127: 0 | CM127: 0 | CN127: No | CO127: No | CP127: 0 | CQ127: * | CS127: No | CT127: No | CU127: No | CW127: 0
P128: 0 | Q128: 0 | S128: 0 | V128: =IF(AND($B$4>"BC-",M128>0),$B$4,"") ->  | AH128: 0 | AI128: 0 | AJ128: 0 | AK128: 0 | AL128: 0 | AM128: 0 | AN128: 0 | AO128: 0 | AP128: 100% | AS128: 0 | AT128: 0 | AU128: 0 | AV128: 0 | AW128: 1 | AX128: 0 | AY128: 0 | AZ128: 0 | BA128: 0 | BB128: 0 | BC128: 1 | BD128: 0 | BE128: 0 | BF128: 0 | BG128: 0 | BH128: 0 | BI128: 0 | BJ128: 0 | BT128: 0 | BU128: 0 | BV128: 0 | BW128: 0 | BX128: 0 | BY128: 0 | BZ128: 0 | CA128: 0 | CB128: 8 | CC128: 8 | CD128: 0 | CF128: 0 | CG128: 0 | CH128: 0 | CI128: 0 | CJ128: 0 | CK128: 0 | CL128: 0 | CM128: 0 | CN128: No | CO128: No | CP128: 0 | CQ128: * | CS128: No | CT128: No | CU128: No | CW128: 0
P129: 0 | Q129: 0 | S129: 0 | V129: =IF(AND($B$4>"BC-",M129>0),$B$4,"") ->  | AH129: 0 | AI129: 0 | AJ129: 0 | AK129: 0 | AL129: 0 | AM129: 0 | AN129: 0 | AO129: 0 | AP129: 100% | AS129: 0 | AT129: 0 | AU129: 0 | AV129: 0 | AW129: 1 | AX129: 0 | AY129: 0 | AZ129: 0 | BA129: 0 | BB129: 0 | BC129: 1 | BD129: 0 | BE129: 0 | BF129: 0 | BG129: 0 | BH129: 0 | BI129: 0 | BJ129: 0 | BT129: 0 | BU129: 0 | BV129: 0 | BW129: 0 | BX129: 0 | BY129: 0 | BZ129: 0 | CA129: 0 | CB129: 8 | CC129: 8 | CD129: 0 | CF129: 0 | CG129: 0 | CH129: 0 | CI129: 0 | CJ129: 0 | CK129: 0 | CL129: 0 | CM129: 0 | CN129: No | CO129: No | CP129: 0 | CQ129: * | CS129: No | CT129: No | CU129: No | CW129: 0
P130: 0 | Q130: 0 | S130: 0 | V130: =IF(AND($B$4>"BC-",M130>0),$B$4,"") ->  | AH130: 0 | AI130: 0 | AJ130: 0 | AK130: 0 | AL130: 0 | AM130: 0 | AN130: 0 | AO130: 0 | AP130: 100% | AS130: 0 | AT130: 0 | AU130: 0 | AV130: 0 | AW130: 1 | AX130: 0 | AY130: 0 | AZ130: 0 | BA130: 0 | BB130: 0 | BC130: 1 | BD130: 0 | BE130: 0 | BF130: 0 | BG130: 0 | BH130: 0 | BI130: 0 | BJ130: 0 | BM130: 36058 | BN130: 16308 | BO130: 20328 | BP130: 26676 | BQ130: 27683 | BR130: 21704 | BS130: 23024 | BT130: 0 | BU130: 0 | BV130: 0 | BW130: 0 | BX130: 0 | BY130: 0 | BZ130: 0 | CA130: 0 | CB130: 8 | CC130: 8 | CD130: 0 | CF130: 0 | CG130: 0 | CH130: 0 | CI130: 0 | CJ130: 0 | CK130: 0 | CL130: 0 | CM130: 0 | CN130: No | CO130: No | CP130: 0 | CQ130: * | CS130: No | CT130: No | CU130: No | CW130: 0
P131: 0 | Q131: 0 | S131: 0 | V131: =IF(AND($B$4>"BC-",M131>0),$B$4,"") ->  | AH131: 0 | AI131: 0 | AJ131: 0 | AK131: 0 | AL131: 0 | AM131: 0 | AN131: 0 | AO131: 0 | AP131: 100% | AS131: 0 | AT131: 0 | AU131: 0 | AV131: 0 | AW131: 1 | AX131: 0 | AY131: 0 | AZ131: 0 | BA131: 0 | BB131: 0 | BC131: 1 | BD131: 0 | BE131: 0 | BF131: 0 | BG131: 0 | BH131: 0 | BI131: 0 | BJ131: 0 | BT131: 0 | BU131: 0 | BV131: 0 | BW131: 0 | BX131: 0 | BY131: 0 | BZ131: 0 | CA131: 0 | CB131: 8 | CC131: 8 | CD131: 0 | CF131: 0 | CG131: 0 | CH131: 0 | CI131: 0 | CJ131: 0 | CK131: 0 | CL131: 0 | CM131: 0 | CN131: No | CO131: No | CP131: 0 | CQ131: * | CS131: No | CT131: No | CU131: No | CW131: 0
P132: 0 | Q132: 0 | S132: 0 | V132: =IF(AND($B$4>"BC-",M132>0),$B$4,"") ->  | AH132: 0 | AI132: 0 | AJ132: 0 | AK132: 0 | AL132: 0 | AM132: 0 | AN132: 0 | AO132: 0 | AP132: 100% | AS132: 0 | AT132: 0 | AU132: 0 | AV132: 0 | AW132: 1 | AX132: 0 | AY132: 0 | AZ132: 0 | BA132: 0 | BB132: 0 | BC132: 1 | BD132: 0 | BE132: 0 | BF132: 0 | BG132: 0 | BH132: 0 | BI132: 0 | BJ132: 0 | BT132: 0 | BU132: 0 | BV132: 0 | BW132: 0 | BX132: 0 | BY132: 0 | BZ132: 0 | CA132: 0 | CB132: 8 | CC132: 8 | CD132: 0 | CF132: 0 | CG132: 0 | CH132: 0 | CI132: 0 | CJ132: 0 | CK132: 0 | CL132: 0 | CM132: 0 | CN132: No | CO132: No | CP132: 0 | CQ132: * | CS132: No | CT132: No | CU132: No | CW132: 0
P133: 0 | Q133: 0 | S133: 0 | V133: =IF(AND($B$4>"BC-",M133>0),$B$4,"") ->  | AH133: 0 | AI133: 0 | AJ133: 0 | AK133: 0 | AL133: 0 | AM133: 0 | AN133: 0 | AO133: 0 | AP133: 100% | AS133: 0 | AT133: 0 | AU133: 0 | AV133: 0 | AW133: 1 | AX133: 0 | AY133: 0 | AZ133: 0 | BA133: 0 | BB133: 0 | BC133: 1 | BD133: 0 | BE133: 0 | BF133: 0 | BG133: 0 | BH133: 0 | BI133: 0 | BJ133: 0 | BT133: 0 | BU133: 0 | BV133: 0 | BW133: 0 | BX133: 0 | BY133: 0 | BZ133: 0 | CA133: 0 | CB133: 8 | CC133: 8 | CD133: 0 | CF133: 0 | CG133: 0 | CH133: 0 | CI133: 0 | CJ133: 0 | CK133: 0 | CL133: 0 | CM133: 0 | CN133: No | CO133: No | CP133: 0 | CQ133: * | CS133: No | CT133: No | CU133: No | CW133: 0
P134: 0 | Q134: 0 | S134: 0 | V134: =IF(AND($B$4>"BC-",M134>0),$B$4,"") ->  | AH134: 0 | AI134: 0 | AJ134: 0 | AK134: 0 | AL134: 0 | AM134: 0 | AN134: 0 | AO134: 0 | AP134: 100% | AS134: 0 | AT134: 0 | AU134: 0 | AV134: 0 | AW134: 1 | AX134: 0 | AY134: 0 | AZ134: 0 | BA134: 0 | BB134: 0 | BC134: 1 | BD134: 0 | BE134: 0 | BF134: 0 | BG134: 0 | BH134: 0 | BI134: 0 | BJ134: 0 | BT134: 0 | BU134: 0 | BV134: 0 | BW134: 0 | BX134: 0 | BY134: 0 | BZ134: 0 | CA134: 0 | CB134: 8 | CC134: 8 | CD134: 0 | CF134: 0 | CG134: 0 | CH134: 0 | CI134: 0 | CJ134: 0 | CK134: 0 | CL134: 0 | CM134: 0 | CN134: No | CO134: No | CP134: 0 | CQ134: * | CS134: No | CT134: No | CU134: No | CW134: 0
P135: 0 | Q135: 0 | S135: 0 | V135: =IF(AND($B$4>"BC-",M135>0),$B$4,"") ->  | AH135: 0 | AI135: 0 | AJ135: 0 | AK135: 0 | AL135: 0 | AM135: 0 | AN135: 0 | AO135: 0 | AP135: 100% | AS135: 0 | AT135: 0 | AU135: 0 | AV135: 0 | AW135: 1 | AX135: 0 | AY135: 0 | AZ135: 0 | BA135: 0 | BB135: 0 | BC135: 1 | BD135: 0 | BE135: 0 | BF135: 0 | BG135: 0 | BH135: 0 | BI135: 0 | BJ135: 0 | BT135: 0 | BU135: 0 | BV135: 0 | BW135: 0 | BX135: 0 | BY135: 0 | BZ135: 0 | CA135: 0 | CB135: 8 | CC135: 8 | CD135: 0 | CF135: 0 | CG135: 0 | CH135: 0 | CI135: 0 | CJ135: 0 | CK135: 0 | CL135: 0 | CM135: 0 | CN135: No | CO135: No | CP135: 0 | CQ135: * | CS135: No | CT135: No | CU135: No | CW135: 0
P136: 0 | Q136: 0 | S136: 0 | V136: =IF(AND($B$4>"BC-",M136>0),$B$4,"") ->  | AH136: 0 | AI136: 0 | AJ136: 0 | AK136: 0 | AL136: 0 | AM136: 0 | AN136: 0 | AO136: 0 | AP136: 100% | AS136: 0 | AT136: 0 | AU136: 0 | AV136: 0 | AW136: 1 | AX136: 0 | AY136: 0 | AZ136: 0 | BA136: 0 | BB136: 0 | BC136: 1 | BD136: 0 | BE136: 0 | BF136: 0 | BG136: 0 | BH136: 0 | BI136: 0 | BJ136: 0 | BT136: 0 | BU136: 0 | BV136: 0 | BW136: 0 | BX136: 0 | BY136: 0 | BZ136: 0 | CA136: 0 | CB136: 8 | CC136: 8 | CD136: 0 | CF136: 0 | CG136: 0 | CH136: 0 | CI136: 0 | CJ136: 0 | CK136: 0 | CL136: 0 | CM136: 0 | CN136: No | CO136: No | CP136: 0 | CQ136: * | CS136: No | CT136: No | CU136: No | CW136: 0
P137: 0 | Q137: 0 | S137: 0 | V137: =IF(AND($B$4>"BC-",M137>0),$B$4,"") ->  | AH137: 0 | AI137: 0 | AJ137: 0 | AK137: 0 | AL137: 0 | AM137: 0 | AN137: 0 | AO137: 0 | AP137: 100% | AS137: 0 | AT137: 0 | AU137: 0 | AV137: 0 | AW137: 1 | AX137: 0 | AY137: 0 | AZ137: 0 | BA137: 0 | BB137: 0 | BC137: 1 | BD137: 0 | BE137: 0 | BF137: 0 | BG137: 0 | BH137: 0 | BI137: 0 | BJ137: 0 | BT137: 0 | BU137: 0 | BV137: 0 | BW137: 0 | BX137: 0 | BY137: 0 | BZ137: 0 | CA137: 0 | CB137: 8 | CC137: 8 | CD137: 0 | CF137: 0 | CG137: 0 | CH137: 0 | CI137: 0 | CJ137: 0 | CK137: 0 | CL137: 0 | CM137: 0 | CN137: No | CO137: No | CP137: 0 | CQ137: * | CS137: No | CT137: No | CU137: No | CW137: 0
P138: 0 | Q138: 0 | S138: 0 | V138: =IF(AND($B$4>"BC-",M138>0),$B$4,"") ->  | AH138: 0 | AI138: 0 | AJ138: 0 | AK138: 0 | AL138: 0 | AM138: 0 | AN138: 0 | AO138: 0 | AP138: 100% | AS138: 0 | AT138: 0 | AU138: 0 | AV138: 0 | AW138: 1 | AX138: 0 | AY138: 0 | AZ138: 0 | BA138: 0 | BB138: 0 | BC138: 1 | BD138: 0 | BE138: 0 | BF138: 0 | BG138: 0 | BH138: 0 | BI138: 0 | BJ138: 0 | BT138: 0 | BU138: 0 | BV138: 0 | BW138: 0 | BX138: 0 | BY138: 0 | BZ138: 0 | CA138: 0 | CB138: 8 | CC138: 8 | CD138: 0 | CF138: 0 | CG138: 0 | CH138: 0 | CI138: 0 | CJ138: 0 | CK138: 0 | CL138: 0 | CM138: 0 | CN138: No | CO138: No | CP138: 0 | CQ138: * | CS138: No | CT138: No | CU138: No | CW138: 0
P139: =IF(M139>0,INDEX($BM$1:$BS$903,BT139,CB139),0) -> 0 | Q139: =IF(AND(NOT(ISBLANK(I139)),I139=0),0,CM139) -> 0 | S139: 0 | V139: =IF(AND($B$4>"BC-",M139>0),$B$4,"") ->  | AH139: 0 | AI139: =IF(AND(C139<45351,D139>45351),(D139-C139)-1,D139-C139) -> 0 | AJ139: =IF(AND(C139<45351,D139>45351,E139<45351),(E139-D139)+1,(E139-D139)) -> 0 | AK139: 0 | AL139: 0 | AM139: 0 | AN139: 0 | AO139: 0 | AP139: 100% | AS139: 0 | AT139: 0 | AU139: 0 | AV139: 0 | AW139: 1 | AX139: 0 | AY139: 0 | AZ139: 0 | BA139: 0 | BB139: 0 | BC139: 1 | BD139: 0 | BE139: 0 | BF139: 0 | BG139: 0 | BH139: 0 | BI139: 0 | BJ139: 0 | BT139: 0 | BU139: 0 | BV139: 0 | BW139: 0 | BX139: 0 | BY139: 0 | BZ139: 0 | CA139: 0 | CB139: 8 | CC139: 8 | CD139: 0 | CF139: 0 | CG139: 0 | CH139: 0 | CI139: 0 | CJ139: 0 | CK139: 0 | CL139: =IF(OR(CJ139=120,CJ139=130),CK139,CK139) -> 0 | CM139: 0 | CN139: No | CO139: No | CP139: 0 | CQ139: * | CS139: No | CT139: No | CU139: No | CW139: 0
P140: 0 | Q140: 0 | S140: =IF(OR(H140="ERP",H140="PA",H140="SAT",H140="IT"),CM140,Q140*(100%-R140)+T140) -> 0 | V140: =IF(AND($B$4>"BC-",M140>0),$B$4,"") ->  | AG140: =VALUE(AJ140)*((AO140+BJ140)*$AA$1)/AI140 ->  | AH140: =((AO140+BJ140)*$AA$1) -> 0 | AI140: 0 | AJ140: 0 | AK140: =P140/365 -> 0 | AL140: =AI140*AK140 -> 0 | AM140: =AL140*AP140 -> 0 | AN140: =AW140*AM140 -> 0 | AO140: =BC140*AN140 -> 0 | AP140: =IF(OR(I140=1,I140=0),"100%",I140) -> 100% | AS140: =IF(J140=8,50%,0) -> 0 | AT140: 0 | AU140: 0 | AV140: =SUM(AS140:AU140) -> 0 | AW140: =IF(AV140=0,100%,AV140) -> 1 | AX140: =IF(OR(K140="R", K140="F"),50%,0) -> 0 | AY140: =IF(K140="Y1",25%,0) -> 0 | AZ140: =IF(K140="Y2",50%,0) -> 0 | BA140: =IF(K140="Y3",75%,0) -> 0 | BB140: =SUM(AX140:BA140) -> 0 | BC140: =IF(BB140=0,100%,BB140) -> 1 | BD140: =IF(AND(L140="DX",N140<"02001"),IF(OR(M140=51),10106),"0") -> 0 | BE140: =IF(AND(L140="DX",N140<"02001",M140<>23,M140<>51,M140<>2,M140<>43,M140<>63,M140<>65,M140<>9,M140<>46,M140<>54,M140<>15,M140<>35,M140<>45,M140<>6,M140<>7,M140<>21,M140<>22,M140<>25,M140<>39,M140<>40,M140<>48,M140<>67),5558,"0") -> 0 | BF140: =IF(AND(L140="DX",N140<"02001"),IF(OR(M140=2,M140=3,M140=22,M140=33,M140=63,M140=65),6063),"0") -> 0 | BG140: =IF(AND(L140="DX",N140<"02001"),IF(OR(M140=9,M140=26,M140=35,M140=40,M140=43,M140=46),8591),"0") -> 0 | BH140: =IF(AND(L140="DX",N140<"02001"),IF(OR(M140=23),8591),"0") -> 0 | BI140: =IF(AND(L140="DX",N140<"02001"),IF(OR(M140=7,M140=15,M140=19,M140=20,M140=25,M140=37,M140=45,M140=48,M140=54),6063),"0") -> 0 | BJ140: =SUM(BD140:BI140) -> 0 | BT140: =LEFT(CD140,3) -> 0 | BU140: =IF(OR(M140=51),1,"0") -> 0 | BV140: =IF(OR(M140=4,M140=13,M140=17,M140=3,M140=33,M140=23,M140=51,M140=2,M140=26,M140=37,M140=63,M140=65,M140=9,M140=35,M140=46,M140=15,M140=45,M140=7,M140=19,M140=20,M140=22,M140=25,M140=39,M140=40,M140=43,M140=48, M140=54,M140=0),0,"2") -> 0 | BW140: =IF(OR(M140=2,M140=3,M140=4,M140=13,M140=17,M140=22,M140=33,M140=63),3,"0") -> 0 | BX140: =IF(OR(M140=23,M140=26,M140=40,M140=43),4,"0") -> 0 | BY140: =IF(OR(M140=35),5,"0") -> 0 | BZ140: =IF(OR(M140=9,M140=15,M140=19,M140=20,M140=25,M140=37,M140=39,M140=45,M140=46,M140=48,M140=54,M140=65),6,"0") -> 0 | CA140: =IF(M140=7,7,0) -> 0 | CB140: =SUM(BU140+BV140+BW140+BX140+BY140+BZ140+CA140+CC140) -> 8 | CC140: =IF(M140=0,8,0) -> 8 | CD140: =IF(N140="00651","00551",IF(AND(N140="80993"),"12093",IF(AND(N140="80994"),"13094",N140))) -> 0 | CF140: =IF(OR(CJ140=70, CJ140=80, CJ140=90, CJ140=100, CJ140=801),CK140*0%,"0") -> 0 | CG140: =IF(OR(CJ140=6,CJ140=7,CJ140=10,CJ140=12,CJ140=15,CJ140=20,CJ140=22,CJ140=30,CJ140=35,CJ140=50,CJ140=60),CK140*50%,"0") -> 0 | CH140: =IF(OR(CJ140=120,CJ140=130),CK140,"0") -> 0 | CI140: =SUM(CF140:CH140) -> 0 | CJ140: =VALUE(BT140) -> 0 | CK140: =ROUND(IF(E140>1,VALUE(AG140),VALUE(AH140)),0) -> 0 | CL140: 0 | CM140: =IF(OR(H140="ERP",H140="PA",H140="SAT",H140="IT"),"0",CL140) -> 0 | CN140: =IF(AND(U140="New",F140<C140),"Yes","No") -> No | CO140: =IF(AND(U140="New",F140=C140),"Yes","No") -> No | CP140: =IF(CO140="Yes",CQ140,G140) -> 0 | CQ140: =CONCATENATE(G140,$CP$9) -> * | CS140: =IF(OR(N140="02083",N140="01520",N140="07043",N140="00508",N140="01522"),"Yes","No") -> No | CT140: =IF(L140="S","Yes","No") -> No | CU140: =IF(AND(CS140="Yes", CT140="Yes"),"Yes","No") -> No | CW140: 0
P141: 0 | Q141: 0 | S141: 0 | V141: =IF(AND($B$4>"BC-",M141>0),$B$4,"") ->  | AH141: 0 | AI141: 0 | AJ141: 0 | AK141: 0 | AL141: 0 | AM141: 0 | AN141: 0 | AO141: 0 | AP141: 100% | AS141: 0 | AT141: 0 | AU141: 0 | AV141: 0 | AW141: 1 | AX141: 0 | AY141: 0 | AZ141: 0 | BA141: 0 | BB141: 0 | BC141: 1 | BD141: 0 | BE141: 0 | BF141: 0 | BG141: 0 | BH141: 0 | BI141: 0 | BJ141: 0 | BT141: 0 | BU141: 0 | BV141: 0 | BW141: 0 | BX141: 0 | BY141: 0 | BZ141: 0 | CA141: 0 | CB141: 8 | CC141: 8 | CD141: 0 | CF141: 0 | CG141: 0 | CH141: 0 | CI141: 0 | CJ141: 0 | CK141: 0 | CL141: 0 | CM141: 0 | CN141: No | CO141: No | CP141: 0 | CQ141: * | CS141: No | CT141: No | CU141: No | CW141: =IF(OR(H141="ERP",H141="PA",H141="SAT"),CM141,Q141*(100%-R141)+T141) -> 0
P142: 0 | Q142: 0 | S142: 0 | V142: =IF(AND($B$4>"BC-",M142>0),$B$4,"") ->  | AH142: 0 | AI142: 0 | AJ142: 0 | AK142: 0 | AL142: 0 | AM142: 0 | AN142: 0 | AO142: 0 | AP142: 100% | AS142: 0 | AT142: 0 | AU142: 0 | AV142: 0 | AW142: 1 | AX142: 0 | AY142: 0 | AZ142: 0 | BA142: 0 | BB142: 0 | BC142: 1 | BD142: 0 | BE142: 0 | BF142: 0 | BG142: 0 | BH142: 0 | BI142: 0 | BJ142: 0 | BT142: 0 | BU142: 0 | BV142: 0 | BW142: 0 | BX142: 0 | BY142: 0 | BZ142: 0 | CA142: 0 | CB142: 8 | CC142: 8 | CD142: 0 | CF142: 0 | CG142: 0 | CH142: 0 | CI142: 0 | CJ142: 0 | CK142: 0 | CL142: 0 | CM142: 0 | CN142: No | CO142: No | CP142: 0 | CQ142: * | CS142: No | CT142: No | CU142: No | CW142: 0
P143: 0 | Q143: 0 | S143: 0 | V143: =IF(AND($B$4>"BC-",M143>0),$B$4,"") ->  | AH143: 0 | AI143: 0 | AJ143: 0 | AK143: 0 | AL143: 0 | AM143: 0 | AN143: 0 | AO143: 0 | AP143: 100% | AS143: 0 | AT143: =IF(J143=16,65%,0) -> 0 | AU143: =IF(J143=24,80%,0) -> 0 | AV143: 0 | AW143: 1 | AX143: 0 | AY143: 0 | AZ143: 0 | BA143: 0 | BB143: 0 | BC143: 1 | BD143: 0 | BE143: 0 | BF143: 0 | BG143: 0 | BH143: 0 | BI143: 0 | BJ143: 0 | BT143: 0 | BU143: 0 | BV143: 0 | BW143: 0 | BX143: 0 | BY143: 0 | BZ143: 0 | CA143: 0 | CB143: 8 | CC143: 8 | CD143: 0 | CF143: 0 | CG143: 0 | CH143: 0 | CI143: 0 | CJ143: 0 | CK143: 0 | CL143: 0 | CM143: 0 | CN143: No | CO143: No | CP143: 0 | CQ143: * | CS143: No | CT143: No | CU143: No | CW143: 0
P144: 0 | Q144: 0 | S144: 0 | V144: =IF(AND($B$4>"BC-",M144>0),$B$4,"") ->  | AH144: 0 | AI144: 0 | AJ144: 0 | AK144: 0 | AL144: 0 | AM144: 0 | AN144: 0 | AO144: 0 | AP144: 100% | AS144: 0 | AT144: 0 | AU144: 0 | AV144: 0 | AW144: 1 | AX144: 0 | AY144: 0 | AZ144: 0 | BA144: 0 | BB144: 0 | BC144: 1 | BD144: 0 | BE144: 0 | BF144: 0 | BG144: 0 | BH144: 0 | BI144: 0 | BJ144: 0 | BT144: 0 | BU144: 0 | BV144: 0 | BW144: 0 | BX144: 0 | BY144: 0 | BZ144: 0 | CA144: 0 | CB144: 8 | CC144: 8 | CD144: 0 | CF144: 0 | CG144: 0 | CH144: 0 | CI144: 0 | CJ144: 0 | CK144: 0 | CL144: 0 | CM144: 0 | CN144: No | CO144: No | CP144: 0 | CQ144: * | CS144: No | CT144: No | CU144: No | CW144: 0
P145: 0 | Q145: 0 | S145: 0 | V145: =IF(AND($B$4>"BC-",M145>0),$B$4,"") ->  | AH145: 0 | AI145: 0 | AJ145: 0 | AK145: 0 | AL145: 0 | AM145: 0 | AN145: 0 | AO145: 0 | AP145: 100% | AS145: 0 | AT145: 0 | AU145: 0 | AV145: 0 | AW145: 1 | AX145: 0 | AY145: 0 | AZ145: 0 | BA145: 0 | BB145: 0 | BC145: 1 | BD145: 0 | BE145: 0 | BF145: 0 | BG145: 0 | BH145: 0 | BI145: 0 | BJ145: 0 | BT145: 0 | BU145: 0 | BV145: 0 | BW145: 0 | BX145: 0 | BY145: 0 | BZ145: 0 | CA145: 0 | CB145: 8 | CC145: 8 | CD145: 0 | CF145: 0 | CG145: 0 | CH145: 0 | CI145: 0 | CJ145: 0 | CK145: 0 | CL145: 0 | CM145: 0 | CN145: No | CO145: No | CP145: 0 | CQ145: * | CS145: No | CT145: No | CU145: No | CW145: 0
P146: 0 | Q146: 0 | S146: 0 | V146: =IF(AND($B$4>"BC-",M146>0),$B$4,"") ->  | AH146: 0 | AI146: 0 | AJ146: 0 | AK146: 0 | AL146: 0 | AM146: 0 | AN146: 0 | AO146: 0 | AP146: 100% | AS146: 0 | AT146: 0 | AU146: 0 | AV146: 0 | AW146: 1 | AX146: 0 | AY146: 0 | AZ146: 0 | BA146: 0 | BB146: 0 | BC146: 1 | BD146: 0 | BE146: 0 | BF146: 0 | BG146: 0 | BH146: 0 | BI146: 0 | BJ146: 0 | BT146: 0 | BU146: 0 | BV146: 0 | BW146: 0 | BX146: 0 | BY146: 0 | BZ146: 0 | CA146: 0 | CB146: 8 | CC146: 8 | CD146: 0 | CF146: 0 | CG146: 0 | CH146: 0 | CI146: 0 | CJ146: 0 | CK146: 0 | CL146: 0 | CM146: 0 | CN146: No | CO146: No | CP146: 0 | CQ146: * | CS146: No | CT146: No | CU146: No | CW146: 0
P147: 0 | Q147: 0 | S147: 0 | V147: =IF(AND($B$4>"BC-",M147>0),$B$4,"") ->  | AH147: 0 | AI147: 0 | AJ147: 0 | AK147: 0 | AL147: 0 | AM147: 0 | AN147: 0 | AO147: 0 | AP147: 100% | AS147: 0 | AT147: 0 | AU147: 0 | AV147: 0 | AW147: 1 | AX147: 0 | AY147: 0 | AZ147: 0 | BA147: 0 | BB147: 0 | BC147: 1 | BD147: 0 | BE147: 0 | BF147: 0 | BG147: 0 | BH147: 0 | BI147: 0 | BJ147: 0 | BT147: 0 | BU147: 0 | BV147: 0 | BW147: 0 | BX147: 0 | BY147: 0 | BZ147: 0 | CA147: 0 | CB147: 8 | CC147: 8 | CD147: 0 | CF147: 0 | CG147: 0 | CH147: 0 | CI147: 0 | CJ147: 0 | CK147: 0 | CL147: 0 | CM147: 0 | CN147: No | CO147: No | CP147: 0 | CQ147: * | CS147: No | CT147: No | CU147: No | CW147: 0
P148: 0 | Q148: 0 | S148: 0 | V148: =IF(AND($B$4>"BC-",M148>0),$B$4,"") ->  | AH148: 0 | AI148: 0 | AJ148: 0 | AK148: 0 | AL148: 0 | AM148: 0 | AN148: 0 | AO148: 0 | AP148: 100% | AS148: 0 | AT148: 0 | AU148: 0 | AV148: 0 | AW148: 1 | AX148: 0 | AY148: 0 | AZ148: 0 | BA148: 0 | BB148: 0 | BC148: 1 | BD148: 0 | BE148: 0 | BF148: 0 | BG148: 0 | BH148: 0 | BI148: 0 | BJ148: 0 | BT148: 0 | BU148: 0 | BV148: 0 | BW148: 0 | BX148: 0 | BY148: 0 | BZ148: 0 | CA148: 0 | CB148: 8 | CC148: 8 | CD148: 0 | CF148: 0 | CG148: 0 | CH148: 0 | CI148: 0 | CJ148: 0 | CK148: 0 | CL148: 0 | CM148: 0 | CN148: No | CO148: No | CP148: 0 | CQ148: * | CS148: No | CT148: No | CU148: No | CW148: 0
P149: 0 | Q149: 0 | S149: 0 | V149: =IF(AND($B$4>"BC-",M149>0),$B$4,"") ->  | AH149: 0 | AI149: 0 | AJ149: 0 | AK149: 0 | AL149: 0 | AM149: 0 | AN149: 0 | AO149: 0 | AP149: 100% | AS149: 0 | AT149: 0 | AU149: 0 | AV149: 0 | AW149: 1 | AX149: 0 | AY149: 0 | AZ149: 0 | BA149: 0 | BB149: 0 | BC149: 1 | BD149: 0 | BE149: 0 | BF149: 0 | BG149: 0 | BH149: 0 | BI149: 0 | BJ149: 0 | BT149: 0 | BU149: 0 | BV149: 0 | BW149: 0 | BX149: 0 | BY149: 0 | BZ149: 0 | CA149: 0 | CB149: 8 | CC149: 8 | CD149: 0 | CF149: 0 | CG149: 0 | CH149: 0 | CI149: 0 | CJ149: 0 | CK149: 0 | CL149: 0 | CM149: 0 | CN149: No | CO149: No | CP149: 0 | CQ149: * | CS149: No | CT149: No | CU149: No | CW149: 0
P150: 0 | Q150: 0 | S150: 0 | V150: =IF(AND($B$4>"BC-",M150>0),$B$4,"") ->  | AH150: 0 | AI150: 0 | AJ150: 0 | AK150: 0 | AL150: 0 | AM150: 0 | AN150: 0 | AO150: 0 | AP150: 100% | AS150: 0 | AT150: 0 | AU150: 0 | AV150: 0 | AW150: 1 | AX150: 0 | AY150: 0 | AZ150: 0 | BA150: 0 | BB150: 0 | BC150: 1 | BD150: 0 | BE150: 0 | BF150: 0 | BG150: 0 | BH150: 0 | BI150: 0 | BJ150: 0 | BT150: 0 | BU150: 0 | BV150: 0 | BW150: 0 | BX150: 0 | BY150: 0 | BZ150: 0 | CA150: 0 | CB150: 8 | CC150: 8 | CD150: 0 | CF150: 0 | CG150: 0 | CH150: 0 | CI150: 0 | CJ150: 0 | CK150: 0 | CL150: 0 | CM150: 0 | CN150: No | CO150: No | CP150: 0 | CQ150: * | CS150: No | CT150: No | CU150: No | CW150: 0
P151: 0 | Q151: 0 | S151: 0 | V151: =IF(AND($B$4>"BC-",M151>0),$B$4,"") ->  | AH151: 0 | AI151: 0 | AJ151: 0 | AK151: 0 | AL151: 0 | AM151: 0 | AN151: 0 | AO151: 0 | AP151: 100% | AS151: 0 | AT151: 0 | AU151: 0 | AV151: 0 | AW151: 1 | AX151: 0 | AY151: 0 | AZ151: 0 | BA151: 0 | BB151: 0 | BC151: 1 | BD151: 0 | BE151: 0 | BF151: 0 | BG151: 0 | BH151: 0 | BI151: 0 | BJ151: 0 | BT151: 0 | BU151: 0 | BV151: 0 | BW151: 0 | BX151: 0 | BY151: 0 | BZ151: 0 | CA151: 0 | CB151: 8 | CC151: 8 | CD151: 0 | CF151: 0 | CG151: 0 | CH151: 0 | CI151: 0 | CJ151: 0 | CK151: 0 | CL151: 0 | CM151: 0 | CN151: No | CO151: No | CP151: 0 | CQ151: * | CS151: No | CT151: No | CU151: No | CW151: 0
P152: 0 | Q152: 0 | S152: 0 | V152: =IF(AND($B$4>"BC-",M152>0),$B$4,"") ->  | AH152: 0 | AI152: 0 | AJ152: 0 | AK152: 0 | AL152: 0 | AM152: 0 | AN152: 0 | AO152: 0 | AP152: 100% | AS152: 0 | AT152: 0 | AU152: 0 | AV152: 0 | AW152: 1 | AX152: 0 | AY152: 0 | AZ152: 0 | BA152: 0 | BB152: 0 | BC152: 1 | BD152: 0 | BE152: 0 | BF152: 0 | BG152: 0 | BH152: 0 | BI152: 0 | BJ152: 0 | BT152: 0 | BU152: 0 | BV152: 0 | BW152: 0 | BX152: 0 | BY152: 0 | BZ152: 0 | CA152: 0 | CB152: 8 | CC152: 8 | CD152: 0 | CF152: 0 | CG152: 0 | CH152: 0 | CI152: 0 | CJ152: 0 | CK152: 0 | CL152: 0 | CM152: 0 | CN152: No | CO152: No | CP152: 0 | CQ152: * | CS152: No | CT152: No | CU152: No | CW152: 0
P153: 0 | Q153: 0 | S153: 0 | V153: =IF(AND($B$4>"BC-",M153>0),$B$4,"") ->  | AH153: 0 | AI153: 0 | AJ153: 0 | AK153: 0 | AL153: 0 | AM153: 0 | AN153: 0 | AO153: 0 | AP153: 100% | AS153: 0 | AT153: 0 | AU153: 0 | AV153: 0 | AW153: 1 | AX153: 0 | AY153: 0 | AZ153: 0 | BA153: 0 | BB153: 0 | BC153: 1 | BD153: 0 | BE153: 0 | BF153: 0 | BG153: 0 | BH153: 0 | BI153: 0 | BJ153: 0 | BT153: 0 | BU153: 0 | BV153: 0 | BW153: 0 | BX153: 0 | BY153: 0 | BZ153: 0 | CA153: 0 | CB153: 8 | CC153: 8 | CD153: 0 | CF153: 0 | CG153: 0 | CH153: 0 | CI153: 0 | CJ153: 0 | CK153: 0 | CL153: 0 | CM153: 0 | CN153: No | CO153: No | CP153: 0 | CQ153: * | CS153: No | CT153: No | CU153: No | CW153: 0
P154: 0 | Q154: 0 | S154: 0 | V154: =IF(AND($B$4>"BC-",M154>0),$B$4,"") ->  | AH154: 0 | AI154: 0 | AJ154: 0 | AK154: 0 | AL154: 0 | AM154: 0 | AN154: 0 | AO154: 0 | AP154: 100% | AS154: 0 | AT154: 0 | AU154: 0 | AV154: 0 | AW154: 1 | AX154: 0 | AY154: 0 | AZ154: 0 | BA154: 0 | BB154: 0 | BC154: 1 | BD154: 0 | BE154: 0 | BF154: 0 | BG154: 0 | BH154: 0 | BI154: 0 | BJ154: 0 | BT154: 0 | BU154: 0 | BV154: 0 | BW154: 0 | BX154: 0 | BY154: 0 | BZ154: 0 | CA154: 0 | CB154: 8 | CC154: 8 | CD154: 0 | CF154: 0 | CG154: 0 | CH154: 0 | CI154: 0 | CJ154: 0 | CK154: 0 | CL154: 0 | CM154: 0 | CN154: No | CO154: No | CP154: 0 | CQ154: * | CS154: No | CT154: No | CU154: No | CW154: 0
P155: 0 | Q155: 0 | S155: 0 | V155: =IF(AND($B$4>"BC-",M155>0),$B$4,"") ->  | AH155: 0 | AI155: 0 | AJ155: 0 | AK155: 0 | AL155: 0 | AM155: 0 | AN155: 0 | AO155: 0 | AP155: 100% | AS155: 0 | AT155: 0 | AU155: 0 | AV155: 0 | AW155: 1 | AX155: 0 | AY155: 0 | AZ155: 0 | BA155: 0 | BB155: 0 | BC155: 1 | BD155: 0 | BE155: 0 | BF155: 0 | BG155: 0 | BH155: 0 | BI155: 0 | BJ155: 0 | BT155: 0 | BU155: 0 | BV155: 0 | BW155: 0 | BX155: 0 | BY155: 0 | BZ155: 0 | CA155: 0 | CB155: 8 | CC155: 8 | CD155: 0 | CF155: 0 | CG155: 0 | CH155: 0 | CI155: 0 | CJ155: 0 | CK155: 0 | CL155: 0 | CM155: 0 | CN155: No | CO155: No | CP155: 0 | CQ155: * | CS155: No | CT155: No | CU155: No | CW155: 0
P156: 0 | Q156: 0 | S156: 0 | V156: =IF(AND($B$4>"BC-",M156>0),$B$4,"") ->  | AH156: 0 | AI156: 0 | AJ156: 0 | AK156: 0 | AL156: 0 | AM156: 0 | AN156: 0 | AO156: 0 | AP156: 100% | AS156: 0 | AT156: 0 | AU156: 0 | AV156: 0 | AW156: 1 | AX156: 0 | AY156: 0 | AZ156: 0 | BA156: 0 | BB156: 0 | BC156: 1 | BD156: 0 | BE156: 0 | BF156: 0 | BG156: 0 | BH156: 0 | BI156: 0 | BJ156: 0 | BT156: 0 | BU156: 0 | BV156: 0 | BW156: 0 | BX156: 0 | BY156: 0 | BZ156: 0 | CA156: 0 | CB156: 8 | CC156: 8 | CD156: 0 | CF156: 0 | CG156: 0 | CH156: 0 | CI156: 0 | CJ156: 0 | CK156: 0 | CL156: 0 | CM156: 0 | CN156: No | CO156: No | CP156: 0 | CQ156: * | CS156: No | CT156: No | CU156: No | CW156: 0
P157: 0 | Q157: 0 | S157: 0 | V157: =IF(AND($B$4>"BC-",M157>0),$B$4,"") ->  | AH157: 0 | AI157: 0 | AJ157: 0 | AK157: 0 | AL157: 0 | AM157: 0 | AN157: 0 | AO157: 0 | AP157: 100% | AS157: 0 | AT157: 0 | AU157: 0 | AV157: 0 | AW157: 1 | AX157: 0 | AY157: 0 | AZ157: 0 | BA157: 0 | BB157: 0 | BC157: 1 | BD157: 0 | BE157: 0 | BF157: 0 | BG157: 0 | BH157: 0 | BI157: 0 | BJ157: 0 | BT157: 0 | BU157: 0 | BV157: 0 | BW157: 0 | BX157: 0 | BY157: 0 | BZ157: 0 | CA157: 0 | CB157: 8 | CC157: 8 | CD157: 0 | CF157: 0 | CG157: 0 | CH157: 0 | CI157: 0 | CJ157: 0 | CK157: 0 | CL157: 0 | CM157: 0 | CN157: No | CO157: No | CP157: 0 | CQ157: * | CS157: No | CT157: No | CU157: No | CW157: 0
P158: 0 | Q158: 0 | S158: 0 | V158: =IF(AND($B$4>"BC-",M158>0),$B$4,"") ->  | AH158: 0 | AI158: 0 | AJ158: 0 | AK158: 0 | AL158: 0 | AM158: 0 | AN158: 0 | AO158: 0 | AP158: 100% | AS158: 0 | AT158: 0 | AU158: 0 | AV158: 0 | AW158: 1 | AX158: 0 | AY158: 0 | AZ158: 0 | BA158: 0 | BB158: 0 | BC158: 1 | BD158: 0 | BE158: 0 | BF158: 0 | BG158: 0 | BH158: 0 | BI158: 0 | BJ158: 0 | BT158: 0 | BU158: 0 | BV158: 0 | BW158: 0 | BX158: 0 | BY158: 0 | BZ158: 0 | CA158: 0 | CB158: 8 | CC158: 8 | CD158: 0 | CF158: 0 | CG158: 0 | CH158: 0 | CI158: 0 | CJ158: 0 | CK158: 0 | CL158: 0 | CM158: 0 | CN158: No | CO158: No | CP158: 0 | CQ158: * | CS158: No | CT158: No | CU158: No | CW158: 0
P159: 0 | Q159: 0 | S159: 0 | V159: =IF(AND($B$4>"BC-",M159>0),$B$4,"") ->  | AH159: 0 | AI159: 0 | AJ159: 0 | AK159: 0 | AL159: 0 | AM159: 0 | AN159: 0 | AO159: 0 | AP159: 100% | AS159: 0 | AT159: 0 | AU159: 0 | AV159: 0 | AW159: 1 | AX159: 0 | AY159: 0 | AZ159: 0 | BA159: 0 | BB159: 0 | BC159: 1 | BD159: 0 | BE159: 0 | BF159: 0 | BG159: 0 | BH159: 0 | BI159: 0 | BJ159: 0 | BT159: 0 | BU159: 0 | BV159: 0 | BW159: 0 | BX159: 0 | BY159: 0 | BZ159: 0 | CA159: 0 | CB159: 8 | CC159: 8 | CD159: 0 | CF159: 0 | CG159: 0 | CH159: 0 | CI159: 0 | CJ159: 0 | CK159: 0 | CL159: 0 | CM159: 0 | CN159: No | CO159: No | CP159: 0 | CQ159: * | CS159: No | CT159: No | CU159: No | CW159: 0
P160: 0 | Q160: 0 | S160: 0 | V160: =IF(AND($B$4>"BC-",M160>0),$B$4,"") ->  | AH160: 0 | AI160: 0 | AJ160: 0 | AK160: 0 | AL160: 0 | AM160: 0 | AN160: 0 | AO160: 0 | AP160: 100% | AS160: 0 | AT160: 0 | AU160: 0 | AV160: 0 | AW160: 1 | AX160: 0 | AY160: 0 | AZ160: 0 | BA160: 0 | BB160: 0 | BC160: 1 | BD160: 0 | BE160: 0 | BF160: 0 | BG160: 0 | BH160: 0 | BI160: 0 | BJ160: 0 | BT160: 0 | BU160: 0 | BV160: 0 | BW160: 0 | BX160: 0 | BY160: 0 | BZ160: 0 | CA160: 0 | CB160: 8 | CC160: 8 | CD160: 0 | CF160: 0 | CG160: 0 | CH160: 0 | CI160: 0 | CJ160: 0 | CK160: 0 | CL160: 0 | CM160: 0 | CN160: No | CO160: No | CP160: 0 | CQ160: * | CS160: No | CT160: No | CU160: No | CW160: 0
P161: 0 | Q161: 0 | S161: 0 | V161: =IF(AND($B$4>"BC-",M161>0),$B$4,"") ->  | AH161: 0 | AI161: 0 | AJ161: 0 | AK161: 0 | AL161: 0 | AM161: 0 | AN161: 0 | AO161: 0 | AP161: 100% | AS161: 0 | AT161: 0 | AU161: 0 | AV161: 0 | AW161: 1 | AX161: 0 | AY161: 0 | AZ161: 0 | BA161: 0 | BB161: 0 | BC161: 1 | BD161: 0 | BE161: 0 | BF161: 0 | BG161: 0 | BH161: 0 | BI161: 0 | BJ161: 0 | BT161: 0 | BU161: 0 | BV161: 0 | BW161: 0 | BX161: 0 | BY161: 0 | BZ161: 0 | CA161: 0 | CB161: 8 | CC161: 8 | CD161: 0 | CF161: 0 | CG161: 0 | CH161: 0 | CI161: 0 | CJ161: 0 | CK161: 0 | CL161: 0 | CM161: 0 | CN161: No | CO161: No | CP161: 0 | CQ161: * | CS161: No | CT161: No | CU161: No | CW161: 0
P162: 0 | Q162: 0 | S162: 0 | V162: =IF(AND($B$4>"BC-",M162>0),$B$4,"") ->  | AH162: 0 | AI162: 0 | AJ162: 0 | AK162: 0 | AL162: 0 | AM162: 0 | AN162: 0 | AO162: 0 | AP162: 100% | AS162: 0 | AT162: 0 | AU162: 0 | AV162: 0 | AW162: 1 | AX162: 0 | AY162: 0 | AZ162: 0 | BA162: 0 | BB162: 0 | BC162: 1 | BD162: 0 | BE162: 0 | BF162: 0 | BG162: 0 | BH162: 0 | BI162: 0 | BJ162: 0 | BT162: 0 | BU162: 0 | BV162: 0 | BW162: 0 | BX162: 0 | BY162: 0 | BZ162: 0 | CA162: 0 | CB162: 8 | CC162: 8 | CD162: 0 | CF162: 0 | CG162: 0 | CH162: 0 | CI162: 0 | CJ162: 0 | CK162: 0 | CL162: 0 | CM162: 0 | CN162: No | CO162: No | CP162: 0 | CQ162: * | CS162: No | CT162: No | CU162: No | CW162: 0
P163: 0 | Q163: 0 | S163: 0 | V163: =IF(AND($B$4>"BC-",M163>0),$B$4,"") ->  | AH163: 0 | AI163: 0 | AJ163: 0 | AK163: 0 | AL163: 0 | AM163: 0 | AN163: 0 | AO163: 0 | AP163: 100% | AS163: 0 | AT163: 0 | AU163: 0 | AV163: 0 | AW163: 1 | AX163: 0 | AY163: 0 | AZ163: 0 | BA163: 0 | BB163: 0 | BC163: 1 | BD163: 0 | BE163: 0 | BF163: 0 | BG163: 0 | BH163: 0 | BI163: 0 | BJ163: 0 | BT163: 0 | BU163: 0 | BV163: 0 | BW163: 0 | BX163: 0 | BY163: 0 | BZ163: 0 | CA163: 0 | CB163: 8 | CC163: 8 | CD163: 0 | CF163: 0 | CG163: 0 | CH163: 0 | CI163: 0 | CJ163: 0 | CK163: 0 | CL163: 0 | CM163: 0 | CN163: No | CO163: No | CP163: 0 | CQ163: * | CS163: No | CT163: No | CU163: No | CW163: 0
P164: 0 | Q164: 0 | S164: 0 | V164: =IF(AND($B$4>"BC-",M164>0),$B$4,"") ->  | AH164: 0 | AI164: 0 | AJ164: 0 | AK164: 0 | AL164: 0 | AM164: 0 | AN164: 0 | AO164: 0 | AP164: 100% | AS164: 0 | AT164: 0 | AU164: 0 | AV164: 0 | AW164: 1 | AX164: 0 | AY164: 0 | AZ164: 0 | BA164: 0 | BB164: 0 | BC164: 1 | BD164: 0 | BE164: 0 | BF164: 0 | BG164: 0 | BH164: 0 | BI164: 0 | BJ164: 0 | BT164: 0 | BU164: 0 | BV164: 0 | BW164: 0 | BX164: 0 | BY164: 0 | BZ164: 0 | CA164: 0 | CB164: 8 | CC164: 8 | CD164: 0 | CF164: 0 | CG164: 0 | CH164: 0 | CI164: 0 | CJ164: 0 | CK164: 0 | CL164: 0 | CM164: 0 | CN164: No | CO164: No | CP164: 0 | CQ164: * | CS164: No | CT164: No | CU164: No | CW164: 0
P165: 0 | Q165: 0 | S165: 0 | V165: =IF(AND($B$4>"BC-",M165>0),$B$4,"") ->  | AH165: 0 | AI165: 0 | AJ165: 0 | AK165: 0 | AL165: 0 | AM165: 0 | AN165: 0 | AO165: 0 | AP165: 100% | AS165: 0 | AT165: 0 | AU165: 0 | AV165: 0 | AW165: 1 | AX165: 0 | AY165: 0 | AZ165: 0 | BA165: 0 | BB165: 0 | BC165: 1 | BD165: 0 | BE165: 0 | BF165: 0 | BG165: 0 | BH165: 0 | BI165: 0 | BJ165: 0 | BT165: 0 | BU165: 0 | BV165: 0 | BW165: 0 | BX165: 0 | BY165: 0 | BZ165: 0 | CA165: 0 | CB165: 8 | CC165: 8 | CD165: 0 | CF165: 0 | CG165: 0 | CH165: 0 | CI165: 0 | CJ165: 0 | CK165: 0 | CL165: 0 | CM165: 0 | CN165: No | CO165: No | CP165: 0 | CQ165: * | CS165: No | CT165: No | CU165: No | CW165: 0
P166: 0 | Q166: 0 | S166: 0 | V166: =IF(AND($B$4>"BC-",M166>0),$B$4,"") ->  | AH166: 0 | AI166: 0 | AJ166: 0 | AK166: 0 | AL166: 0 | AM166: 0 | AN166: 0 | AO166: 0 | AP166: 100% | AS166: 0 | AT166: 0 | AU166: 0 | AV166: 0 | AW166: 1 | AX166: 0 | AY166: 0 | AZ166: 0 | BA166: 0 | BB166: 0 | BC166: 1 | BD166: 0 | BE166: 0 | BF166: 0 | BG166: 0 | BH166: 0 | BI166: 0 | BJ166: 0 | BT166: 0 | BU166: 0 | BV166: 0 | BW166: 0 | BX166: 0 | BY166: 0 | BZ166: 0 | CA166: 0 | CB166: 8 | CC166: 8 | CD166: 0 | CF166: 0 | CG166: 0 | CH166: 0 | CI166: 0 | CJ166: 0 | CK166: 0 | CL166: 0 | CM166: 0 | CN166: No | CO166: No | CP166: 0 | CQ166: * | CS166: No | CT166: No | CU166: No | CW166: 0
P167: 0 | Q167: 0 | S167: 0 | V167: =IF(AND($B$4>"BC-",M167>0),$B$4,"") ->  | AH167: 0 | AI167: 0 | AJ167: 0 | AK167: 0 | AL167: 0 | AM167: 0 | AN167: 0 | AO167: 0 | AP167: 100% | AS167: 0 | AT167: 0 | AU167: 0 | AV167: 0 | AW167: 1 | AX167: 0 | AY167: 0 | AZ167: 0 | BA167: 0 | BB167: 0 | BC167: 1 | BD167: 0 | BE167: 0 | BF167: 0 | BG167: 0 | BH167: 0 | BI167: 0 | BJ167: 0 | BT167: 0 | BU167: 0 | BV167: 0 | BW167: 0 | BX167: 0 | BY167: 0 | BZ167: 0 | CA167: 0 | CB167: 8 | CC167: 8 | CD167: 0 | CF167: 0 | CG167: 0 | CH167: 0 | CI167: 0 | CJ167: 0 | CK167: 0 | CL167: 0 | CM167: 0 | CN167: No | CO167: No | CP167: 0 | CQ167: * | CS167: No | CT167: No | CU167: No | CW167: 0
P168: 0 | Q168: 0 | S168: 0 | V168: =IF(AND($B$4>"BC-",M168>0),$B$4,"") ->  | AH168: 0 | AI168: 0 | AJ168: 0 | AK168: 0 | AL168: 0 | AM168: 0 | AN168: 0 | AO168: 0 | AP168: 100% | AS168: 0 | AT168: 0 | AU168: 0 | AV168: 0 | AW168: 1 | AX168: 0 | AY168: 0 | AZ168: 0 | BA168: 0 | BB168: 0 | BC168: 1 | BD168: 0 | BE168: 0 | BF168: 0 | BG168: 0 | BH168: 0 | BI168: 0 | BJ168: 0 | BT168: 0 | BU168: 0 | BV168: 0 | BW168: 0 | BX168: 0 | BY168: 0 | BZ168: 0 | CA168: 0 | CB168: 8 | CC168: 8 | CD168: 0 | CF168: 0 | CG168: 0 | CH168: 0 | CI168: 0 | CJ168: 0 | CK168: 0 | CL168: 0 | CM168: 0 | CN168: No | CO168: No | CP168: 0 | CQ168: * | CS168: No | CT168: No | CU168: No | CW168: 0
P169: 0 | Q169: 0 | S169: 0 | V169: =IF(AND($B$4>"BC-",M169>0),$B$4,"") ->  | AH169: 0 | AI169: 0 | AJ169: 0 | AK169: 0 | AL169: 0 | AM169: 0 | AN169: 0 | AO169: 0 | AP169: 100% | AS169: 0 | AT169: 0 | AU169: 0 | AV169: 0 | AW169: 1 | AX169: 0 | AY169: 0 | AZ169: 0 | BA169: 0 | BB169: 0 | BC169: 1 | BD169: 0 | BE169: 0 | BF169: 0 | BG169: 0 | BH169: 0 | BI169: 0 | BJ169: 0 | BT169: 0 | BU169: 0 | BV169: 0 | BW169: 0 | BX169: 0 | BY169: 0 | BZ169: 0 | CA169: 0 | CB169: 8 | CC169: 8 | CD169: 0 | CF169: 0 | CG169: 0 | CH169: 0 | CI169: 0 | CJ169: 0 | CK169: 0 | CL169: 0 | CM169: 0 | CN169: No | CO169: No | CP169: 0 | CQ169: * | CS169: No | CT169: No | CU169: No | CW169: 0
P170: 0 | Q170: 0 | S170: 0 | V170: =IF(AND($B$4>"BC-",M170>0),$B$4,"") ->  | AH170: 0 | AI170: 0 | AJ170: 0 | AK170: 0 | AL170: 0 | AM170: 0 | AN170: 0 | AO170: 0 | AP170: 100% | AS170: 0 | AT170: 0 | AU170: 0 | AV170: 0 | AW170: 1 | AX170: 0 | AY170: 0 | AZ170: 0 | BA170: 0 | BB170: 0 | BC170: 1 | BD170: 0 | BE170: 0 | BF170: 0 | BG170: 0 | BH170: 0 | BI170: 0 | BJ170: 0 | BT170: 0 | BU170: 0 | BV170: 0 | BW170: 0 | BX170: 0 | BY170: 0 | BZ170: 0 | CA170: 0 | CB170: 8 | CC170: 8 | CD170: 0 | CF170: 0 | CG170: 0 | CH170: 0 | CI170: 0 | CJ170: 0 | CK170: 0 | CL170: 0 | CM170: 0 | CN170: No | CO170: No | CP170: 0 | CQ170: * | CS170: No | CT170: No | CU170: No | CW170: 0
P171: 0 | Q171: 0 | S171: 0 | V171: =IF(AND($B$4>"BC-",M171>0),$B$4,"") ->  | AH171: 0 | AI171: 0 | AJ171: 0 | AK171: 0 | AL171: 0 | AM171: 0 | AN171: 0 | AO171: 0 | AP171: 100% | AS171: 0 | AT171: 0 | AU171: 0 | AV171: 0 | AW171: 1 | AX171: 0 | AY171: 0 | AZ171: 0 | BA171: 0 | BB171: 0 | BC171: 1 | BD171: 0 | BE171: 0 | BF171: 0 | BG171: 0 | BH171: 0 | BI171: 0 | BJ171: 0 | BT171: 0 | BU171: 0 | BV171: 0 | BW171: 0 | BX171: 0 | BY171: 0 | BZ171: 0 | CA171: 0 | CB171: 8 | CC171: 8 | CD171: 0 | CF171: 0 | CG171: 0 | CH171: 0 | CI171: 0 | CJ171: 0 | CK171: 0 | CL171: 0 | CM171: 0 | CN171: No | CO171: No | CP171: 0 | CQ171: * | CS171: No | CT171: No | CU171: No | CW171: 0
P172: 0 | Q172: 0 | S172: 0 | V172: =IF(AND($B$4>"BC-",M172>0),$B$4,"") ->  | AH172: 0 | AI172: 0 | AJ172: 0 | AK172: 0 | AL172: 0 | AM172: 0 | AN172: 0 | AO172: 0 | AP172: 100% | AS172: 0 | AT172: 0 | AU172: 0 | AV172: 0 | AW172: 1 | AX172: 0 | AY172: 0 | AZ172: 0 | BA172: 0 | BB172: 0 | BC172: 1 | BD172: 0 | BE172: 0 | BF172: 0 | BG172: 0 | BH172: 0 | BI172: 0 | BJ172: 0 | BT172: 0 | BU172: 0 | BV172: 0 | BW172: 0 | BX172: 0 | BY172: 0 | BZ172: 0 | CA172: 0 | CB172: 8 | CC172: 8 | CD172: 0 | CF172: 0 | CG172: 0 | CH172: 0 | CI172: 0 | CJ172: 0 | CK172: 0 | CL172: 0 | CM172: 0 | CN172: No | CO172: No | CP172: 0 | CQ172: * | CS172: No | CT172: No | CU172: No | CW172: 0
P173: 0 | Q173: 0 | S173: 0 | V173: =IF(AND($B$4>"BC-",M173>0),$B$4,"") ->  | AH173: 0 | AI173: 0 | AJ173: 0 | AK173: 0 | AL173: 0 | AM173: 0 | AN173: 0 | AO173: 0 | AP173: 100% | AS173: 0 | AT173: 0 | AU173: 0 | AV173: 0 | AW173: 1 | AX173: 0 | AY173: 0 | AZ173: 0 | BA173: 0 | BB173: 0 | BC173: 1 | BD173: 0 | BE173: 0 | BF173: 0 | BG173: 0 | BH173: 0 | BI173: 0 | BJ173: 0 | BT173: 0 | BU173: 0 | BV173: 0 | BW173: 0 | BX173: 0 | BY173: 0 | BZ173: 0 | CA173: 0 | CB173: 8 | CC173: 8 | CD173: 0 | CF173: 0 | CG173: 0 | CH173: 0 | CI173: 0 | CJ173: 0 | CK173: 0 | CL173: 0 | CM173: 0 | CN173: No | CO173: No | CP173: 0 | CQ173: * | CS173: No | CT173: No | CU173: No | CW173: 0
P174: 0 | Q174: 0 | S174: 0 | V174: =IF(AND($B$4>"BC-",M174>0),$B$4,"") ->  | AH174: 0 | AI174: 0 | AJ174: 0 | AK174: 0 | AL174: 0 | AM174: 0 | AN174: 0 | AO174: 0 | AP174: 100% | AS174: 0 | AT174: 0 | AU174: 0 | AV174: 0 | AW174: 1 | AX174: 0 | AY174: 0 | AZ174: 0 | BA174: 0 | BB174: 0 | BC174: 1 | BD174: 0 | BE174: 0 | BF174: 0 | BG174: 0 | BH174: 0 | BI174: 0 | BJ174: 0 | BT174: 0 | BU174: 0 | BV174: 0 | BW174: 0 | BX174: 0 | BY174: 0 | BZ174: 0 | CA174: 0 | CB174: 8 | CC174: 8 | CD174: 0 | CF174: 0 | CG174: 0 | CH174: 0 | CI174: 0 | CJ174: 0 | CK174: 0 | CL174: 0 | CM174: 0 | CN174: No | CO174: No | CP174: 0 | CQ174: * | CS174: No | CT174: No | CU174: No | CW174: 0
P175: 0 | Q175: 0 | S175: 0 | V175: =IF(AND($B$4>"BC-",M175>0),$B$4,"") ->  | AH175: 0 | AI175: 0 | AJ175: 0 | AK175: 0 | AL175: 0 | AM175: 0 | AN175: 0 | AO175: 0 | AP175: 100% | AS175: 0 | AT175: 0 | AU175: 0 | AV175: 0 | AW175: 1 | AX175: 0 | AY175: 0 | AZ175: 0 | BA175: 0 | BB175: 0 | BC175: 1 | BD175: 0 | BE175: 0 | BF175: 0 | BG175: 0 | BH175: 0 | BI175: 0 | BJ175: 0 | BT175: 0 | BU175: 0 | BV175: 0 | BW175: 0 | BX175: 0 | BY175: 0 | BZ175: 0 | CA175: 0 | CB175: 8 | CC175: 8 | CD175: 0 | CF175: 0 | CG175: 0 | CH175: 0 | CI175: 0 | CJ175: 0 | CK175: 0 | CL175: 0 | CM175: 0 | CN175: No | CO175: No | CP175: 0 | CQ175: * | CS175: No | CT175: No | CU175: No | CW175: 0
P176: 0 | Q176: 0 | S176: 0 | V176: =IF(AND($B$4>"BC-",M176>0),$B$4,"") ->  | AH176: 0 | AI176: 0 | AJ176: 0 | AK176: 0 | AL176: 0 | AM176: 0 | AN176: 0 | AO176: 0 | AP176: 100% | AS176: 0 | AT176: 0 | AU176: 0 | AV176: 0 | AW176: 1 | AX176: 0 | AY176: 0 | AZ176: 0 | BA176: 0 | BB176: 0 | BC176: 1 | BD176: 0 | BE176: 0 | BF176: 0 | BG176: 0 | BH176: 0 | BI176: 0 | BJ176: 0 | BT176: 0 | BU176: 0 | BV176: 0 | BW176: 0 | BX176: 0 | BY176: 0 | BZ176: 0 | CA176: 0 | CB176: 8 | CC176: 8 | CD176: 0 | CF176: 0 | CG176: 0 | CH176: 0 | CI176: 0 | CJ176: 0 | CK176: 0 | CL176: 0 | CM176: 0 | CN176: No | CO176: No | CP176: 0 | CQ176: * | CS176: No | CT176: No | CU176: No | CW176: 0
P177: 0 | Q177: 0 | S177: 0 | V177: =IF(AND($B$4>"BC-",M177>0),$B$4,"") ->  | AH177: 0 | AI177: 0 | AJ177: 0 | AK177: 0 | AL177: 0 | AM177: 0 | AN177: 0 | AO177: 0 | AP177: 100% | AS177: 0 | AT177: 0 | AU177: 0 | AV177: 0 | AW177: 1 | AX177: 0 | AY177: 0 | AZ177: 0 | BA177: 0 | BB177: 0 | BC177: 1 | BD177: 0 | BE177: 0 | BF177: 0 | BG177: 0 | BH177: 0 | BI177: 0 | BJ177: 0 | BT177: 0 | BU177: 0 | BV177: 0 | BW177: 0 | BX177: 0 | BY177: 0 | BZ177: 0 | CA177: 0 | CB177: 8 | CC177: 8 | CD177: 0 | CF177: 0 | CG177: 0 | CH177: 0 | CI177: 0 | CJ177: 0 | CK177: 0 | CL177: 0 | CM177: 0 | CN177: No | CO177: No | CP177: 0 | CQ177: * | CS177: No | CT177: No | CU177: No | CW177: 0
P178: 0 | Q178: 0 | S178: 0 | V178: =IF(AND($B$4>"BC-",M178>0),$B$4,"") ->  | AH178: 0 | AI178: 0 | AJ178: 0 | AK178: 0 | AL178: 0 | AM178: 0 | AN178: 0 | AO178: 0 | AP178: 100% | AS178: 0 | AT178: 0 | AU178: 0 | AV178: 0 | AW178: 1 | AX178: 0 | AY178: 0 | AZ178: 0 | BA178: 0 | BB178: 0 | BC178: 1 | BD178: 0 | BE178: 0 | BF178: 0 | BG178: 0 | BH178: 0 | BI178: 0 | BJ178: 0 | BT178: 0 | BU178: 0 | BV178: 0 | BW178: 0 | BX178: 0 | BY178: 0 | BZ178: 0 | CA178: 0 | CB178: 8 | CC178: 8 | CD178: 0 | CF178: 0 | CG178: 0 | CH178: 0 | CI178: 0 | CJ178: 0 | CK178: 0 | CL178: 0 | CM178: 0 | CN178: No | CO178: No | CP178: 0 | CQ178: * | CS178: No | CT178: No | CU178: No | CW178: 0
P179: 0 | Q179: 0 | S179: 0 | V179: =IF(AND($B$4>"BC-",M179>0),$B$4,"") ->  | AH179: 0 | AI179: 0 | AJ179: 0 | AK179: 0 | AL179: 0 | AM179: 0 | AN179: 0 | AO179: 0 | AP179: 100% | AS179: 0 | AT179: 0 | AU179: 0 | AV179: 0 | AW179: 1 | AX179: 0 | AY179: 0 | AZ179: 0 | BA179: 0 | BB179: 0 | BC179: 1 | BD179: 0 | BE179: 0 | BF179: 0 | BG179: 0 | BH179: 0 | BI179: 0 | BJ179: 0 | BT179: 0 | BU179: 0 | BV179: 0 | BW179: 0 | BX179: 0 | BY179: 0 | BZ179: 0 | CA179: 0 | CB179: 8 | CC179: 8 | CD179: 0 | CF179: 0 | CG179: 0 | CH179: 0 | CI179: 0 | CJ179: 0 | CK179: 0 | CL179: 0 | CM179: 0 | CN179: No | CO179: No | CP179: 0 | CQ179: * | CS179: No | CT179: No | CU179: No | CW179: 0
P180: 0 | Q180: 0 | S180: 0 | V180: =IF(AND($B$4>"BC-",M180>0),$B$4,"") ->  | AH180: 0 | AI180: 0 | AJ180: 0 | AK180: 0 | AL180: 0 | AM180: 0 | AN180: 0 | AO180: 0 | AP180: 100% | AS180: 0 | AT180: 0 | AU180: 0 | AV180: 0 | AW180: 1 | AX180: 0 | AY180: 0 | AZ180: 0 | BA180: 0 | BB180: 0 | BC180: 1 | BD180: 0 | BE180: 0 | BF180: 0 | BG180: 0 | BH180: 0 | BI180: 0 | BJ180: 0 | BT180: 0 | BU180: 0 | BV180: 0 | BW180: 0 | BX180: 0 | BY180: 0 | BZ180: 0 | CA180: 0 | CB180: 8 | CC180: 8 | CD180: 0 | CF180: 0 | CG180: 0 | CH180: 0 | CI180: 0 | CJ180: 0 | CK180: 0 | CL180: 0 | CM180: 0 | CN180: No | CO180: No | CP180: 0 | CQ180: * | CS180: No | CT180: No | CU180: No | CW180: 0
P181: 0 | Q181: 0 | S181: 0 | V181: =IF(AND($B$4>"BC-",M181>0),$B$4,"") ->  | AH181: 0 | AI181: 0 | AJ181: 0 | AK181: 0 | AL181: 0 | AM181: 0 | AN181: 0 | AO181: 0 | AP181: 100% | AS181: 0 | AT181: 0 | AU181: 0 | AV181: 0 | AW181: 1 | AX181: 0 | AY181: 0 | AZ181: 0 | BA181: 0 | BB181: 0 | BC181: 1 | BD181: 0 | BE181: 0 | BF181: 0 | BG181: 0 | BH181: 0 | BI181: 0 | BJ181: 0 | BT181: 0 | BU181: 0 | BV181: 0 | BW181: 0 | BX181: 0 | BY181: 0 | BZ181: 0 | CA181: 0 | CB181: 8 | CC181: 8 | CD181: 0 | CF181: 0 | CG181: 0 | CH181: 0 | CI181: 0 | CJ181: 0 | CK181: 0 | CL181: 0 | CM181: 0 | CN181: No | CO181: No | CP181: 0 | CQ181: * | CS181: No | CT181: No | CU181: No | CW181: 0
P182: 0 | Q182: 0 | S182: 0 | V182: =IF(AND($B$4>"BC-",M182>0),$B$4,"") ->  | AH182: 0 | AI182: 0 | AJ182: 0 | AK182: 0 | AL182: 0 | AM182: 0 | AN182: 0 | AO182: 0 | AP182: 100% | AS182: 0 | AT182: 0 | AU182: 0 | AV182: 0 | AW182: 1 | AX182: 0 | AY182: 0 | AZ182: 0 | BA182: 0 | BB182: 0 | BC182: 1 | BD182: 0 | BE182: 0 | BF182: 0 | BG182: 0 | BH182: 0 | BI182: 0 | BJ182: 0 | BT182: 0 | BU182: 0 | BV182: 0 | BW182: 0 | BX182: 0 | BY182: 0 | BZ182: 0 | CA182: 0 | CB182: 8 | CC182: 8 | CD182: 0 | CF182: 0 | CG182: 0 | CH182: 0 | CI182: 0 | CJ182: 0 | CK182: 0 | CL182: 0 | CM182: 0 | CN182: No | CO182: No | CP182: 0 | CQ182: * | CS182: No | CT182: No | CU182: No | CW182: 0
P183: 0 | Q183: 0 | S183: 0 | V183: =IF(AND($B$4>"BC-",M183>0),$B$4,"") ->  | AH183: 0 | AI183: 0 | AJ183: 0 | AK183: 0 | AL183: 0 | AM183: 0 | AN183: 0 | AO183: 0 | AP183: 100% | AS183: 0 | AT183: 0 | AU183: 0 | AV183: 0 | AW183: 1 | AX183: 0 | AY183: 0 | AZ183: 0 | BA183: 0 | BB183: 0 | BC183: 1 | BD183: 0 | BE183: 0 | BF183: 0 | BG183: 0 | BH183: 0 | BI183: 0 | BJ183: 0 | BT183: 0 | BU183: 0 | BV183: 0 | BW183: 0 | BX183: 0 | BY183: 0 | BZ183: 0 | CA183: 0 | CB183: 8 | CC183: 8 | CD183: 0 | CF183: 0 | CG183: 0 | CH183: 0 | CI183: 0 | CJ183: 0 | CK183: 0 | CL183: 0 | CM183: 0 | CN183: No | CO183: No | CP183: 0 | CQ183: * | CS183: No | CT183: No | CU183: No | CW183: 0
P184: 0 | Q184: 0 | S184: 0 | V184: =IF(AND($B$4>"BC-",M184>0),$B$4,"") ->  | AH184: 0 | AI184: 0 | AJ184: 0 | AK184: 0 | AL184: 0 | AM184: 0 | AN184: 0 | AO184: 0 | AP184: 100% | AS184: 0 | AT184: 0 | AU184: 0 | AV184: 0 | AW184: 1 | AX184: 0 | AY184: 0 | AZ184: 0 | BA184: 0 | BB184: 0 | BC184: 1 | BD184: 0 | BE184: 0 | BF184: 0 | BG184: 0 | BH184: 0 | BI184: 0 | BJ184: 0 | BT184: 0 | BU184: 0 | BV184: 0 | BW184: 0 | BX184: 0 | BY184: 0 | BZ184: 0 | CA184: 0 | CB184: 8 | CC184: 8 | CD184: 0 | CF184: 0 | CG184: 0 | CH184: 0 | CI184: 0 | CJ184: 0 | CK184: 0 | CL184: 0 | CM184: 0 | CN184: No | CO184: No | CP184: 0 | CQ184: * | CS184: No | CT184: No | CU184: No | CW184: 0
P185: 0 | Q185: 0 | S185: 0 | V185: =IF(AND($B$4>"BC-",M185>0),$B$4,"") ->  | AH185: 0 | AI185: 0 | AJ185: 0 | AK185: 0 | AL185: 0 | AM185: 0 | AN185: 0 | AO185: 0 | AP185: 100% | AS185: 0 | AT185: 0 | AU185: 0 | AV185: 0 | AW185: 1 | AX185: 0 | AY185: 0 | AZ185: 0 | BA185: 0 | BB185: 0 | BC185: 1 | BD185: 0 | BE185: 0 | BF185: 0 | BG185: 0 | BH185: 0 | BI185: 0 | BJ185: 0 | BT185: 0 | BU185: 0 | BV185: 0 | BW185: 0 | BX185: 0 | BY185: 0 | BZ185: 0 | CA185: 0 | CB185: 8 | CC185: 8 | CD185: 0 | CF185: 0 | CG185: 0 | CH185: 0 | CI185: 0 | CJ185: 0 | CK185: 0 | CL185: 0 | CM185: 0 | CN185: No | CO185: No | CP185: 0 | CQ185: * | CS185: No | CT185: No | CU185: No | CW185: 0
P186: 0 | Q186: 0 | S186: 0 | V186: =IF(AND($B$4>"BC-",M186>0),$B$4,"") ->  | AH186: 0 | AI186: 0 | AJ186: 0 | AK186: 0 | AL186: 0 | AM186: 0 | AN186: 0 | AO186: 0 | AP186: 100% | AS186: 0 | AT186: 0 | AU186: 0 | AV186: 0 | AW186: 1 | AX186: 0 | AY186: 0 | AZ186: 0 | BA186: 0 | BB186: 0 | BC186: 1 | BD186: 0 | BE186: 0 | BF186: 0 | BG186: 0 | BH186: 0 | BI186: 0 | BJ186: 0 | BT186: 0 | BU186: 0 | BV186: 0 | BW186: 0 | BX186: 0 | BY186: 0 | BZ186: 0 | CA186: 0 | CB186: 8 | CC186: 8 | CD186: 0 | CF186: 0 | CG186: 0 | CH186: 0 | CI186: 0 | CJ186: 0 | CK186: 0 | CL186: 0 | CM186: 0 | CN186: No | CO186: No | CP186: 0 | CQ186: * | CS186: No | CT186: No | CU186: No | CW186: 0
P187: 0 | Q187: 0 | S187: 0 | V187: =IF(AND($B$4>"BC-",M187>0),$B$4,"") ->  | AH187: 0 | AI187: 0 | AJ187: 0 | AK187: 0 | AL187: 0 | AM187: 0 | AN187: 0 | AO187: 0 | AP187: 100% | AS187: 0 | AT187: 0 | AU187: 0 | AV187: 0 | AW187: 1 | AX187: 0 | AY187: 0 | AZ187: 0 | BA187: 0 | BB187: 0 | BC187: 1 | BD187: 0 | BE187: 0 | BF187: 0 | BG187: 0 | BH187: 0 | BI187: 0 | BJ187: 0 | BT187: 0 | BU187: 0 | BV187: 0 | BW187: 0 | BX187: 0 | BY187: 0 | BZ187: 0 | CA187: 0 | CB187: 8 | CC187: 8 | CD187: 0 | CF187: 0 | CG187: 0 | CH187: 0 | CI187: 0 | CJ187: 0 | CK187: 0 | CL187: 0 | CM187: 0 | CN187: No | CO187: No | CP187: 0 | CQ187: * | CS187: No | CT187: No | CU187: No | CW187: 0
P188: 0 | Q188: 0 | S188: 0 | V188: =IF(AND($B$4>"BC-",M188>0),$B$4,"") ->  | AH188: 0 | AI188: 0 | AJ188: 0 | AK188: 0 | AL188: 0 | AM188: 0 | AN188: 0 | AO188: 0 | AP188: 100% | AS188: 0 | AT188: 0 | AU188: 0 | AV188: 0 | AW188: 1 | AX188: 0 | AY188: 0 | AZ188: 0 | BA188: 0 | BB188: 0 | BC188: 1 | BD188: 0 | BE188: 0 | BF188: 0 | BG188: 0 | BH188: 0 | BI188: 0 | BJ188: 0 | BT188: 0 | BU188: 0 | BV188: 0 | BW188: 0 | BX188: 0 | BY188: 0 | BZ188: 0 | CA188: 0 | CB188: 8 | CC188: 8 | CD188: 0 | CF188: 0 | CG188: 0 | CH188: 0 | CI188: 0 | CJ188: 0 | CK188: 0 | CL188: 0 | CM188: 0 | CN188: No | CO188: No | CP188: 0 | CQ188: * | CS188: No | CT188: No | CU188: No | CW188: 0
P189: 0 | Q189: 0 | S189: 0 | V189: =IF(AND($B$4>"BC-",M189>0),$B$4,"") ->  | AH189: 0 | AI189: 0 | AJ189: 0 | AK189: 0 | AL189: 0 | AM189: 0 | AN189: 0 | AO189: 0 | AP189: 100% | AS189: 0 | AT189: 0 | AU189: 0 | AV189: 0 | AW189: 1 | AX189: 0 | AY189: 0 | AZ189: 0 | BA189: 0 | BB189: 0 | BC189: 1 | BD189: 0 | BE189: 0 | BF189: 0 | BG189: 0 | BH189: 0 | BI189: 0 | BJ189: 0 | BT189: 0 | BU189: 0 | BV189: 0 | BW189: 0 | BX189: 0 | BY189: 0 | BZ189: 0 | CA189: 0 | CB189: 8 | CC189: 8 | CD189: 0 | CF189: 0 | CG189: 0 | CH189: 0 | CI189: 0 | CJ189: 0 | CK189: 0 | CL189: 0 | CM189: 0 | CN189: No | CO189: No | CP189: 0 | CQ189: * | CS189: No | CT189: No | CU189: No | CW189: 0
P190: 0 | Q190: 0 | S190: 0 | V190: =IF(AND($B$4>"BC-",M190>0),$B$4,"") ->  | AH190: 0 | AI190: 0 | AJ190: 0 | AK190: 0 | AL190: 0 | AM190: 0 | AN190: 0 | AO190: 0 | AP190: 100% | AS190: 0 | AT190: 0 | AU190: 0 | AV190: 0 | AW190: 1 | AX190: 0 | AY190: 0 | AZ190: 0 | BA190: 0 | BB190: 0 | BC190: 1 | BD190: 0 | BE190: 0 | BF190: 0 | BG190: 0 | BH190: 0 | BI190: 0 | BJ190: 0 | BT190: 0 | BU190: 0 | BV190: 0 | BW190: 0 | BX190: 0 | BY190: 0 | BZ190: 0 | CA190: 0 | CB190: 8 | CC190: 8 | CD190: 0 | CF190: 0 | CG190: 0 | CH190: 0 | CI190: 0 | CJ190: 0 | CK190: 0 | CL190: 0 | CM190: 0 | CN190: No | CO190: No | CP190: 0 | CQ190: * | CS190: No | CT190: No | CU190: No | CW190: 0
P191: 0 | Q191: 0 | S191: 0 | V191: =IF(AND($B$4>"BC-",M191>0),$B$4,"") ->  | AH191: 0 | AI191: 0 | AJ191: 0 | AK191: 0 | AL191: 0 | AM191: 0 | AN191: 0 | AO191: 0 | AP191: 100% | AS191: 0 | AT191: 0 | AU191: 0 | AV191: 0 | AW191: 1 | AX191: 0 | AY191: 0 | AZ191: 0 | BA191: 0 | BB191: 0 | BC191: 1 | BD191: 0 | BE191: 0 | BF191: 0 | BG191: 0 | BH191: 0 | BI191: 0 | BJ191: 0 | BT191: 0 | BU191: 0 | BV191: 0 | BW191: 0 | BX191: 0 | BY191: 0 | BZ191: 0 | CA191: 0 | CB191: 8 | CC191: 8 | CD191: 0 | CF191: 0 | CG191: 0 | CH191: 0 | CI191: 0 | CJ191: 0 | CK191: 0 | CL191: 0 | CM191: 0 | CN191: No | CO191: No | CP191: 0 | CQ191: * | CS191: No | CT191: No | CU191: No | CW191: 0
P192: 0 | Q192: 0 | S192: 0 | V192: =IF(AND($B$4>"BC-",M192>0),$B$4,"") ->  | AH192: 0 | AI192: 0 | AJ192: 0 | AK192: 0 | AL192: 0 | AM192: 0 | AN192: 0 | AO192: 0 | AP192: 100% | AS192: 0 | AT192: 0 | AU192: 0 | AV192: 0 | AW192: 1 | AX192: 0 | AY192: 0 | AZ192: 0 | BA192: 0 | BB192: 0 | BC192: 1 | BD192: 0 | BE192: 0 | BF192: 0 | BG192: 0 | BH192: 0 | BI192: 0 | BJ192: 0 | BT192: 0 | BU192: 0 | BV192: 0 | BW192: 0 | BX192: 0 | BY192: 0 | BZ192: 0 | CA192: 0 | CB192: 8 | CC192: 8 | CD192: 0 | CF192: 0 | CG192: 0 | CH192: 0 | CI192: 0 | CJ192: 0 | CK192: 0 | CL192: 0 | CM192: 0 | CN192: No | CO192: No | CP192: 0 | CQ192: * | CS192: No | CT192: No | CU192: No | CW192: 0
P193: 0 | Q193: 0 | S193: 0 | V193: =IF(AND($B$4>"BC-",M193>0),$B$4,"") ->  | AH193: 0 | AI193: 0 | AJ193: 0 | AK193: 0 | AL193: 0 | AM193: 0 | AN193: 0 | AO193: 0 | AP193: 100% | AS193: 0 | AT193: 0 | AU193: 0 | AV193: 0 | AW193: 1 | AX193: 0 | AY193: 0 | AZ193: 0 | BA193: 0 | BB193: 0 | BC193: 1 | BD193: 0 | BE193: 0 | BF193: 0 | BG193: 0 | BH193: 0 | BI193: 0 | BJ193: 0 | BT193: 0 | BU193: 0 | BV193: 0 | BW193: 0 | BX193: 0 | BY193: 0 | BZ193: 0 | CA193: 0 | CB193: 8 | CC193: 8 | CD193: 0 | CF193: 0 | CG193: 0 | CH193: 0 | CI193: 0 | CJ193: 0 | CK193: 0 | CL193: 0 | CM193: 0 | CN193: No | CO193: No | CP193: 0 | CQ193: * | CS193: No | CT193: No | CU193: No | CW193: 0
P194: 0 | Q194: 0 | S194: 0 | V194: =IF(AND($B$4>"BC-",M194>0),$B$4,"") ->  | AH194: 0 | AI194: 0 | AJ194: 0 | AK194: 0 | AL194: 0 | AM194: 0 | AN194: 0 | AO194: 0 | AP194: 100% | AS194: 0 | AT194: 0 | AU194: 0 | AV194: 0 | AW194: 1 | AX194: 0 | AY194: 0 | AZ194: 0 | BA194: 0 | BB194: 0 | BC194: 1 | BD194: 0 | BE194: 0 | BF194: 0 | BG194: 0 | BH194: 0 | BI194: 0 | BJ194: 0 | BT194: 0 | BU194: 0 | BV194: 0 | BW194: 0 | BX194: 0 | BY194: 0 | BZ194: 0 | CA194: 0 | CB194: 8 | CC194: 8 | CD194: 0 | CF194: 0 | CG194: 0 | CH194: 0 | CI194: 0 | CJ194: 0 | CK194: 0 | CL194: 0 | CM194: 0 | CN194: No | CO194: No | CP194: 0 | CQ194: * | CS194: No | CT194: No | CU194: No | CW194: 0
P195: 0 | Q195: 0 | S195: 0 | V195: =IF(AND($B$4>"BC-",M195>0),$B$4,"") ->  | AH195: 0 | AI195: 0 | AJ195: 0 | AK195: 0 | AL195: 0 | AM195: 0 | AN195: 0 | AO195: 0 | AP195: 100% | AS195: 0 | AT195: 0 | AU195: 0 | AV195: 0 | AW195: 1 | AX195: 0 | AY195: 0 | AZ195: 0 | BA195: 0 | BB195: 0 | BC195: 1 | BD195: 0 | BE195: 0 | BF195: 0 | BG195: 0 | BH195: 0 | BI195: 0 | BJ195: 0 | BT195: 0 | BU195: 0 | BV195: 0 | BW195: 0 | BX195: 0 | BY195: 0 | BZ195: 0 | CA195: 0 | CB195: 8 | CC195: 8 | CD195: 0 | CF195: 0 | CG195: 0 | CH195: 0 | CI195: 0 | CJ195: 0 | CK195: 0 | CL195: 0 | CM195: 0 | CN195: No | CO195: No | CP195: 0 | CQ195: * | CS195: No | CT195: No | CU195: No | CW195: 0
P196: 0 | Q196: 0 | S196: 0 | V196: =IF(AND($B$4>"BC-",M196>0),$B$4,"") ->  | AH196: 0 | AI196: 0 | AJ196: 0 | AK196: 0 | AL196: 0 | AM196: 0 | AN196: 0 | AO196: 0 | AP196: 100% | AS196: 0 | AT196: 0 | AU196: 0 | AV196: 0 | AW196: 1 | AX196: 0 | AY196: 0 | AZ196: 0 | BA196: 0 | BB196: 0 | BC196: 1 | BD196: 0 | BE196: 0 | BF196: 0 | BG196: 0 | BH196: 0 | BI196: 0 | BJ196: 0 | BT196: 0 | BU196: 0 | BV196: 0 | BW196: 0 | BX196: 0 | BY196: 0 | BZ196: 0 | CA196: 0 | CB196: 8 | CC196: 8 | CD196: 0 | CF196: 0 | CG196: 0 | CH196: 0 | CI196: 0 | CJ196: 0 | CK196: 0 | CL196: 0 | CM196: 0 | CN196: No | CO196: No | CP196: 0 | CQ196: * | CS196: No | CT196: No | CU196: No | CW196: 0
P197: 0 | Q197: 0 | S197: 0 | V197: =IF(AND($B$4>"BC-",M197>0),$B$4,"") ->  | AH197: 0 | AI197: 0 | AJ197: 0 | AK197: 0 | AL197: 0 | AM197: 0 | AN197: 0 | AO197: 0 | AP197: 100% | AS197: 0 | AT197: 0 | AU197: 0 | AV197: 0 | AW197: 1 | AX197: 0 | AY197: 0 | AZ197: 0 | BA197: 0 | BB197: 0 | BC197: 1 | BD197: 0 | BE197: 0 | BF197: 0 | BG197: 0 | BH197: 0 | BI197: 0 | BJ197: 0 | BT197: 0 | BU197: 0 | BV197: 0 | BW197: 0 | BX197: 0 | BY197: 0 | BZ197: 0 | CA197: 0 | CB197: 8 | CC197: 8 | CD197: 0 | CF197: 0 | CG197: 0 | CH197: 0 | CI197: 0 | CJ197: 0 | CK197: 0 | CL197: 0 | CM197: 0 | CN197: No | CO197: No | CP197: 0 | CQ197: * | CS197: No | CT197: No | CU197: No | CW197: 0
P198: 0 | Q198: 0 | S198: 0 | V198: =IF(AND($B$4>"BC-",M198>0),$B$4,"") ->  | AH198: 0 | AI198: 0 | AJ198: 0 | AK198: 0 | AL198: 0 | AM198: 0 | AN198: 0 | AO198: 0 | AP198: 100% | AS198: 0 | AT198: 0 | AU198: 0 | AV198: 0 | AW198: 1 | AX198: 0 | AY198: 0 | AZ198: 0 | BA198: 0 | BB198: 0 | BC198: 1 | BD198: 0 | BE198: 0 | BF198: 0 | BG198: 0 | BH198: 0 | BI198: 0 | BJ198: 0 | BT198: 0 | BU198: 0 | BV198: 0 | BW198: 0 | BX198: 0 | BY198: 0 | BZ198: 0 | CA198: 0 | CB198: 8 | CC198: 8 | CD198: 0 | CF198: 0 | CG198: 0 | CH198: 0 | CI198: 0 | CJ198: 0 | CK198: 0 | CL198: 0 | CM198: 0 | CN198: No | CO198: No | CP198: 0 | CQ198: * | CS198: No | CT198: No | CU198: No | CW198: 0
P199: 0 | Q199: 0 | S199: 0 | V199: =IF(AND($B$4>"BC-",M199>0),$B$4,"") ->  | AH199: 0 | AI199: 0 | AJ199: 0 | AK199: 0 | AL199: 0 | AM199: 0 | AN199: 0 | AO199: 0 | AP199: 100% | AS199: 0 | AT199: 0 | AU199: 0 | AV199: 0 | AW199: 1 | AX199: 0 | AY199: 0 | AZ199: 0 | BA199: 0 | BB199: 0 | BC199: 1 | BD199: 0 | BE199: 0 | BF199: 0 | BG199: 0 | BH199: 0 | BI199: 0 | BJ199: 0 | BT199: 0 | BU199: 0 | BV199: 0 | BW199: 0 | BX199: 0 | BY199: 0 | BZ199: 0 | CA199: 0 | CB199: 8 | CC199: 8 | CD199: 0 | CF199: 0 | CG199: 0 | CH199: 0 | CI199: 0 | CJ199: 0 | CK199: 0 | CL199: 0 | CM199: 0 | CN199: No | CO199: No | CP199: 0 | CQ199: * | CS199: No | CT199: No | CU199: No | CW199: 0
P200: 0 | Q200: 0 | S200: 0 | V200: =IF(AND($B$4>"BC-",M200>0),$B$4,"") ->  | AH200: 0 | AI200: 0 | AJ200: 0 | AK200: 0 | AL200: 0 | AM200: 0 | AN200: 0 | AO200: 0 | AP200: 100% | AS200: 0 | AT200: 0 | AU200: 0 | AV200: 0 | AW200: 1 | AX200: 0 | AY200: 0 | AZ200: 0 | BA200: 0 | BB200: 0 | BC200: 1 | BD200: 0 | BE200: 0 | BF200: 0 | BG200: 0 | BH200: 0 | BI200: 0 | BJ200: 0 | BT200: 0 | BU200: 0 | BV200: 0 | BW200: 0 | BX200: 0 | BY200: 0 | BZ200: 0 | CA200: 0 | CB200: 8 | CC200: 8 | CD200: 0 | CF200: 0 | CG200: 0 | CH200: 0 | CI200: 0 | CJ200: 0 | CK200: 0 | CL200: 0 | CM200: 0 | CN200: No | CO200: No | CP200: 0 | CQ200: * | CS200: No | CT200: No | CU200: No | CW200: 0
... 362 more rows

Sheet Exhibit 1 (hidden)
A1: EXHIBIT 1
H2: Year | I2: 2024
H3: 0.26
A4: Class | B4: Territory 1 | D4: Territory 2 | F4: Territory 3 | H4: Territory 4 | J4: Territory 5 | L4: Territory 6 | N4: Territory 7 | P4: Class
B5: PPP | C5: Assess | D5: PPP | E5: Assess | F5: PPP | G5: Assess | H5: PPP | I5: Assess | J5: PPP | K5: Assess | L5: PPP | M5: Assess | N5: PPP | O5: Assess
A6: 005 | B6: 4243 | C6: =ROUND(PRODUCT(H3,B6),0) -> 1103 | D6: 2309 | E6: =ROUND(PRODUCT(H3,D6),0) -> 600 | F6: 2703 | G6: =ROUND(PRODUCT(H3,F6),0) -> 703 | H6: 3324 | I6: =ROUND(PRODUCT(H3,H6),0) -> 864 | J6: 3573 | K6: =ROUND(PRODUCT(H3,J6),0) -> 929 | L6: 2838 | M6: =ROUND(PRODUCT(H3,L6),0) -> 738 | N6: 3324 | O6: =ROUND(PRODUCT(H3,N6),0) -> 864 | P6: 005
A7: 006 | B7: 8310 | C7: =ROUND(PRODUCT(H3,B7),0) -> 2161 | D7: 4099 | E7: =ROUND(PRODUCT(H3,D7),0) -> 1066 | F7: 4956 | G7: =ROUND(PRODUCT(H3,F7),0) -> 1289 | H7: 6309 | I7: =ROUND(PRODUCT(H3,H7),0) -> 1640 | J7: 6851 | K7: =ROUND(PRODUCT(H3,J7),0) -> 1781 | L7: 5249 | M7: =ROUND(PRODUCT(H3,L7),0) -> 1365 | N7: 6221 | O7: =ROUND(PRODUCT(H3,N7),0) -> 1617 | P7: 006
A8: 007 | B8: 14812 | C8: =ROUND(PRODUCT(H3,B8),0) -> 3851 | D8: 6960 | E8: =ROUND(PRODUCT(H3,D8),0) -> 1810 | F8: 8558 | G8: =ROUND(PRODUCT(H3,F8),0) -> 2225 | H8: 11082 | I8: =ROUND(PRODUCT(H3,H8),0) -> 2881 | J8: 12092 | K8: =ROUND(PRODUCT(H3,J8),0) -> 3144 | L8: 9105 | M8: =ROUND(PRODUCT(H3,L8),0) -> 2367 | N8: 11082 | O8: =ROUND(PRODUCT(H3,N8),0) -> 2881 | P8: 007
A9: 010 | B9: 10682 | C9: =ROUND(PRODUCT(H3,B9),0) -> 2777 | D9: 5143 | E9: =ROUND(PRODUCT(H3,D9),0) -> 1337 | F9: 6270 | G9: =ROUND(PRODUCT(H3,F9),0) -> 1630 | H9: 8051 | I9: =ROUND(PRODUCT(H3,H9),0) -> 2093 | J9: 8763 | K9: =ROUND(PRODUCT(H3,J9),0) -> 2278 | L9: 6656 | M9: =ROUND(PRODUCT(H3,L9),0) -> 1731 | N9: 8051 | O9: =ROUND(PRODUCT(H3,N9),0) -> 2093 | P9: 010
A10: 012 | B10: 30762 | C10: =ROUND(PRODUCT(H3,B10),0) -> 7998 | D10: 13978 | E10: =ROUND(PRODUCT(H3,D10),0) -> 3634 | F10: 17395 | G10: =ROUND(PRODUCT(H3,F10),0) -> 4523 | H10: 22790 | I10: =ROUND(PRODUCT(H3,H10),0) -> 5925 | J10: 24948 | K10: =ROUND(PRODUCT(H3,J10),0) -> 6486 | L10: 18564 | M10: =ROUND(PRODUCT(H3,L10),0) -> 4827 | N10: 21404 | O10: =ROUND(PRODUCT(H3,N10),0) -> 5565 | P10: 012
A11: 015 | B11: 21972 | C11: =ROUND(PRODUCT(H3,B11),0) -> 5713 | D11: 10110 | E11: =ROUND(PRODUCT(H3,D11),0) -> 2629 | F11: 12525 | G11: =ROUND(PRODUCT(H3,F11),0) -> 3257 | H11: 16337 | I11: =ROUND(PRODUCT(H3,H11),0) -> 4248 | J11: 17862 | K11: =ROUND(PRODUCT(H3,J11),0) -> 4644 | L11: 13351 | M11: =ROUND(PRODUCT(H3,L11),0) -> 3471 | N11: 15616 | O11: =ROUND(PRODUCT(H3,N11),0) -> 4060 | P11: 015
A12: 017 | B12: 21506 | C12: =ROUND(PRODUCT(H3,B12),0) -> 5592 | D12: 9905 | E12: =ROUND(PRODUCT(H3,D12),0) -> 2575 | F12: 12267 | G12: =ROUND(PRODUCT(H3,F12),0) -> 3189 | H12: 15995 | I12: =ROUND(PRODUCT(H3,H12),0) -> 4159 | J12: 17487 | K12: =ROUND(PRODUCT(H3,J12),0) -> 4547 | L12: 13074 | M12: =ROUND(PRODUCT(H3,L12),0) -> 3399 | N12: 15853 | O12: =ROUND(PRODUCT(H3,N12),0) -> 4122 | P12: 017
A13: 020 | B13: 24916 | C13: =ROUND(PRODUCT(H3,B13),0) -> 6478 | D13: 11405 | E13: =ROUND(PRODUCT(H3,D13),0) -> 2965 | F13: 14156 | G13: =ROUND(PRODUCT(H3,F13),0) -> 3681 | H13: 18498 | I13: =ROUND(PRODUCT(H3,H13),0) -> 4809 | J13: 20236 | K13: =ROUND(PRODUCT(H3,J13),0) -> 5261 | L13: 15097 | M13: =ROUND(PRODUCT(H3,L13),0) -> 3925 | N13: 17252 | O13: =ROUND(PRODUCT(H3,N13),0) -> 4486 | P13: 020
A14: 022 | B14: 34532 | C14: =ROUND(PRODUCT(H3,B14),0) -> 8978 | D14: 15637 | E14: =ROUND(PRODUCT(H3,D14),0) -> 4066 | F14: 19483 | G14: =ROUND(PRODUCT(H3,F14),0) -> 5066 | H14: 25557 | I14: =ROUND(PRODUCT(H3,H14),0) -> 6645 | J14: 27986 | K14: =ROUND(PRODUCT(H3,J14),0) -> 7276 | L14: 20799 | M14: =ROUND(PRODUCT(H3,L14),0) -> 5408 | N14: 23481 | O14: =ROUND(PRODUCT(H3,N14),0) -> 6105 | P14: 022
A15: 025 | B15: 37519 | C15: =ROUND(PRODUCT(H3,B15),0) -> 9755 | D15: 16951 | E15: =ROUND(PRODUCT(H3,D15),0) -> 4407 | F15: 21138 | G15: =ROUND(PRODUCT(H3,F15),0) -> 5496 | H15: 27749 | I15: =ROUND(PRODUCT(H3,H15),0) -> 7215 | J15: 28893 | K15: =ROUND(PRODUCT(H3,J15),0) -> 7512 | L15: 22570 | M15: =ROUND(PRODUCT(H3,L15),0) -> 5868 | N15: 24468 | O15: =ROUND(PRODUCT(H3,N15),0) -> 6362 | P15: 025
A16: 030 | B16: 34109 | C16: =ROUND(PRODUCT(H3,B16),0) -> 8868 | D16: 15450 | E16: =ROUND(PRODUCT(H3,D16),0) -> 4017 | F16: 19249 | G16: =ROUND(PRODUCT(H3,F16),0) -> 5005 | H16: 25246 | I16: =ROUND(PRODUCT(H3,H16),0) -> 6564 | J16: 27645 | K16: =ROUND(PRODUCT(H3,J16),0) -> 7188 | L16: 20548 | M16: =ROUND(PRODUCT(H3,L16),0) -> 5342 | N16: 23938 | O16: =ROUND(PRODUCT(H3,N16),0) -> 6224 | P16: 030
A17: 035 | B17: 51478 | C17: =ROUND(PRODUCT(H3,B17),0) -> 13384 | D17: 23093 | E17: =ROUND(PRODUCT(H3,D17),0) -> 6004 | F17: 28871 | G17: =ROUND(PRODUCT(H3,F17),0) -> 7506 | H17: 37995 | I17: =ROUND(PRODUCT(H3,H17),0) -> 9879 | J17: 41265 | K17: =ROUND(PRODUCT(H3,J17),0) -> 10729 | L17: 30848 | M17: =ROUND(PRODUCT(H3,L17),0) -> 8020 | N17: 34246 | O17: =ROUND(PRODUCT(H3,N17),0) -> 8904 | P17: 035
A18: 050 | B18: 44678 | C18: =ROUND(PRODUCT(H3,B18),0) -> 11616 | D18: 20101 | E18: =ROUND(PRODUCT(H3,D18),0) -> 5226 | F18: 25104 | G18: =ROUND(PRODUCT(H3,F18),0) -> 6527 | H18: 33004 | I18: =ROUND(PRODUCT(H3,H18),0) -> 8581 | J18: 36164 | K18: =ROUND(PRODUCT(H3,J18),0) -> 9403 | L18: 26816 | M18: =ROUND(PRODUCT(H3,L18),0) -> 6972 | N18: 32523 | O18: =ROUND(PRODUCT(H3,N18),0) -> 8456 | P18: 050
A19: 060 | B19: 52092 | C19: =ROUND(PRODUCT(H3,B19),0) -> 13544 | D19: 23363 | E19: =ROUND(PRODUCT(H3,D19),0) -> 6074 | F19: 29211 | G19: =ROUND(PRODUCT(H3,F19),0) -> 7595 | H19: 38446 | I19: =ROUND(PRODUCT(H3,H19),0) -> 9996 | J19: 42139 | K19: =ROUND(PRODUCT(H3,J19),0) -> 10956 | L19: 31212 | M19: =ROUND(PRODUCT(H3,L19),0) -> 8115 | N19: 38267 | O19: =ROUND(PRODUCT(H3,N19),0) -> 9949 | P19: 060
A20: 070 | B20: 82509 | C20: =ROUND(PRODUCT(H3,B20),0) -> 21452 | D20: 36746 | E20: =ROUND(PRODUCT(H3,D20),0) -> 9554 | F20: 46062 | G20: =ROUND(PRODUCT(H3,F20),0) -> 11976 | H20: 60772 | I20: =ROUND(PRODUCT(H3,H20),0) -> 15801 | J20: 66655 | K20: =ROUND(PRODUCT(H3,J20),0) -> 17330 | L20: 49249 | M20: =ROUND(PRODUCT(H3,L20),0) -> 12805 | N20: 58428 | O20: =ROUND(PRODUCT(H3,N20),0) -> 15191 | P20: 070
A21: 080 | B21: 102525 | C21: =ROUND(PRODUCT(H3,B21),0) -> 26657 | D21: 45554 | E21: =ROUND(PRODUCT(H3,D21),0) -> 11844 | F21: 57151 | G21: =ROUND(PRODUCT(H3,F21),0) -> 14859 | H21: 75464 | I21: =ROUND(PRODUCT(H3,H21),0) -> 19621 | J21: 82789 | K21: =ROUND(PRODUCT(H3,J21),0) -> 21525 | L21: 61119 | M21: =ROUND(PRODUCT(H3,L21),0) -> 15891 | N21: 69988 | O21: =ROUND(PRODUCT(H3,N21),0) -> 18197 | P21: 080
A22: 090 | B22: 55121 | C22: =ROUND(PRODUCT(H3,B22),0) -> 14331 | D22: 24696 | E22: =ROUND(PRODUCT(H3,D22),0) -> 6421 | F22: 30889 | G22: =ROUND(PRODUCT(H3,F22),0) -> 8031 | H22: 40669 | I22: =ROUND(PRODUCT(H3,H22),0) -> 10574 | J22: 44581 | K22: =ROUND(PRODUCT(H3,J22),0) -> 11591 | L22: 33008 | M22: =ROUND(PRODUCT(H3,L22),0) -> 8582 | N22: 40669 | O22: =ROUND(PRODUCT(H3,N22),0) -> 10574 | P22: 090
A23: 100 | B23: 158466 | C23: =ROUND(PRODUCT(H3,B23),0) -> 41201 | D23: 70168 | E23: =ROUND(PRODUCT(H3,D23),0) -> 18244 | F23: 88143 | G23: =ROUND(PRODUCT(H3,F23),0) -> 22917 | H23: 116524 | I23: =ROUND(PRODUCT(H3,H23),0) -> 30296 | J23: 127877 | K23: =ROUND(PRODUCT(H3,J23),0) -> 33248 | L23: 94292 | M23: =ROUND(PRODUCT(H3,L23),0) -> 24516 | N23: 111901 | O23: =ROUND(PRODUCT(H3,N23),0) -> 29094 | P23: 100
A24: 120 | B24: 4984 | C24: =ROUND(PRODUCT(H3,B24),0) -> 1296 | D24: 2635 | E24: =ROUND(PRODUCT(H3,D24),0) -> 685 | F24: 3114 | G24: =ROUND(PRODUCT(H3,F24),0) -> 810 | H24: 3868 | I24: =ROUND(PRODUCT(H3,H24),0) -> 1006 | J24: 4170 | K24: =ROUND(PRODUCT(H3,J24),0) -> 1084 | L24: 3277 | M24: =ROUND(PRODUCT(H3,L24),0) -> 852 | N24: 3868 | O24: =ROUND(PRODUCT(H3,N24),0) -> 1006 | P24: 120
A25: 130 | B25: 36058 | C25: =ROUND(PRODUCT(H3,B25),0) -> 9375 | D25: 16308 | E25: =ROUND(PRODUCT(H3,D25),0) -> 4240 | F25: 20328 | G25: =ROUND(PRODUCT(H3,F25),0) -> 5285 | H25: 26676 | I25: =ROUND(PRODUCT(H3,H25),0) -> 6936 | J25: 27683 | K25: =ROUND(PRODUCT(H3,J25),0) -> 7198 | L25: 21704 | M25: =ROUND(PRODUCT(H3,L25),0) -> 5643 | N25: 23024 | O25: =ROUND(PRODUCT(H3,N25),0) -> 5986 | P25: 130
A26: 900 | B26: 33071 | C26: =ROUND(PRODUCT(H3,B26),0) -> 8598 | D26: 14994 | E26: =ROUND(PRODUCT(H3,D26),0) -> 3898 | F26: 18674 | G26: =ROUND(PRODUCT(H3,F26),0) -> 4855 | H26: 24484 | I26: =ROUND(PRODUCT(H3,H26),0) -> 6366 | J26: 26434 | K26: =ROUND(PRODUCT(H3,J26),0) -> 6873 | L26: 19933 | M26: =ROUND(PRODUCT(H3,L26),0) -> 5183 | N26: 21993 | O26: =ROUND(PRODUCT(H3,N26),0) -> 5718 | P26: 900
J27: Certified Nurse Midwife = 900 | M27: 80116
J28: Podiatrist Non-surgical = 120 | M28: 80993
J29: Podiatrist Surgical = 130 | M29: 80994
A30: Territory 1 = Philadelphia (51)
A31: Territory 2 = Remainder of State (01, 05, 06, 08, 10-12, 14, 16, 18, 21, 24, 27-32, 34, 36, 38, 41, 42, 44, 47, 49, 50, 52, 53, 55-62, 64, 66, 67)
A32: Territory 3 = Allegheny (02), Armstrong (03), Beaver (04), Carbon (13), Clearfield (17), Dauphin (22), Jefferson (33), Washington (63)
A33: Territory 4 = Delaware (23), Fayette (26), Luzerne (40), Mercer (43)
A34: Territory 5 = Lackawanna (35)
A35: Territory 6 = Bucks (09), Chester (15), Columbia (19), Crawford (20), Erie (25), Lawrence (37), Lehigh (39), Monroe (45), Montgomery (46), Northampton (48),
B36: Schuylkill (54), westmoreland (65)
A37: Territory 7 = Blair (07)

Sheet HS WS
B1: 2024 EXHIBIT 6 - HOSPITAL WORKSHEET (SPECIALTY CODE 80612)
AJ2: =SUM(C:W) -> 23199.74 | AN2: 2018-07-09T13:16:00 | AO2: 2018 EXHIBIT 6 - HOSPITAL WORKSHEET (SPECIALTY CODE 80612)
B3: Primary Carrier | C3: =IF('e-216'!G3="Please Select Primary Carrier","",'e-216'!G3) ->  | AJ3: 229756.0474
B4: Carrier Code | C4: ='e-216'!Q1 ->  | AJ4: =SUM(C:W) -> 23199.74 | AN4: 2017-12-21T10:21:00 | AO4: Insurer's #:
B5: Date | C5: =IF('e-216'!B2="Completion Date","",'e-216'!B2) ->  | AJ5: 23200.67
B6: Hospital's Name
B7: Hospital's Address
B8: Hospital's Assigned #
B9: Basic Insurance Coverage Limits: | D9: $ 500,000.00 Per Occ.
D10: $2,500,000.00 Per Agg.
B11: Entry Worksheets must be transferred to the e-216 by clicking the "Transfer to e-216" button.
B12: From Date | C12: To Date | D12: Retro Date | E12: Policy # | F12: Policy Type | G12: County | H12: Territory | K12: Terr 1 | L12: Terr 2 | M12: Terr 3 | N12: Terr 4
H13: =O13 -> 0 | K13: =IF(OR(G13=23,G13=51),1,"0") -> 0 | L13: =IF(OR(G13=23,G13=51,G13=2,G13=20,G13=25,G13=35,G13=37,G13=40,G13=43,G13=9,G13=15,G13=46,G13=0,G13=""),0,"2") -> 0 | M13: =IF(OR(G13=2,G13=20,G13=25,G13=35,G13=37,G13=40,G13=43),3,"0") -> 0 | N13: =IF(OR(G13=9,G13=15,G13=46),4,"0") -> 0 | O13: =SUM(K13+L13+M13+N13) -> 0
B14: List of Annual Occupied Bed Counts
B16: Exposure Type: | C16: Bed Count | D16: Terr. 1 Rates | E16: Terr. 2 Rates | F16: Terr. 3 Rates | G16: Terr. 4 Rates | H16: Subtotal | O16: Daily Rate | P16: # of Days | R16: Rounded Count | W16: Terr 1 PPP | X16: Terr 2 PPP | Y16: Terr 3 PPP | Z16: Terr 4 PPP
B17: Hospital (acute care) | D17: =IF(OR(H13=1), W17,"0") -> 0 | E17: =IF(OR(H13=2),X17,"0") -> 0 | F17: =IF(OR(H13=3),Y17,"0") -> 0 | G17: =IF(OR(H13=4),Z17,"0") -> 0 | H17: =S17*P17 -> 0 | K17: =VALUE(D17) -> 0 | L17: =VALUE(E17) -> 0 | M17: =VALUE(F17) -> 0 | N17: =VALUE(G17) -> 0 | O17: =(K17+L17+M17+N17)*C17/365 -> 0 | P17: =IF(AND(B13<45351,C13>45351),(C13-B13)-1,C13-B13) -> 0 | R17: =ROUND(C17,0) -> 0 | S17: =(K17+L17+M17+N17)*R17/365 -> 0 | V17: Hospital (acute care) | W17: 7600.44 | X17: 3374.58 | Y17: 4225.83 | Z17: 6756.8
B19: Mental Health/Mental Rehab. | D19: =IF(OR(H13=1),W19,"0") -> 0 | E19: =IF(OR(H13=2),X19,"0") -> 0 | F19: =IF(OR(H13=3),Y19,"0") -> 0 | G19: =IF(OR(H13=4),Z19,"0") -> 0 | H19: =S19*P19 -> 0 | K19: =VALUE(D19) -> 0 | L19: 0 | M19: 0 | N19: 0 | O19: =(K19+L19+M19+N19)*C19/365 -> 0 | P19: =IF(AND(B13<45351,C13>45351),(C13-B13)-1,C13-B13) -> 0 | R19: =ROUND(C19,0) -> 0 | S19: =(K19+L19+M19+N19)*R19/365 -> 0 | V19: Mental Health/Mental Rehab. | W19: 3803.48 | X19: 1688.75 | Y19: 2114.73 | Z19: 3381.28
B21: Extended Care | D21: =IF(OR(H13=1),W21,"0") -> 0 | E21: =IF(OR(H13=2),X21,"0") -> 0 | F21: =IF(OR(H13=3),Y21,"0") -> 0 | G21: =IF(OR(H13=4),Z21,"0") -> 0 | H21: =S21*P21 -> 0 | K21: 0 | L21: 0 | M21: 0 | N21: 0 | O21: =(K21+L21+M21+N21)*C21/365 -> 0 | P21: =IF(AND(B13<45351,C13>45351),(C13-B13)-1,C13-B13) -> 0 | R21: =ROUND(C21,0) -> 0 | S21: =(K21+L21+M21+N21)*R21/365 -> 0 | V21: Extended Care | W21: 338.37 | X21: 150.23 | Y21: 188.13 | Z21: 300.8
B23: Out-Patient Surgical | D23: =IF(OR(H13=1),W23,"0") -> 0 | E23: =IF(OR(H13=2),X23,"0") -> 0 | F23: =IF(OR(H13=3),Y23,"0") -> 0 | G23: =IF(OR(H13=4),Z23,"0") -> 0 | H23: =S23*P23 -> 0 | K23: 0 | L23: 0 | M23: 0 | N23: 0 | O23: =(K23+L23+M23+N23)*C23/365 -> 0 | P23: =IF(AND(B13<45351,C13>45351),(C13-B13)-1,C13-B13) -> 0 | R23: =ROUND(C23,0) -> 0 | S23: =(K23+L23+M23+N23)*R23/365 -> 0 | V23: Out-Patient Surgical | W23: 7600.44 | X23: 3374.58 | Y23: 4225.83 | Z23: 6756.8
B25: Health Institution | D25: =IF(OR(H13=1),W25,"0") -> 0 | E25: =IF(OR(H13=2),X25,"0") -> 0 | F25: =IF(OR(H13=3),Y25,"0") -> 0 | G25: =IF(OR(H13=4),Z25,"0") -> 0 | H25: =S25*P25 -> 0 | K25: 0 | L25: 0 | M25: 0 | N25: 0 | O25: =(K25+L25+M25+N25)*C25/365 -> 0 | P25: =IF(AND(B13<45351,C13>45351),(C13-B13)-1,C13-B13) -> 0 | R25: =ROUND(C25,0) -> 0 | S25: =(K25+L25+M25+N25)*R25/365 -> 0 | V25: Health Institution | W25: 1522.7 | X25: 676.07 | Y25: 846.62 | Z25: 1353.66
B26: List of Annual Visit Counts
S27: =(K27+L27+M27+N27)*R27/365 -> 0
B28: Exposure Type: | C28: Total Visit Count* | D28: Terr. 1 Rates | E28: Terr. 2 Rates | F28: Terr. 3 Rates | G28: Terr. 4 Rates | H28: Subtotal
B29: Emergency | D29: =IF(OR(H13=1),W29,"0") -> 0 | E29: =IF(OR(H13=2),X29,"0") -> 0 | F29: =IF(OR(H13=3),Y29,"0") -> 0 | G29: =IF(OR(H13=4),Z29,"0") -> 0 | H29: =S29*P29 -> 0 | K29: =VALUE(D29) -> 0 | L29: =VALUE(E29) -> 0 | M29: =VALUE(F29) -> 0 | N29: =VALUE(G29) -> 0 | O29: =(K29+L29+M29+N29)*(C29/100)/365 -> 0 | P29: =IF(AND(B13<45351,C13>45351),(C13-B13)-1,C13-B13) -> 0 | R29: =ROUND(C29,0) -> 0 | S29: =(K29+L29+M29+N29)*(R29/100)/365 -> 0 | V29: Emergency | W29: 759.73 | X29: 337.33 | Y29: 422.41 | Z29: 675.4
B31: Other | D31: =IF(OR(H13=1),W31,"0") -> 0 | E31: =IF(OR(H13=2),X31,"0") -> 0 | F31: =IF(OR(H13=3),Y31,"0") -> 0 | G31: =IF(OR(H13=4),Z31,"0") -> 0 | H31: =S31*P31 -> 0 | K31: =VALUE(D31) -> 0 | L31: 0 | M31: 0 | N31: 0 | O31: =(K31+L31+M31+N31)*(C31/100)/365 -> 0 | P31: =IF(AND(B13<45351,C13>45351),(C13-B13)-1,C13-B13) -> 0 | R31: =ROUND(C31,0) -> 0 | S31: =(K31+L31+M31+N31)*(R31/100)/365 -> 0 | V31: Other | W31: 303.89 | X31: 134.93 | Y31: 168.97 | Z31: 270.16
B33: Mental Health/Mental Rehab. | D33: =IF(OR(H13=1),W33,"0") -> 0 | E33: =IF(OR(H13=2),X33,"0") -> 0 | F33: =IF(OR(H13=3),Y33,"0") -> 0 | G33: =IF(OR(H13=4),Z33,"0") -> 0 | H33: =S33*P33 -> 0 | K33: 0 | L33: 0 | M33: 0 | N33: 0 | O33: =(K33+L33+M33+N33)*(C33/100)/365 -> 0 | P33: =IF(AND(B13<45351,C13>45351),(C13-B13)-1,C13-B13) -> 0 | R33: =ROUND(C33,0) -> 0 | S33: =(K33+L33+M33+N33)*(R33/100)/365 -> 0 | V33: Mental Health/Mental Rehab. | W33: 189.95 | X33: 84.32 | Y33: 105.58 | Z33: 168.84
B35: Extended Care | D35: =IF(OR(H13=1),W35,"0") -> 0 | E35: =IF(OR(H13=2),X35,"0") -> 0 | F35: =IF(OR(H13=3),Y35,"0") -> 0 | G35: =IF(OR(H13=4),Z35,"0") -> 0 | H35: =S35*P35 -> 0 | K35: 0 | L35: 0 | M35: 0 | N35: 0 | O35: =(K35+L35+M35+N35)*(C35/100)/365 -> 0 | P35: =IF(AND(B13<45351,C13>45351),(C13-B13)-1,C13-B13) -> 0 | R35: =ROUND(C35,0) -> 0 | S35: =(K35+L35+M35+N35)*(R35/100)/365 -> 0 | V35: Extended Care | W35: 16.86 | X35: 7.5 | Y35: 9.36 | Z35: 15.01
W36: .
B37: Out-Patient Surgical | D37: =IF(OR(H13=1),W37,"0") -> 0 | E37: =IF(OR(H13=2),X37,"0") -> 0 | F37: =IF(OR(H13=3),Y37,"0") -> 0 | G37: =IF(OR(H13=4),Z37,"0") -> 0 | H37: =S37*P37 -> 0 | K37: 0 | L37: 0 | M37: 0 | N37: 0 | O37: =(K37+L37+M37+N37)*(C37/100)/365 -> 0 | P37: =IF(AND(B13<45351,C13>45351),(C13-B13)-1,C13-B13) -> 0 | R37: =ROUND(C37,0) -> 0 | S37: =(K37+L37+M37+N37)*(R37/100)/365 -> 0 | V37: Out-Patient Surgical | W37: 759.73 | X37: 337.33 | Y37: 422.41 | Z37: 675.4
B39: Health Institution | D39: =IF(OR(H13=1),W39,"0") -> 0 | E39: =IF(OR(H13=2),X39,"0") -> 0 | F39: =IF(OR(H13=3),Y39,"0") -> 0 | G39: =IF(OR(H13=4),Z39,"0") -> 0 | H39: =S39*P39 -> 0 | K39: 0 | L39: 0 | M39: 0 | N39: 0 | O39: =(K39+L39+M39+N39)*(C39/100)/365 -> 0 | P39: =IF(AND(B13<45351,C13>45351),(C13-B13)-1,C13-B13) -> 0 | R39: =ROUND(C39,0) -> 0 | S39: =(K39+L39+M39+N39)*(R39/100)/365 -> 0 | V39: Health Institution | W39: 113.94 | X39: 50.6 | Y39: 63.36 | Z39: 101.3
B41: Home Health Care | D41: =IF(OR(H13=1),W41,"0") -> 0 | E41: =IF(OR(H13=2),X41,"0") -> 0 | F41: =IF(OR(H13=3),Y41,"0") -> 0 | G41: =IF(OR(H13=4),Z41,"0") -> 0 | H41: =S41*P41 -> 0 | K41: 0 | L41: 0 | M41: 0 | N41: 0 | O41: =(K41+L41+M41+N41)*(C41/100)/365 -> 0 | P41: =IF(AND(B13<45351,C13>45351),(C13-B13)-1,C13-B13) -> 0 | R41: =ROUND(C41,0) -> 0 | S41: =(K41+L41+M41+N41)*(R41/100)/365 -> 0 | V41: Home Health Care | W41: 189.95 | X41: 84.32 | Y41: 105.58 | Z41: 168.84
B42: * Enter the actual "Visit Count." The spreadsheet will divide the "Visit Count" entered by 100.
B43: Hospital's Assessment
B45: Prevailing Primary Premium | H45: =H17+H19+H21+H23+H25+H29+H31+H33+H35+H37+H39+H41 -> 0
B47: Experience Modification Factor (as provided by Mcare)
B48: 2024 Mcare Assessment % | H48: 0.26
B49: Mcare Assessment | H49: =ROUND(K49,0) -> 0 | K49: =(H45*H47)*H48 -> 0

Sheet MC WS
B1: 2024 EXHIBIT 5 - CORPORATION, ASSOCIATION & COMPANY, & PARTNERSHIP WORKSHEET (SPECIALTY CODE 80999)
AJ2: =SUM(C[-33]:C[-13]) | AN2: 2018-01-16T09:22:00 | AO2: 2018 EXHIBIT 5 - CORPORATION, ASSOCIATION & PARTNERSHIP WORKSHEET (SPECIALTY CODE 80999)
B3: Primary Carrier | C3: =IF('e-216'!G3="Please Select Primary Carrier","",'e-216'!G3) ->  | AJ3: =SUM(C[-33]:C[-13])
B4: Carrier Code | C4: ='e-216'!Q1 -> 
B5: Date | C5: =IF('e-216'!B2="Completion Date","",'e-216'!B2) -> 
B6: Entity's Name
B7: Entity's Address
B8: Entity's Assigned #
B9: Basic Insurance Coverage Limits: | D9: $ 500,000.00 Per Occ.
D10: $1,500,000.00 Per Agg.
B11: Entry Worksheets must be transferred to the e-216 by clicking the "Transfer to e-216" button.
B12: From Date | C12: To Date | D12: Retro Date | E12: Policy # | F12: Policy Type | G12: County Code | H12: Mcare Assessment
H13: =P17 -> 0
B14: List all shareholders, owners, partners and employed health care providers
B16: License # | C16: Name | E16: Specialty Code | F16: County Code | G16: HCP's Annual Assessment | H16: Other Rating Factors | L16: Total Assessment | M16: # of Days | N16: Daily Rate | O16: Entity Assessment | P16: Rounded Assesment
L17: =SUM(G17:G215) -> 0 | M17: =IF(AND(B13<45351,C13>45351),(C13-B13)-1,C13-B13) -> 0 | N17: =L17/365 -> 0 | O17: =(N17*M17)*15% -> 0 | P17: =ROUND(O17,0) -> 0
B216: This worksheet will NOT include health care providers listed below this point in the calculation.

Sheet PC WS
A1: 2024 EXHIBIT 8 - PRIMARY HEALTH CENTER WORKSHEET (SPECIALTY CODE 80614)
AJ2: =SUM(C:W) -> 4336.11 | AN2: 2017-12-27T11:01:00 | AO2: 2024 EXHIBIT 8 - PRIMARY HEALTH CENTER WORKSHEET (SPECIALTY CODE 80614)
A3: Primary Carrier | B3: =IF('e-216'!G3="Please Select Primary Carrier","",'e-216'!G3) ->  | AJ3: 97202.381
A4: Carrier Code | B4: ='e-216'!Q1 -> 
A5: Date | B5: =IF('e-216'!B2="Completion Date","",'e-216'!B2) -> 
A6: PHC's Name
A7: PHC's Address
A8: PHC's Assigned #
A9: Basic Insurance Coverage Limits: | C9: $ 500,000.00 Per Occ.
C10: $1,500,000.00 Per Agg.
A11: Entry Worksheets must be transferred to the e-216 by clicking the "Transfer to e-216" button.
A12: From Date | B12: To Date | C12: Retro Date | D12: Policy # | E12: Policy Type | F12: County Code | G12: Territory | L12: Terr. 1 | M12: Terr. 2 | N12: Terr. 3 | O12: Terr. 4 | P12: County
G13: =P13 -> 0 | L13: =IF(OR(F13=23, F13=51),1,"0") -> 0 | M13: =IF(OR(F13=23, F13=51, F13=2, F13=20,F13=25, F13=35,F13=37,F13=40,F13=43,F13=9,F13=15,F13=46,F13=0,F13=" "),0,"2") -> 0 | N13: =IF(OR(F13=2, F13=20, F13=25, F13=35, F13=37, F13=40, F13=43),3,"0") -> 0 | O13: =IF(OR(F13=9, F13=15, F13=46),4,"0") -> 0 | P13: =SUM(L13+M13+N13+O13) -> 0
A14: List Annual Visit Counts
A16: Exposure Type | B16: Total Visit Count | C16: Terr. 1 Rates | D16: Terr. 2 Rates | E16: Terr. 3 Rates | F16: Terr. 4 Rates | G16: Subtotal | N16: Daily Rate | O16: # of Days | Q16: Rounded Visits | U16: Terr. 1 PPP | V16: Terr. 2 PPP | W16: Terr. 3 PPP | X16: Terr. 4 PPP
A17: Emergency | C17: =IF(OR(G13=1),U17,"0") -> 0 | D17: =IF(OR(G13=2),V17,"0") -> 0 | E17: =IF(OR(G13=3),W17,"0") -> 0 | F17: =IF(OR(G13=4),X17,"0") -> 0 | G17: =(N17*O17)*(Q17/100) -> 0 | L17: =SUM(C17+D17+E17+F17) -> 0 | M17: =B17/100 -> 0 | N17: =(C17+D17+E17+F17)/365 -> 0 | O17: =IF(AND(A13<45351,B13>45351),(B13-A13)-1,B13-A13) -> 0 | P17: =(O17*N17)*M17 -> 0 | Q17: =ROUND(B17,0) -> 0 | T17: Emergency | U17: 747.59 | V17: 331.91 | W17: 415.67 | X17: 664.6
A19: Other | C19: =IF(OR(G13=1),U19,"0") -> 0 | D19: =IF(OR(G13=2),V19,"0") -> 0 | E19: =IF(OR(G13=3),W19,"0") -> 0 | F19: =IF(OR(G13=4),X19,"0") -> 0 | G19: =(N19*O19)*(Q19/100) -> 0 | L19: =SUM(C19+D19+E19+F19) -> 0 | M19: =B19/100 -> 0 | N19: =(C19+D19+E19+F19)/365 -> 0 | O19: =IF(AND(A13<45351,B13>45351),(B13-A13)-1,B13-A13) -> 0 | P19: =(O19*N19)*M19 -> 0 | Q19: =ROUND(B19,0) -> 0 | T19: Other | U19: 299.04 | V19: 132.76 | W19: 166.27 | X19: 265.85
A21: Mental Health/Mental Rehab. | C21: =IF(OR(G13=1),U21,"0") -> 0 | D21: =IF(OR(G13=2),V21,"0") -> 0 | E21: =IF(OR(G13=3),W21,"0") -> 0 | F21: =IF(OR(G13=4),X21,"0") -> 0 | G21: =(N21*O21)*(Q21/100) -> 0 | L21: 0 | M21: 0 | N21: 0 | O21: =IF(AND(A13<45351,B13>45351),(B13-A13)-1,B13-A13) -> 0 | P21: 0 | Q21: 0 | T21: Mental Health/Mental Rehab. | U21: 186.92 | V21: 83 | W21: 103.93 | X21: 166.18
A23: Out-Patient Surgical | C23: =IF(OR(G13=1),U23,"0") -> 0 | D23: =IF(OR(G13=2),V23,"0") -> 0 | E23: =IF(OR(G13=3),W23,"0") -> 0 | F23: =IF(OR(G13=4),X23,"0") -> 0 | G23: =(N23*O23)*(Q23/100) -> 0 | L23: 0 | M23: 0 | N23: 0 | O23: =IF(AND(A13<45351,B13>45351),(B13-A13)-1,B13-A13) -> 0 | P23: 0 | Q23: 0 | T23: Out-Patient Surgical | U23: 747.59 | V23: 331.91 | W23: 415.67 | X23: 664.6
A25: Home Health Care | C25: =IF(OR(G13=1),U25,"0") -> 0 | D25: =IF(OR(G13=2),V25,"0") -> 0 | E25: =IF(OR(G13=3),W25,"0") -> 0 | F25: =IF(OR(G13=4),X25,"0") -> 0 | G25: =(N25*O25)*(Q25/100) -> 0 | L25: 0 | M25: 0 | N25: 0 | O25: =IF(AND(A13<45351,B13>45351),(B13-A13)-1,B13-A13) -> 0 | P25: 0 | Q25: 0 | T25: Home Health Care | U25: 186.92 | V25: 83 | W25: 103.93 | X25: 166.18
A26: Primary Health Center's Assessment
A28: Prevailing Primary Premium | G28: =SUM(G17,G19,G21,G23,G25) -> 0
L29: =G28*26% -> 0
A30: Mcare Assessment | G30: =ROUND(L29,0) -> 0

Sheet NC WS
B1: 2024 EXHIBIT 7 - NURSING HOME WORKSHEET (SPECIALTY CODE 80924)
B3: Primary Carrier | C3: =IF('e-216'!G3="Please Select Primary Carrier","",'e-216'!G3) -> 
B4: Carrier Code | C4: ='e-216'!Q1 -> 
B5: Date | C5: =IF('e-216'!B2="Completion Date","",'e-216'!B2) -> 
B6: Nursing Home Name
B7: Nurs. Home's Address
B8: Nurs. Home's Assigned #
B9: Basic Insurance Coverage Limits: | D9: $ 500,000.00 Per Occ.
D10: $1,500,000.00 Per Agg.
B11: Entry Worksheets must be transferred to the e-216 by clicking the "Transfer to e-216" button.
B13: From Date | C13: To Date | D13: Retro Date | E13: Policy # | F13: Policy Type | G13: County Code | H13: Territory | L13: Terr 1 | M13: Terr 2 | N13: Terr 3 | O13: Terr 4
H14: =P14 -> 0 | L14: =IF(OR(G14=23,G14=51),1,"0") -> 0 | M14: =IF(OR(G14=23,G14=51,G14=2,G14=20,G14=25,G14=35,G14=37,G14=40,G14=43,G14=9,G14=15,G14=46,G14=0,G14=""),0,"2") -> 0 | N14: =IF(OR(G14=2,G14=20,G14=25,G14=35,G14=37,G14=40,G14=43),3,"0") -> 0 | O14: =IF(OR(G14=9,G14=15,G14=46),4,"0") -> 0 | P14: =SUM(L14+M14+N14+O14) -> 0
B15: List Annual Occupied Bed Counts
B20: Exposure Type | C20: Bed Count | D20: Terr. 1 Rates | E20: Terr. 2 Rates | F20: Terr. 3 Rates | G20: Terr. 4 Rates | H20: Prevailing Primary Premium | W20: Terr. 1 PPP | X20: Terr. 2 PPP | Y20: Terr. 3 PPP | Z20: Terr. 4 PPP
N21: Daily Rate | O21: # of Days
B22: Convalescent | D22: =IF(OR(H14=1),W22,"0") -> 0 | E22: =IF(OR(H14=2),X22,"0") -> 0 | F22: =IF(OR(H14=3),Y22,"0") -> 0 | G22: =IF(OR(H14=4),Z22,"0") -> 0 | H22: =(N22*O22)*Q22 -> 0 | M22: =SUM(D22+E22+F22+G22) -> 0 | N22: =M22/365 -> 0 | O22: =IF(AND(B14<45351,C14>45351),(C14-B14)-1,C14-B14) -> 0 | Q22: =ROUND(C22,0) -> 0 | V22: Convalescent | W22: 516.81 | X22: 229.49 | Y22: 287.37 | Z22: 459.46
B23: or
B24: Skilled Nursing | D24: =IF(OR(H14=1),W24,"0") -> 0 | E24: =IF(OR(H14=2),X24,"0") -> 0 | F24: =IF(OR(H14=3),Y24,"0") -> 0 | G24: =IF(OR(H14=4),Z24,"0") -> 0 | H24: =(N24*O24)*Q24 -> 0 | M24: =SUM(D24+E24+F24+G24) -> 0 | N24: =M24/365 -> 0 | O24: =IF(AND(B14<45351,C14>45351),(C14-B14)-1,C14-B14) -> 0 | Q24: =ROUND(C24,0) -> 0 | V24: Skilled Nursing | W24: 425.63 | X24: 188.99 | Y24: 236.65 | Z24: 378.39
B25: Nursing Home's Assessment
B27: Prevailing Primary Premium | H27: =(H22+H24) -> 0
B29: Mcare Assessment | H29: =ROUND(L29,0) -> 0 | L29: =H27*26% -> 0

Sheet BC WS
B1: 2024 EXHIBIT 9 - BIRTH CENTER WORKSHEET (SPECIALTY CODE 80402)
AJ2: =SUM(C:W) -> 0 | AN2: 2014-10-27T08:45:00
B3: Primary Carrier | C3: =IF('e-216'!G3="Please Select Primary Carrier","",'e-216'!G3) ->  | AJ3: 80402
B4: Carrier Code | C4: ='e-216'!Q1 -> 
B5: Date | C5: =IF('e-216'!B2="Completion Date","",'e-216'!B2) -> 
B6: Birth Center's Name
B7: Birth Center's Address
B8: Birth Ctr's Assigned #
B9: Basic Insurance Coverage Limits: | D9: $ 500,000.00 Per Occ.
D10: $1,500,000.00 Per Agg.
B11: Entry Worksheets must be transferred to the e-216 by clicking the "Transfer to e-216" button.
B12: From Date | C12: To Date | D12: Retro Date | E12: Policy # | F12: Policy Type | G12: County Code | H12: Mcare Assessment
H13: =Q17 -> 0
B14: List all shareholders, owners, partners and employed health care providers
B16: License # | C16: Name | E16: County Code | F16: Specialty Code | G16: HCP's Annual Assessment | H16: Other Rating Factors | M16: Total Assessment | N16: # of Days | O16: Daily Rate | P16: Assessment | Q16: Rounded Assessment
M17: =SUM(G17:G50) -> 0 | N17: =IF(AND(B13<45351,C13>45351),(C13-B13)-1,C13-B13) -> 0 | O17: =M17/365 -> 0 | P17: =(N17*O17)*25% -> 0 | Q17: =ROUND(P17,0) -> 0
B51: This worksheet will NOT include health care providers listed below this point in the calculation.
